Body name,Service Area,Dept,Expenses Type,Capital/Revenue,Detailed Expenses Type,Transaction number,Expense Code,Date,Amount,Supplier Name,Supplier ID
WANDSWORTH COUNCIL,CS,ENVIRONMENT & COMMUNITY,OTH LA,Revenue,CONTRIBUTION - WESTMINSTER,603473,100044500,03-Mar-15,"85,818.00",CITY OF WESTMINSTER,SP0000345
WANDSWORTH COUNCIL,CS,FINANCE,"REPAIRS, ALTERATIONS & MTCE",Revenue,"REPS, ALTS & MTCE-BUILDINGS",625481,100410000,31-Mar-15,675.00,A-LIST WINDOW CLEANG LTD T/A ACS WINDOWS,SP0006912
WANDSWORTH COUNCIL,CS,FINANCE,"REPAIRS, ALTERATIONS & MTCE",Revenue,"REPS, ALTS & MTCE-BUILDINGS",625470,100410000,31-Mar-15,"3,150.00",MR R BAKER,SP0001444
WANDSWORTH COUNCIL,CS,FINANCE,"REPAIRS, ALTERATIONS & MTCE",Revenue,"REPS, ALTS & MTCE-BUILDINGS",613414,100410000,16-Mar-15,435.34,T BROWN GROUP LTD,SP0001050
WANDSWORTH COUNCIL,CS,ENVIRONMENT & COMMUNITY,"REPAIRS, ALTERATIONS & MTCE",Revenue,"REPS, ALTS & MTCE-BUILDINGS",604198,10051000K0002P,03-Mar-15,"1,500.00",ZEST DESIGN AND MARKETING LTD,SP0009328
WANDSWORTH COUNCIL,CS,ENVIRONMENT & COMMUNITY,SERVICES,Revenue,CONSULTANTS FEES,605160,100534200,04-Mar-15,"7,410.00",WILDWOOD CREATIVE LLP,SP0003945
WANDSWORTH COUNCIL,CS,ENVIRONMENT & COMMUNITY,RENTS,Revenue,RENTS,616763,10061340K00951,19-Mar-15,"5,250.00",C GOLFINGER,SP0007180
WANDSWORTH COUNCIL,CS,ADMINISTRATION,SERVICES,Revenue,LEGAL & COURT COSTS,20301795,100634600,06-Mar-15,555.00,Slater and Gordon (UK) LLP Client Account,2991000
WANDSWORTH COUNCIL,PH,ENVIRONMENT & COMMUNITY,MISC,Revenue,MISCELLANEOUS EXPENSES,614482,102238500,18-Mar-15,"4,602.50",ELAYS NETWORK,SP0007047
WANDSWORTH COUNCIL,PH,ENVIRONMENT & COMMUNITY,MISC,Revenue,MISCELLANEOUS EXPENSES,614483,102238500,18-Mar-15,"9,205.00",ELAYS NETWORK,SP0007047
WANDSWORTH COUNCIL,CS,ENVIRONMENT & COMMUNITY,PRINTING STAT & GEN OFFICE EXP,Revenue,PRINTING AND STATIONERY,605758,103033420,05-Mar-15,92.00,OFFICE DEPOT UK LTD,SP0000092
WANDSWORTH COUNCIL,CS,ENVIRONMENT & COMMUNITY,PRINTING STAT & GEN OFFICE EXP,Revenue,PRINTING AND STATIONERY,605758,103033420,05-Mar-15,500.00,OFFICE DEPOT UK LTD,SP0000092
WANDSWORTH COUNCIL,CS,ENVIRONMENT & COMMUNITY,PRINTING STAT & GEN OFFICE EXP,Revenue,PRINTING AND STATIONERY,605758,103033420,05-Mar-15,23.60,OFFICE DEPOT UK LTD,SP0000092
WANDSWORTH COUNCIL,CS,ENVIRONMENT & COMMUNITY,PRINTING STAT & GEN OFFICE EXP,Revenue,PRINTING AND STATIONERY,605758,103033420,05-Mar-15,0.46,OFFICE DEPOT UK LTD,SP0000092
WANDSWORTH COUNCIL,CS,ENVIRONMENT & COMMUNITY,PRINTING STAT & GEN OFFICE EXP,Revenue,PRINTING AND STATIONERY,605758,103033420,05-Mar-15,1.16,OFFICE DEPOT UK LTD,SP0000092
WANDSWORTH COUNCIL,CS,ENVIRONMENT & COMMUNITY,PRINTING STAT & GEN OFFICE EXP,Revenue,PRINTING AND STATIONERY,605758,103033420,05-Mar-15,1.50,OFFICE DEPOT UK LTD,SP0000092
WANDSWORTH COUNCIL,CS,ENVIRONMENT & COMMUNITY,PRINTING STAT & GEN OFFICE EXP,Revenue,PRINTING AND STATIONERY,608856,103033420,10-Mar-15,336.78,RICOH UK LTD,SP0002316
WANDSWORTH COUNCIL,CS,ENVIRONMENT & COMMUNITY,PRINTING STAT & GEN OFFICE EXP,Revenue,PRINTING AND STATIONERY,608856,103033420,10-Mar-15,336.78,RICOH UK LTD,SP0002316
WANDSWORTH COUNCIL,CS,ENVIRONMENT & COMMUNITY,PRINTING STAT & GEN OFFICE EXP,Revenue,PRINTING AND STATIONERY,608856,103033420,10-Mar-15,336.78,RICOH UK LTD,SP0002316
WANDSWORTH COUNCIL,CS,ENVIRONMENT & COMMUNITY,PRINTING STAT & GEN OFFICE EXP,Revenue,PRINTING AND STATIONERY,608856,103033420,10-Mar-15,282.32,RICOH UK LTD,SP0002316
WANDSWORTH COUNCIL,CS,ENVIRONMENT & COMMUNITY,PRINTING STAT & GEN OFFICE EXP,Revenue,PRINTING AND STATIONERY,608856,103033420,10-Mar-15,26.58,RICOH UK LTD,SP0002316
WANDSWORTH COUNCIL,CS,ENVIRONMENT & COMMUNITY,PRINTING STAT & GEN OFFICE EXP,Revenue,PRINTING AND STATIONERY,608856,103033420,10-Mar-15,269.71,RICOH UK LTD,SP0002316
WANDSWORTH COUNCIL,CS,ENVIRONMENT & COMMUNITY,COMMUNICATIONS & COMP,Revenue,COMMUNICATIONS - POSTAGE,612231,103036000,13-Mar-15,766.99,ROYAL MAIL,SP0001067
WANDSWORTH COUNCIL,CS,ENVIRONMENT & COMMUNITY,COMMUNICATIONS & COMP,Revenue,COMMUNICATIONS - POSTAGE,616789,103036000,20-Mar-15,"1,154.53",ROYAL MAIL,SP0001067
WANDSWORTH COUNCIL,CS,ENVIRONMENT & COMMUNITY,COMMUNICATIONS & COMP,Revenue,I.T. EQUIPMENT & MAINTENANCE,608856,103036210,10-Mar-15,252.42,RICOH UK LTD,SP0002316
WANDSWORTH COUNCIL,CS,ENVIRONMENT & COMMUNITY,COMMUNICATIONS & COMP,Revenue,XPRESS COMPUTER,624587,103036570,27-Mar-15,"25,094.42",XPRESS SOFTWARE SOLUTIONS LTD,SP0003149
WANDSWORTH COUNCIL,CS,ENVIRONMENT & COMMUNITY,"EQUIPMENT, FURNITURE & MATS",Revenue,FLOWERS,610558,103130170,12-Mar-15,646.00,PATRICIA WONG,SP0002085
WANDSWORTH COUNCIL,CDC,ENVIRONMENT & COMMUNITY,COMMUNICATIONS & COMP,Revenue,I.T. SOFTWARE,617368,103336240,20-Mar-15,501.47,INPHASE LTD,SP0009043
WANDSWORTH COUNCIL,PH,ENVIRONMENT & COMMUNITY,HEALTH,Revenue,HIV RAPID TESTING PILOT,613287,105141710,18-Mar-15,"3,416.00",PASSANTE HEALTHCARE LTD,SP0006465
WANDSWORTH COUNCIL,PH,ENVIRONMENT & COMMUNITY,HEALTH,Revenue,HIV RAPID TESTING PILOT,613288,105141710,18-Mar-15,"1,769.00",PASSANTE HEALTHCARE LTD,SP0006465
WANDSWORTH COUNCIL,PH,ENVIRONMENT & COMMUNITY,HEALTH,Revenue,ADVICE AND ADVOCACY SERVICES,617416,105241840,20-Mar-15,932.00,CARE UK CLINICAL SERVICES LTD,SP0005790
WANDSWORTH COUNCIL,PH,ENVIRONMENT & COMMUNITY,HEALTH,Revenue,ADVICE AND ADVOCACY SERVICES,619373,105241840,25-Mar-15,"4,925.00",WEM CONSULTANCY LTD,SP0006617
WANDSWORTH COUNCIL,PH,ENVIRONMENT & COMMUNITY,HEALTH,Revenue,THIRD PARTY PAYMENTS- TRAINING,619310,105340530,25-Mar-15,"1,025.00",MARKEY PRIMARY SERVICES LTD,SP0006636
WANDSWORTH COUNCIL,PH,ENVIRONMENT & COMMUNITY,HEALTH,Revenue,SOFTWARE FOR MANAGING DATA,618530,105341510,25-Mar-15,"14,333.00",QUALITY MEDICAL SOLUTIONS LTD,SP0009384
WANDSWORTH COUNCIL,PH,ADMINISTRATION,HEALTH,Revenue,PRESCRIBING SERVICES,20303246,106340550,31-Mar-15,56.00,AMICHEM LTD FT016,2015447
WANDSWORTH COUNCIL,PH,ADMINISTRATION,HEALTH,Revenue,PRESCRIBING SERVICES,20303246,106340550,31-Mar-15,624.87,AMICHEM LTD FT016,2015447
WANDSWORTH COUNCIL,PH,ADMINISTRATION,HEALTH,Revenue,PRESCRIBING SERVICES,20303225,106340550,31-Mar-15,94.00,PEARL CHEMIST LTD  FDC47,2015428
WANDSWORTH COUNCIL,PH,ADMINISTRATION,HEALTH,Revenue,PRESCRIBING SERVICES,20303225,106340550,31-Mar-15,"1,304.49",PEARL CHEMIST LTD  FDC47,2015428
WANDSWORTH COUNCIL,PH,ADMINISTRATION,HEALTH,Revenue,PRESCRIBING SERVICES,20303257,106340550,31-Mar-15,"1,261.46",PEARL CHEMIST LTD  FDC47,2015428
WANDSWORTH COUNCIL,PH,ADMINISTRATION,HEALTH,Revenue,PRESCRIBING SERVICES,20303257,106340550,31-Mar-15,100.00,PEARL CHEMIST LTD  FDC47,2015428
WANDSWORTH COUNCIL,PH,ENVIRONMENT & COMMUNITY,SERVICES,Revenue,PROJECT WORK,619266,107034800,25-Mar-15,"4,571.23",GENERATE OPPORTUNITIES LTD,SP0000503
WANDSWORTH COUNCIL,PH,ENVIRONMENT & COMMUNITY,SERVICES,Revenue,PROJECT WORK,607634,107634800,10-Mar-15,"15,000.00",WANDSWORTH SAFER AND ACCESSIBLE HOMES TE,SP0006691
WANDSWORTH COUNCIL,PH,ENVIRONMENT & COMMUNITY,VOL ASS,Revenue,THIRD PARTY PYMT - VOL ASS,616790,107648090,20-Mar-15,"2,500.00",LEONARD CHESHIRE,SP0000976
WANDSWORTH COUNCIL,PH,ENVIRONMENT & COMMUNITY,SERVICES,Revenue,PROJECT WORK,612434,108034800,13-Mar-15,"1,000.00",HARINGEY ASSOCIATION FOR INDEPENDENT LIV,SP0000222
WANDSWORTH COUNCIL,PH,ENVIRONMENT & COMMUNITY,SERVICES,Revenue,PROJECT WORK,613174,108034800,16-Mar-15,"1,000.00",HENRY PRINCE RESIDENTS ASSOCIATION,SP0009232
WANDSWORTH COUNCIL,PH,ENVIRONMENT & COMMUNITY,SERVICES,Revenue,PROJECT WORK,614615,108034800,18-Mar-15,"2,886.60",HOME START WANDSWORTH LTD,SP0007079
WANDSWORTH COUNCIL,PH,ENVIRONMENT & COMMUNITY,SERVICES,Revenue,PROJECT WORK,613175,108034800,16-Mar-15,"1,000.00",KLEVIS KOLA FOUNDATION,SP0006937
WANDSWORTH COUNCIL,PH,ENVIRONMENT & COMMUNITY,SERVICES,Revenue,PROJECT WORK,613162,108034800,16-Mar-15,"1,000.00",PROVIDENCE HOUSE YOUTH CLUB,SP0002710
WANDSWORTH COUNCIL,PH,ENVIRONMENT & COMMUNITY,SERVICES,Revenue,PROJECT WORK,613155,108034800,16-Mar-15,"1,000.00",THAMES REACH HOUSING ASSOCIATION LTD,SP0009144
WANDSWORTH COUNCIL,PH,ENVIRONMENT & COMMUNITY,SERVICES,Revenue,PROJECT WORK,619267,108034800,25-Mar-15,"1,000.00",TRANSITION TOWN TOOTING,SP0009367
WANDSWORTH COUNCIL,PH,ADMINISTRATION,HEALTH,Revenue,AWARENESS TRAINING,20302163,108141210,11-Mar-15,"4,170.00",ASSOCIATION OF SOMALI WOMEN AND CHILDREN (ASWAC),2017875
WANDSWORTH COUNCIL,NGF CS,ADMINISTRATION,PRIVATE,Revenue,REFUSE COLLECTN & PEST CONTROL,20302327,111045500,23-Mar-15,"1,202.69",SITA UK LTD,2003271
WANDSWORTH COUNCIL,NGF CS,ADMINISTRATION,PRIVATE,Revenue,REFUSE COLLECTN & PEST CONTROL,20302328,111045500,23-Mar-15,534.79,SITA UK LTD,2003271
WANDSWORTH COUNCIL,NGF CS,ENVIRONMENT & COMMUNITY,GROUNDS MAINTENANCE,Revenue,CONSULTANTS FEE-LA TREE SURVEY,613286,111512160,16-Mar-15,683.43,SITA UK LTD,SP0000507
WANDSWORTH COUNCIL,NGF CS,ENVIRONMENT & COMMUNITY,"EQUIPMENT, FURNITURE & MATS",Revenue,"EQUIPMENT, FURNITURE & MATS",617370,111930000,20-Mar-15,440.00,OASIS PRODUCTS VENDING SERVICES LIMITED,SP0002441
WANDSWORTH COUNCIL,NGF CS,ENVIRONMENT & COMMUNITY,GROUNDS MAINTENANCE,Revenue,CONSULTANTS FEE-LA TREE SURVEY,613284,112112160,16-Mar-15,559.17,SITA UK LTD,SP0000507
WANDSWORTH COUNCIL,NGF CS,ENVIRONMENT & COMMUNITY,GROUNDS MAINTENANCE,Revenue,CONSULTANTS FEE-LA TREE SURVEY,613284,112212160,16-Mar-15,131.66,SITA UK LTD,SP0000507
WANDSWORTH COUNCIL,NGF CS,ENVIRONMENT & COMMUNITY,GROUNDS MAINTENANCE,Revenue,CONSULTANTS FEE-LA TREE SURVEY,613285,112912160,16-Mar-15,690.83,SITA UK LTD,SP0000507
WANDSWORTH COUNCIL,NGF CS,FINANCE,PRIVATE,Revenue,GENERAL CONTRACT WORK,625488,113345370,31-Mar-15,"1,368.32",DH CROFTS LTD,SP0000076
WANDSWORTH COUNCIL,NGF CS,ADMINISTRATION,CLEANING & DOMESTIC SUPPLIES,Revenue,CLEANING CONTRACT,20301941,113813020,11-Mar-15,"14,138.79",OCEAN INTEGRATED SERVICES LTD,2009026
WANDSWORTH COUNCIL,NGF CS,ADMINISTRATION,CLEANING & DOMESTIC SUPPLIES,Revenue,CLEANING CONTRACT,20301942,113813020,11-Mar-15,"40,205.33",OCEAN INTEGRATED SERVICES LTD,2009026
WANDSWORTH COUNCIL,NGF CS,ADMINISTRATION,CLEANING & DOMESTIC SUPPLIES,Revenue,WINDOW CLEANING,20302305,113813060,23-Mar-15,"1,040.00",PARKERS CLEANING CONTRACTORS LTD,2004677
WANDSWORTH COUNCIL,NGF CDC,ENVIRONMENT & COMMUNITY,"REPAIRS, ALTERATIONS & MTCE",Revenue,REMOVALS & REORGANISATIONS,624813,114210140,30-Mar-15,"2,454.08",WAGSTAFF INTERIORS GROUP,SP0005775
WANDSWORTH COUNCIL,NGF CDC,ADMINISTRATION,"REPAIRS, ALTERATIONS & MTCE",Revenue,REMOVALS & REORGANISATIONS,20303359,11421014K07247,31-Mar-15,"1,966.56",WAGSTAFF INTERIORS GROUP,2004128
WANDSWORTH COUNCIL,NGF CDC,FINANCE,"REPAIRS, ALTERATIONS & MTCE",Revenue,REMOVALS & REORGANISATIONS,607956,11421014K07287,06-Mar-15,755.45,DH CROFTS LTD,SP0000076
WANDSWORTH COUNCIL,NGF CDC,ADMINISTRATION,"REPAIRS, ALTERATIONS & MTCE",Revenue,REMOVALS & REORGANISATIONS,20301944,11421014K07287,11-Mar-15,"3,470.00",JT & SONS RELOCATIONS,2018113
WANDSWORTH COUNCIL,NGF CDC,ADMINISTRATION,"REPAIRS, ALTERATIONS & MTCE",Revenue,REMOVALS & REORGANISATIONS,20301944,11421014K07287,11-Mar-15,347.00,JT & SONS RELOCATIONS,2018113
WANDSWORTH COUNCIL,NGF CDC,ADMINISTRATION,"REPAIRS, ALTERATIONS & MTCE",Revenue,REMOVALS & REORGANISATIONS,20301945,11421014K07287,11-Mar-15,"1,702.70",JT & SONS RELOCATIONS,2018113
WANDSWORTH COUNCIL,NGF CDC,ADMINISTRATION,"REPAIRS, ALTERATIONS & MTCE",Revenue,REMOVALS & REORGANISATIONS,20301946,11421014K07287,11-Mar-15,417.52,JT & SONS RELOCATIONS,2018113
WANDSWORTH COUNCIL,NGF CDC,ADMINISTRATION,"REPAIRS, ALTERATIONS & MTCE",Revenue,REMOVALS & REORGANISATIONS,20303358,11421014K07287,31-Mar-15,"4,004.93",JT & SONS RELOCATIONS,2018113
WANDSWORTH COUNCIL,NGF CDC,ADMINISTRATION,"REPAIRS, ALTERATIONS & MTCE",Revenue,REMOVALS & REORGANISATIONS,20303360,11421014K07287,31-Mar-15,525.00,JT & SONS RELOCATIONS,2018113
WANDSWORTH COUNCIL,NGF CDC,FINANCE,COMMUNICATIONS & COMP,Revenue,I.T. EQUIPMENT & MAINTENANCE,613433,114236210,16-Mar-15,"3,525.00",DH CROFTS LTD,SP0000076
WANDSWORTH COUNCIL,NGF CDC,FINANCE,PRIVATE,Revenue,GENERAL CONTRACT WORK,607932,11424537K07061,06-Mar-15,"6,660.05",DH CROFTS LTD,SP0000076
WANDSWORTH COUNCIL,NGF CDC,FINANCE,PRIVATE,Revenue,GENERAL CONTRACT WORK,613365,11424537K07061,16-Mar-15,451.74,DH CROFTS LTD,SP0000076
WANDSWORTH COUNCIL,NGF CDC,FINANCE,PRIVATE,Revenue,GENERAL CONTRACT WORK,623627,11424537K07061,27-Mar-15,"3,335.40",DH CROFTS LTD,SP0000076
WANDSWORTH COUNCIL,NGF CDC,FINANCE,PRIVATE,Revenue,GENERAL CONTRACT WORK,623631,11424537K07061,27-Mar-15,"3,286.00",DH CROFTS LTD,SP0000076
WANDSWORTH COUNCIL,NGF CDC,FINANCE,PRIVATE,Revenue,GENERAL CONTRACT WORK,623636,11424537K07061,27-Mar-15,489.00,DH CROFTS LTD,SP0000076
WANDSWORTH COUNCIL,NGF CDC,FINANCE,PRIVATE,Revenue,GENERAL CONTRACT WORK,625412,11424537K07061,31-Mar-15,921.80,DH CROFTS LTD,SP0000076
WANDSWORTH COUNCIL,NGF CDC,FINANCE,PRIVATE,Revenue,GENERAL CONTRACT WORK,623675,11424537K07091,27-Mar-15,"2,581.00",ACR LONDON LTD,SP0000193
WANDSWORTH COUNCIL,NGF CDC,FINANCE,PRIVATE,Revenue,GENERAL CONTRACT WORK,623630,11424537K07241,27-Mar-15,"4,633.20",DH CROFTS LTD,SP0000076
WANDSWORTH COUNCIL,NGF CDC,FINANCE,PRIVATE,Revenue,GENERAL CONTRACT WORK,607905,11424537K07291,06-Mar-15,"1,887.60",DH CROFTS LTD,SP0000076
WANDSWORTH COUNCIL,NGF CDC,FINANCE,PRIVATE,Revenue,GENERAL CONTRACT WORK,613347,11424537K07291,16-Mar-15,"1,166.02",DH CROFTS LTD,SP0000076
WANDSWORTH COUNCIL,NGF CDC,FINANCE,PRIVATE,Revenue,GENERAL CONTRACT WORK,613386,11424537K07291,16-Mar-15,"5,742.39",DH CROFTS LTD,SP0000076
WANDSWORTH COUNCIL,NGF CDC,FINANCE,PRIVATE,Revenue,GENERAL CONTRACT WORK,613387,11424537K07291,16-Mar-15,"8,834.88",DH CROFTS LTD,SP0000076
WANDSWORTH COUNCIL,NGF CDC,FINANCE,PRIVATE,Revenue,GENERAL CONTRACT WORK,613434,11424537K07291,16-Mar-15,"2,920.50",DH CROFTS LTD,SP0000076
WANDSWORTH COUNCIL,NGF CDC,FINANCE,PRIVATE,Revenue,GENERAL CONTRACT WORK,623599,11424537K07291,27-Mar-15,"5,475.80",DH CROFTS LTD,SP0000076
WANDSWORTH COUNCIL,NGF CDC,FINANCE,PRIVATE,Revenue,GENERAL CONTRACT WORK,623600,11424537K07291,27-Mar-15,"5,388.90",DH CROFTS LTD,SP0000076
WANDSWORTH COUNCIL,NGF CDC,FINANCE,PRIVATE,Revenue,GENERAL CONTRACT WORK,623601,11424537K07291,27-Mar-15,"5,505.50",DH CROFTS LTD,SP0000076
WANDSWORTH COUNCIL,NGF CDC,FINANCE,PRIVATE,Revenue,GENERAL CONTRACT WORK,623602,11424537K07291,27-Mar-15,698.50,DH CROFTS LTD,SP0000076
WANDSWORTH COUNCIL,NGF CDC,FINANCE,PRIVATE,Revenue,GENERAL CONTRACT WORK,623611,11424537K07291,27-Mar-15,"4,510.38",DH CROFTS LTD,SP0000076
WANDSWORTH COUNCIL,NGF CDC,FINANCE,PRIVATE,Revenue,GENERAL CONTRACT WORK,623612,11424537K07291,27-Mar-15,704.00,DH CROFTS LTD,SP0000076
WANDSWORTH COUNCIL,NGF CDC,FINANCE,PRIVATE,Revenue,GENERAL CONTRACT WORK,623613,11424537K07291,27-Mar-15,429.00,DH CROFTS LTD,SP0000076
WANDSWORTH COUNCIL,NGF CDC,FINANCE,PRIVATE,Revenue,GENERAL CONTRACT WORK,623614,11424537K07291,27-Mar-15,874.82,DH CROFTS LTD,SP0000076
WANDSWORTH COUNCIL,NGF CDC,FINANCE,PRIVATE,Revenue,GENERAL CONTRACT WORK,623615,11424537K07291,27-Mar-15,810.15,DH CROFTS LTD,SP0000076
WANDSWORTH COUNCIL,NGF CDC,FINANCE,PRIVATE,Revenue,GENERAL CONTRACT WORK,623616,11424537K07291,27-Mar-15,"7,436.69",DH CROFTS LTD,SP0000076
WANDSWORTH COUNCIL,NGF CDC,FINANCE,PRIVATE,Revenue,GENERAL CONTRACT WORK,623617,11424537K07291,27-Mar-15,"7,436.69",DH CROFTS LTD,SP0000076
WANDSWORTH COUNCIL,NGF CDC,FINANCE,PRIVATE,Revenue,GENERAL CONTRACT WORK,623618,11424537K07291,27-Mar-15,"7,436.69",DH CROFTS LTD,SP0000076
WANDSWORTH COUNCIL,NGF CDC,FINANCE,PRIVATE,Revenue,GENERAL CONTRACT WORK,623619,11424537K07291,27-Mar-15,"3,405.60",DH CROFTS LTD,SP0000076
WANDSWORTH COUNCIL,NGF CDC,FINANCE,PRIVATE,Revenue,GENERAL CONTRACT WORK,623620,11424537K07291,27-Mar-15,"2,326.28",DH CROFTS LTD,SP0000076
WANDSWORTH COUNCIL,NGF CDC,FINANCE,PRIVATE,Revenue,GENERAL CONTRACT WORK,623621,11424537K07291,27-Mar-15,633.33,DH CROFTS LTD,SP0000076
WANDSWORTH COUNCIL,NGF CDC,FINANCE,PRIVATE,Revenue,GENERAL CONTRACT WORK,623622,11424537K07291,27-Mar-15,"1,492.48",DH CROFTS LTD,SP0000076
WANDSWORTH COUNCIL,NGF CDC,FINANCE,PRIVATE,Revenue,GENERAL CONTRACT WORK,623623,11424537K07291,27-Mar-15,"4,840.00",DH CROFTS LTD,SP0000076
WANDSWORTH COUNCIL,NGF CDC,FINANCE,PRIVATE,Revenue,GENERAL CONTRACT WORK,623624,11424537K07291,27-Mar-15,"3,138.00",DH CROFTS LTD,SP0000076
WANDSWORTH COUNCIL,NGF CDC,FINANCE,PRIVATE,Revenue,GENERAL CONTRACT WORK,623625,11424537K07291,27-Mar-15,"5,973.00",DH CROFTS LTD,SP0000076
WANDSWORTH COUNCIL,NGF CDC,FINANCE,PRIVATE,Revenue,GENERAL CONTRACT WORK,623629,11424537K07291,27-Mar-15,924.00,DH CROFTS LTD,SP0000076
WANDSWORTH COUNCIL,NGF CDC,FINANCE,PRIVATE,Revenue,GENERAL CONTRACT WORK,623633,11424537K07291,27-Mar-15,"4,521.00",DH CROFTS LTD,SP0000076
WANDSWORTH COUNCIL,NGF CDC,FINANCE,PRIVATE,Revenue,GENERAL CONTRACT WORK,623634,11424537K07291,27-Mar-15,"3,833.50",DH CROFTS LTD,SP0000076
WANDSWORTH COUNCIL,NGF CDC,FINANCE,PRIVATE,Revenue,GENERAL CONTRACT WORK,623635,11424537K07291,27-Mar-15,"7,186.30",DH CROFTS LTD,SP0000076
WANDSWORTH COUNCIL,NGF CDC,FINANCE,PRIVATE,Revenue,GENERAL CONTRACT WORK,623642,11424537K07291,27-Mar-15,"4,418.39",DH CROFTS LTD,SP0000076
WANDSWORTH COUNCIL,NGF CDC,FINANCE,PRIVATE,Revenue,GENERAL CONTRACT WORK,623803,11424537K07291,27-Mar-15,"10,667.28",DH CROFTS LTD,SP0000076
WANDSWORTH COUNCIL,NGF CDC,FINANCE,PRIVATE,Revenue,GENERAL CONTRACT WORK,623867,11424537K07291,27-Mar-15,"7,205.00",DH CROFTS LTD,SP0000076
WANDSWORTH COUNCIL,NGF CDC,FINANCE,PRIVATE,Revenue,GENERAL CONTRACT WORK,623868,11424537K07291,27-Mar-15,"2,715.00",DH CROFTS LTD,SP0000076
WANDSWORTH COUNCIL,NGF CDC,FINANCE,PRIVATE,Revenue,GENERAL CONTRACT WORK,623869,11424537K07291,27-Mar-15,"8,204.00",DH CROFTS LTD,SP0000076
WANDSWORTH COUNCIL,NGF CDC,FINANCE,PRIVATE,Revenue,GENERAL CONTRACT WORK,623872,11424537K07291,27-Mar-15,"2,112.00",DH CROFTS LTD,SP0000076
WANDSWORTH COUNCIL,NGF CDC,FINANCE,PRIVATE,Revenue,GENERAL CONTRACT WORK,623873,11424537K07291,27-Mar-15,"2,519.00",DH CROFTS LTD,SP0000076
WANDSWORTH COUNCIL,NGF CDC,FINANCE,PRIVATE,Revenue,GENERAL CONTRACT WORK,623874,11424537K07291,27-Mar-15,"10,604.00",DH CROFTS LTD,SP0000076
WANDSWORTH COUNCIL,NGF CDC,FINANCE,PRIVATE,Revenue,GENERAL CONTRACT WORK,623875,11424537K07291,27-Mar-15,"12,978.00",DH CROFTS LTD,SP0000076
WANDSWORTH COUNCIL,NGF CDC,FINANCE,PRIVATE,Revenue,GENERAL CONTRACT WORK,623891,11424537K07291,27-Mar-15,"2,378.88",DH CROFTS LTD,SP0000076
WANDSWORTH COUNCIL,NGF CDC,FINANCE,PRIVATE,Revenue,GENERAL CONTRACT WORK,623892,11424537K07291,27-Mar-15,"6,641.25",DH CROFTS LTD,SP0000076
WANDSWORTH COUNCIL,NGF CDC,FINANCE,PRIVATE,Revenue,GENERAL CONTRACT WORK,625496,11424537K07291,31-Mar-15,"4,477.64",DH CROFTS LTD,SP0000076
WANDSWORTH COUNCIL,NGF CDC,FINANCE,PRIVATE,Revenue,GENERAL CONTRACT WORK,623676,11424537K07291,27-Mar-15,995.00,DOWNS FLOORING LTD,SP0000833
WANDSWORTH COUNCIL,NGF CDC,FINANCE,PRIVATE,Revenue,GENERAL CONTRACT WORK,623676,11424537K07291,27-Mar-15,400.00,DOWNS FLOORING LTD,SP0000833
WANDSWORTH COUNCIL,NGF CDC,FINANCE,PRIVATE,Revenue,GENERAL CONTRACT WORK,623677,11424537K07291,27-Mar-15,400.00,DOWNS FLOORING LTD,SP0000833
WANDSWORTH COUNCIL,NGF CDC,FINANCE,PRIVATE,Revenue,GENERAL CONTRACT WORK,623677,11424537K07291,27-Mar-15,"1,070.00",DOWNS FLOORING LTD,SP0000833
WANDSWORTH COUNCIL,NGF CDC,FINANCE,PRIVATE,Revenue,GENERAL CONTRACT WORK,623678,11424537K07291,27-Mar-15,900.00,DOWNS FLOORING LTD,SP0000833
WANDSWORTH COUNCIL,NGF CDC,FINANCE,PRIVATE,Revenue,GENERAL CONTRACT WORK,623678,11424537K07291,27-Mar-15,300.00,DOWNS FLOORING LTD,SP0000833
WANDSWORTH COUNCIL,NGF CDC,FINANCE,PRIVATE,Revenue,GENERAL CONTRACT WORK,623722,11424537K07291,27-Mar-15,400.00,DOWNS FLOORING LTD,SP0000833
WANDSWORTH COUNCIL,NGF CDC,FINANCE,PRIVATE,Revenue,GENERAL CONTRACT WORK,623722,11424537K07291,27-Mar-15,"1,100.00",DOWNS FLOORING LTD,SP0000833
WANDSWORTH COUNCIL,NGF CDC,FINANCE,PRIVATE,Revenue,GENERAL CONTRACT WORK,623723,11424537K07291,27-Mar-15,"1,100.00",DOWNS FLOORING LTD,SP0000833
WANDSWORTH COUNCIL,NGF CDC,FINANCE,PRIVATE,Revenue,GENERAL CONTRACT WORK,623723,11424537K07291,27-Mar-15,400.00,DOWNS FLOORING LTD,SP0000833
WANDSWORTH COUNCIL,NGF CDC,FINANCE,PRIVATE,Revenue,GENERAL CONTRACT WORK,607770,11424537K07291,06-Mar-15,"1,061.56",MR R BAKER,SP0001444
WANDSWORTH COUNCIL,NGF CDC,FINANCE,PRIVATE,Revenue,GENERAL CONTRACT WORK,623932,11424537K07291,27-Mar-15,"1,328.40",WESTMINSTER BUILDING SERVICES LTD,SP0000543
WANDSWORTH COUNCIL,NGF CDC,FINANCE,PRIVATE,Revenue,GENERAL CONTRACT WORK,623933,11424537K07291,27-Mar-15,"1,467.54",WESTMINSTER BUILDING SERVICES LTD,SP0000543
WANDSWORTH COUNCIL,NGF CDC,FINANCE,PRIVATE,Revenue,GENERAL CONTRACT WORK,623934,11424537K07291,27-Mar-15,"1,476.00",WESTMINSTER BUILDING SERVICES LTD,SP0000543
WANDSWORTH COUNCIL,NGF CDC,FINANCE,PRIVATE,Revenue,GENERAL CONTRACT WORK,607937,11424537K07301,06-Mar-15,"4,752.00",DH CROFTS LTD,SP0000076
WANDSWORTH COUNCIL,NGF CDC,FINANCE,PRIVATE,Revenue,GENERAL CONTRACT WORK,613323,11424537K07301,16-Mar-15,"1,891.12",DH CROFTS LTD,SP0000076
WANDSWORTH COUNCIL,NGF CDC,FINANCE,PRIVATE,Revenue,GENERAL CONTRACT WORK,613324,11424537K07301,16-Mar-15,"2,186.25",DH CROFTS LTD,SP0000076
WANDSWORTH COUNCIL,NGF CDC,FINANCE,PRIVATE,Revenue,GENERAL CONTRACT WORK,613325,11424537K07301,16-Mar-15,"2,706.66",DH CROFTS LTD,SP0000076
WANDSWORTH COUNCIL,NGF CDC,FINANCE,PRIVATE,Revenue,GENERAL CONTRACT WORK,613326,11424537K07301,16-Mar-15,"1,764.03",DH CROFTS LTD,SP0000076
WANDSWORTH COUNCIL,NGF CDC,FINANCE,PRIVATE,Revenue,GENERAL CONTRACT WORK,613327,11424537K07301,16-Mar-15,"1,843.60",DH CROFTS LTD,SP0000076
WANDSWORTH COUNCIL,NGF CDC,FINANCE,PRIVATE,Revenue,GENERAL CONTRACT WORK,613385,11424537K07301,16-Mar-15,610.50,DH CROFTS LTD,SP0000076
WANDSWORTH COUNCIL,NGF CDC,FINANCE,PRIVATE,Revenue,GENERAL CONTRACT WORK,613436,11424537K07301,16-Mar-15,"6,823.89",DH CROFTS LTD,SP0000076
WANDSWORTH COUNCIL,NGF CDC,FINANCE,PRIVATE,Revenue,GENERAL CONTRACT WORK,613489,11424537K07301,16-Mar-15,"4,768.50",DH CROFTS LTD,SP0000076
WANDSWORTH COUNCIL,NGF CDC,FINANCE,PRIVATE,Revenue,GENERAL CONTRACT WORK,623598,11424537K07301,27-Mar-15,"1,870.00",DH CROFTS LTD,SP0000076
WANDSWORTH COUNCIL,NGF CDC,FINANCE,PRIVATE,Revenue,GENERAL CONTRACT WORK,623632,11424537K07301,27-Mar-15,"8,462.80",DH CROFTS LTD,SP0000076
WANDSWORTH COUNCIL,NGF CDC,FINANCE,PRIVATE,Revenue,GENERAL CONTRACT WORK,625407,11424537K07301,31-Mar-15,"4,981.48",DH CROFTS LTD,SP0000076
WANDSWORTH COUNCIL,NGF CDC,FINANCE,PRIVATE,Revenue,GENERAL CONTRACT WORK,625408,11424537K07301,31-Mar-15,"7,032.12",DH CROFTS LTD,SP0000076
WANDSWORTH COUNCIL,NGF CDC,FINANCE,PRIVATE,Revenue,GENERAL CONTRACT WORK,625497,11424537K07301,31-Mar-15,"3,432.00",DH CROFTS LTD,SP0000076
WANDSWORTH COUNCIL,NGF CDC,FINANCE,PRIVATE,Revenue,GENERAL CONTRACT WORK,625498,11424537K07301,31-Mar-15,"4,752.00",DH CROFTS LTD,SP0000076
WANDSWORTH COUNCIL,NGF CDC,FINANCE,PRIVATE,Revenue,GENERAL CONTRACT WORK,625504,11424537K07301,31-Mar-15,"2,112.00",DH CROFTS LTD,SP0000076
WANDSWORTH COUNCIL,NGF CDC,FINANCE,PRIVATE,Revenue,GENERAL CONTRACT WORK,623679,11424537K07301,27-Mar-15,675.00,DOWNS FLOORING LTD,SP0000833
WANDSWORTH COUNCIL,NGF CDC,FINANCE,PRIVATE,Revenue,GENERAL CONTRACT WORK,623679,11424537K07301,27-Mar-15,165.00,DOWNS FLOORING LTD,SP0000833
WANDSWORTH COUNCIL,NGF CDC,FINANCE,PRIVATE,Revenue,GENERAL CONTRACT WORK,623680,11424537K07301,27-Mar-15,135.00,DOWNS FLOORING LTD,SP0000833
WANDSWORTH COUNCIL,NGF CDC,FINANCE,PRIVATE,Revenue,GENERAL CONTRACT WORK,623680,11424537K07301,27-Mar-15,545.00,DOWNS FLOORING LTD,SP0000833
WANDSWORTH COUNCIL,NGF CDC,FINANCE,PRIVATE,Revenue,GENERAL CONTRACT WORK,623681,11424537K07301,27-Mar-15,660.00,DOWNS FLOORING LTD,SP0000833
WANDSWORTH COUNCIL,NGF CDC,FINANCE,PRIVATE,Revenue,GENERAL CONTRACT WORK,623681,11424537K07301,27-Mar-15,160.00,DOWNS FLOORING LTD,SP0000833
WANDSWORTH COUNCIL,NGF CDC,FINANCE,PRIVATE,Revenue,GENERAL CONTRACT WORK,623682,11424537K07301,27-Mar-15,720.00,DOWNS FLOORING LTD,SP0000833
WANDSWORTH COUNCIL,NGF CDC,FINANCE,PRIVATE,Revenue,GENERAL CONTRACT WORK,623682,11424537K07301,27-Mar-15,180.00,DOWNS FLOORING LTD,SP0000833
WANDSWORTH COUNCIL,NGF CDC,FINANCE,PRIVATE,Revenue,GENERAL CONTRACT WORK,625410,11424537K07311,31-Mar-15,"1,996.50",DH CROFTS LTD,SP0000076
WANDSWORTH COUNCIL,NGF CDC,FINANCE,PRIVATE,Revenue,GENERAL CONTRACT WORK,623608,11424537K07321,27-Mar-15,"8,299.50",DH CROFTS LTD,SP0000076
WANDSWORTH COUNCIL,NGF CDC,FINANCE,PRIVATE,Revenue,GENERAL CONTRACT WORK,623881,11424537K07321,27-Mar-15,"3,663.00",DH CROFTS LTD,SP0000076
WANDSWORTH COUNCIL,NGF CDC,FINANCE,PRIVATE,Revenue,GENERAL CONTRACT WORK,623885,11424537K07321,27-Mar-15,768.45,DH CROFTS LTD,SP0000076
WANDSWORTH COUNCIL,NGF CDC,FINANCE,PRIVATE,Revenue,GENERAL CONTRACT WORK,623886,11424537K07321,27-Mar-15,637.50,DH CROFTS LTD,SP0000076
WANDSWORTH COUNCIL,NGF CDC,FINANCE,PRIVATE,Revenue,GENERAL CONTRACT WORK,623887,11424537K07321,27-Mar-15,"2,767.85",DH CROFTS LTD,SP0000076
WANDSWORTH COUNCIL,NGF CDC,FINANCE,PRIVATE,Revenue,GENERAL CONTRACT WORK,623888,11424537K07321,27-Mar-15,"13,632.00",DH CROFTS LTD,SP0000076
WANDSWORTH COUNCIL,NGF CDC,FINANCE,PRIVATE,Revenue,GENERAL CONTRACT WORK,623889,11424537K07321,27-Mar-15,"9,792.00",DH CROFTS LTD,SP0000076
WANDSWORTH COUNCIL,NGF CDC,FINANCE,PRIVATE,Revenue,GENERAL CONTRACT WORK,623890,11424537K07321,27-Mar-15,"2,788.50",DH CROFTS LTD,SP0000076
WANDSWORTH COUNCIL,NGF CDC,FINANCE,PRIVATE,Revenue,GENERAL CONTRACT WORK,623893,11424537K07321,27-Mar-15,"14,720.00",DH CROFTS LTD,SP0000076
WANDSWORTH COUNCIL,NGF CDC,FINANCE,PRIVATE,Revenue,GENERAL CONTRACT WORK,625459,11424537K07321,31-Mar-15,"3,250.50",DH CROFTS LTD,SP0000076
WANDSWORTH COUNCIL,NGF CDC,FINANCE,PRIVATE,Revenue,GENERAL CONTRACT WORK,623609,11424537K07351,27-Mar-15,"1,219.90",DH CROFTS LTD,SP0000076
WANDSWORTH COUNCIL,NGF CDC,FINANCE,PRIVATE,Revenue,GENERAL CONTRACT WORK,623610,11424537K07351,27-Mar-15,950.01,DH CROFTS LTD,SP0000076
WANDSWORTH COUNCIL,NGF CDC,FINANCE,PRIVATE,Revenue,GENERAL CONTRACT WORK,623871,11424537K07351,27-Mar-15,563.20,DH CROFTS LTD,SP0000076
WANDSWORTH COUNCIL,NGF CDC,FINANCE,PRIVATE,Revenue,GENERAL CONTRACT WORK,623605,11424537K07361,27-Mar-15,"2,641.50",DH CROFTS LTD,SP0000076
WANDSWORTH COUNCIL,NGF CDC,FINANCE,PRIVATE,Revenue,GENERAL CONTRACT WORK,623606,11424537K07361,27-Mar-15,"3,782.31",DH CROFTS LTD,SP0000076
WANDSWORTH COUNCIL,NGF CDC,FINANCE,PRIVATE,Revenue,GENERAL CONTRACT WORK,623607,11424537K07361,27-Mar-15,"2,641.50",DH CROFTS LTD,SP0000076
WANDSWORTH COUNCIL,NGF CDC,FINANCE,PRIVATE,Revenue,GENERAL CONTRACT WORK,623882,11424537K07361,27-Mar-15,"11,378.50",DH CROFTS LTD,SP0000076
WANDSWORTH COUNCIL,NGF CDC,FINANCE,PRIVATE,Revenue,GENERAL CONTRACT WORK,623883,11424537K07361,27-Mar-15,"6,526.20",DH CROFTS LTD,SP0000076
WANDSWORTH COUNCIL,NGF CDC,FINANCE,PRIVATE,Revenue,GENERAL CONTRACT WORK,623884,11424537K07361,27-Mar-15,"9,941.50",DH CROFTS LTD,SP0000076
WANDSWORTH COUNCIL,NGF CS,FINANCE,"REPAIRS, ALTERATIONS & MTCE",Revenue,"REPS, ALTS & MTCE-BUILDINGS",608017,114410000,06-Mar-15,"1,828.00",T BROWN GROUP LTD,SP0001050
WANDSWORTH COUNCIL,NGF CS,FINANCE,"REPAIRS, ALTERATIONS & MTCE",Revenue,"REPS, ALTS & MTCE-BUILDINGS",608018,114410000,06-Mar-15,"9,980.40",T BROWN GROUP LTD,SP0001050
WANDSWORTH COUNCIL,NGF CS,FINANCE,"REPAIRS, ALTERATIONS & MTCE",Revenue,"REPS, ALTS & MTCE-BUILDINGS",625416,114410000,31-Mar-15,471.15,T BROWN GROUP LTD,SP0001050
WANDSWORTH COUNCIL,NGF CS,ENVIRONMENT & COMMUNITY,COMMUNICATIONS & COMP,Revenue,I.T. EQUIPMENT & MAINTENANCE,620005,120136210,25-Mar-15,"2,006.16",MISCO,SP0000739
WANDSWORTH COUNCIL,NGF CS,ENVIRONMENT & COMMUNITY,COMMUNICATIONS & COMP,Revenue,I.T. EQUIPMENT & MAINTENANCE,620005,120136210,25-Mar-15,12.07,MISCO,SP0000739
WANDSWORTH COUNCIL,NGF CS,ENVIRONMENT & COMMUNITY,DIRECT2,Revenue,AGENCY STAFF,612250,120500510,13-Mar-15,"1,486.80",COBALT CONSULTING (UK) LTD,SP0008002
WANDSWORTH COUNCIL,NGF CS,ENVIRONMENT & COMMUNITY,DIRECT2,Revenue,AGENCY STAFF,612251,120500510,13-Mar-15,"1,486.80",COBALT CONSULTING (UK) LTD,SP0008002
WANDSWORTH COUNCIL,NGF CS,ENVIRONMENT & COMMUNITY,DIRECT2,Revenue,AGENCY STAFF,612252,120500510,13-Mar-15,"1,486.80",COBALT CONSULTING (UK) LTD,SP0008002
WANDSWORTH COUNCIL,NGF CS,ENVIRONMENT & COMMUNITY,OTHER AGENCIES,Revenue,DISBURSEMENTS,620936,120643250,26-Mar-15,462.50,4 BRICK COURT MANAGEMENT LIMITED,SP0007380
WANDSWORTH COUNCIL,NGF CS,ENVIRONMENT & COMMUNITY,OTHER AGENCIES,Revenue,DISBURSEMENTS,619268,120643250,24-Mar-15,"4,350.00",42 BEDFORD ROW CHAMBERS,SP0009440
WANDSWORTH COUNCIL,NGF CS,ENVIRONMENT & COMMUNITY,OTHER AGENCIES,Revenue,DISBURSEMENTS,619269,120643250,24-Mar-15,650.00,42 BEDFORD ROW CHAMBERS,SP0009440
WANDSWORTH COUNCIL,NGF CS,ENVIRONMENT & COMMUNITY,OTHER AGENCIES,Revenue,DISBURSEMENTS,619271,120643250,24-Mar-15,700.00,42 BEDFORD ROW CHAMBERS,SP0009440
WANDSWORTH COUNCIL,NGF CS,ENVIRONMENT & COMMUNITY,OTHER AGENCIES,Revenue,DISBURSEMENTS,619272,120643250,24-Mar-15,"3,150.00",42 BEDFORD ROW CHAMBERS,SP0009440
WANDSWORTH COUNCIL,NGF CS,ENVIRONMENT & COMMUNITY,OTHER AGENCIES,Revenue,DISBURSEMENTS,619273,120643250,24-Mar-15,450.00,42 BEDFORD ROW CHAMBERS,SP0009440
WANDSWORTH COUNCIL,NGF CS,ENVIRONMENT & COMMUNITY,OTHER AGENCIES,Revenue,DISBURSEMENTS,619274,120643250,24-Mar-15,500.00,42 BEDFORD ROW CHAMBERS,SP0009440
WANDSWORTH COUNCIL,NGF CS,ENVIRONMENT & COMMUNITY,OTHER AGENCIES,Revenue,DISBURSEMENTS,619275,120643250,24-Mar-15,"1,500.00",42 BEDFORD ROW CHAMBERS,SP0009440
WANDSWORTH COUNCIL,NGF CS,ENVIRONMENT & COMMUNITY,OTHER AGENCIES,Revenue,DISBURSEMENTS,619276,120643250,25-Mar-15,600.00,42 BEDFORD ROW CHAMBERS,SP0009440
WANDSWORTH COUNCIL,NGF CS,ENVIRONMENT & COMMUNITY,OTHER AGENCIES,Revenue,DISBURSEMENTS,619277,120643250,25-Mar-15,600.00,42 BEDFORD ROW CHAMBERS,SP0009440
WANDSWORTH COUNCIL,NGF CS,ENVIRONMENT & COMMUNITY,OTHER AGENCIES,Revenue,DISBURSEMENTS,620219,120643250,25-Mar-15,950.00,42 BEDFORD ROW CHAMBERS,SP0009440
WANDSWORTH COUNCIL,NGF CS,ENVIRONMENT & COMMUNITY,OTHER AGENCIES,Revenue,DISBURSEMENTS,620945,120643250,26-Mar-15,"1,325.00",42 BEDFORD ROW CHAMBERS,SP0009440
WANDSWORTH COUNCIL,NGF CS,ENVIRONMENT & COMMUNITY,OTHER AGENCIES,Revenue,DISBURSEMENTS,623485,120643250,30-Mar-15,950.00,42 BEDFORD ROW CHAMBERS,SP0009440
WANDSWORTH COUNCIL,NGF CS,ENVIRONMENT & COMMUNITY,OTHER AGENCIES,Revenue,DISBURSEMENTS,623487,120643250,30-Mar-15,600.00,42 BEDFORD ROW CHAMBERS,SP0009440
WANDSWORTH COUNCIL,NGF CS,ENVIRONMENT & COMMUNITY,OTHER AGENCIES,Revenue,DISBURSEMENTS,624004,120643250,30-Mar-15,450.00,42 BEDFORD ROW CHAMBERS,SP0009440
WANDSWORTH COUNCIL,NGF CS,ADMINISTRATION,OTHER AGENCIES,Revenue,DISBURSEMENTS,20303050,120643250,30-Mar-15,6.00,A S B LAW,2008363
WANDSWORTH COUNCIL,NGF CS,ENVIRONMENT & COMMUNITY,OTHER AGENCIES,Revenue,DISBURSEMENTS,620938,120643250,26-Mar-15,492.14,BEVERLEY F NUNNERY & CO,SP0003376
WANDSWORTH COUNCIL,NGF CS,ENVIRONMENT & COMMUNITY,OTHER AGENCIES,Revenue,DISBURSEMENTS,617215,120643250,23-Mar-15,566.66,DR G S STEIN,SP0003903
WANDSWORTH COUNCIL,NGF CS,ENVIRONMENT & COMMUNITY,OTHER AGENCIES,Revenue,DISBURSEMENTS,617221,120643250,23-Mar-15,"2,952.00",DR JUDITH FREEDMAN,SP0009242
WANDSWORTH COUNCIL,NGF CS,ENVIRONMENT & COMMUNITY,OTHER AGENCIES,Revenue,DISBURSEMENTS,601910,120643250,10-Mar-15,557.05,DR NICHOLAS MYTTAS,SP0009241
WANDSWORTH COUNCIL,NGF CS,ENVIRONMENT & COMMUNITY,OTHER AGENCIES,Revenue,DISBURSEMENTS,601911,120643250,10-Mar-15,784.73,DR NICHOLAS MYTTAS,SP0009241
WANDSWORTH COUNCIL,NGF CS,ENVIRONMENT & COMMUNITY,OTHER AGENCIES,Revenue,DISBURSEMENTS,620944,120643250,26-Mar-15,640.00,DR RICHARD EYRE,SP0009339
WANDSWORTH COUNCIL,NGF CS,ENVIRONMENT & COMMUNITY,OTHER AGENCIES,Revenue,DISBURSEMENTS,620939,120643250,26-Mar-15,426.20,DSP PSYCHOLOGY,SP0009444
WANDSWORTH COUNCIL,NGF CS,ENVIRONMENT & COMMUNITY,OTHER AGENCIES,Revenue,DISBURSEMENTS,620940,120643250,26-Mar-15,585.00,DSP PSYCHOLOGY,SP0009444
WANDSWORTH COUNCIL,NGF CS,ENVIRONMENT & COMMUNITY,OTHER AGENCIES,Revenue,DISBURSEMENTS,608850,120643250,10-Mar-15,612.50,FIVE PAPER,SP0009057
WANDSWORTH COUNCIL,NGF CS,ENVIRONMENT & COMMUNITY,OTHER AGENCIES,Revenue,DISBURSEMENTS,598351,120643250,10-Mar-15,538.75,JORDANS PROPERTY SERVICES,SP0008948
WANDSWORTH COUNCIL,NGF CS,ENVIRONMENT & COMMUNITY,OTHER AGENCIES,Revenue,DISBURSEMENTS,598351,120643250,10-Mar-15,193.97,JORDANS PROPERTY SERVICES,SP0008948
WANDSWORTH COUNCIL,NGF CS,ENVIRONMENT & COMMUNITY,OTHER AGENCIES,Revenue,DISBURSEMENTS,607680,120643250,30-Mar-15,750.00,KBG CHAMBERS,SP0009269
WANDSWORTH COUNCIL,NGF CS,ENVIRONMENT & COMMUNITY,OTHER AGENCIES,Revenue,DISBURSEMENTS,616710,120643250,19-Mar-15,"1,749.15",NICOLA PEARSON,SP0009425
WANDSWORTH COUNCIL,NGF CS,ENVIRONMENT & COMMUNITY,OTHER AGENCIES,Revenue,DISBURSEMENTS,613280,120643250,18-Mar-15,850.00,PARTNER ABUSE INTERVENTIONS LTD,SP0006372
WANDSWORTH COUNCIL,NGF CS,ADMINISTRATION,OTHER AGENCIES,Revenue,DISBURSEMENTS,20301645,120643250,03-Mar-15,3.40,SHARPE PRITCHARD LLP,2011391
WANDSWORTH COUNCIL,NGF CS,ADMINISTRATION,OTHER AGENCIES,Revenue,DISBURSEMENTS,20301645,120643250,03-Mar-15,-46.00,SHARPE PRITCHARD LLP,2011391
WANDSWORTH COUNCIL,NGF CS,ADMINISTRATION,OTHER AGENCIES,Revenue,DISBURSEMENTS,20301645,120643250,03-Mar-15,-3.40,SHARPE PRITCHARD LLP,2011391
WANDSWORTH COUNCIL,NGF CS,ADMINISTRATION,OTHER AGENCIES,Revenue,DISBURSEMENTS,20301645,120643250,03-Mar-15,46.00,SHARPE PRITCHARD LLP,2011391
WANDSWORTH COUNCIL,NGF CS,ADMINISTRATION,OTHER AGENCIES,Revenue,DISBURSEMENTS,20303008,120643250,27-Mar-15,3.00,SHARPE PRITCHARD LLP,2011391
WANDSWORTH COUNCIL,NGF CS,ADMINISTRATION,OTHER AGENCIES,Revenue,DISBURSEMENTS,20303008,120643250,27-Mar-15,1.70,SHARPE PRITCHARD LLP,2011391
WANDSWORTH COUNCIL,NGF CS,ADMINISTRATION,OTHER AGENCIES,Revenue,DISBURSEMENTS,20303008,120643250,27-Mar-15,-3.00,SHARPE PRITCHARD LLP,2011391
WANDSWORTH COUNCIL,NGF CS,ADMINISTRATION,OTHER AGENCIES,Revenue,DISBURSEMENTS,20303008,120643250,27-Mar-15,-1.70,SHARPE PRITCHARD LLP,2011391
WANDSWORTH COUNCIL,NGF CS,ENVIRONMENT & COMMUNITY,OTHER AGENCIES,Revenue,DISBURSEMENTS,622268,120643250,27-Mar-15,87.00,SHARPE PRITCHARD LLP,SP0003677
WANDSWORTH COUNCIL,NGF CS,ENVIRONMENT & COMMUNITY,OTHER AGENCIES,Revenue,DISBURSEMENTS,622268,120643250,27-Mar-15,"1,629.14",SHARPE PRITCHARD LLP,SP0003677
WANDSWORTH COUNCIL,NGF CS,ENVIRONMENT & COMMUNITY,OTHER AGENCIES,Revenue,DISBURSEMENTS,623478,120643250,30-Mar-15,"2,141.05",SHARPE PRITCHARD LLP,SP0003677
WANDSWORTH COUNCIL,NGF CS,ENVIRONMENT & COMMUNITY,OTHER AGENCIES,Revenue,DISBURSEMENTS,623478,120643250,30-Mar-15,"1,792.60",SHARPE PRITCHARD LLP,SP0003677
WANDSWORTH COUNCIL,NGF CS,ADMINISTRATION,PRIVATE,Revenue,CONTRACT 7 - VNEB LEGAL,20302183,120645540,11-Mar-15,"-6,715.50",WINCKWORTH SHERWOOD LLP,2009504
WANDSWORTH COUNCIL,NGF CS,ADMINISTRATION,PRIVATE,Revenue,CONTRACT 7 - VNEB LEGAL,20302183,120645540,11-Mar-15,"6,715.50",WINCKWORTH SHERWOOD LLP,2009504
WANDSWORTH COUNCIL,NGF CS,ENVIRONMENT & COMMUNITY,PRIVATE,Revenue,CONTRACT 4- LITIGATION,623477,120646160,30-Mar-15,"30,938.59",SHARPE PRITCHARD LLP,SP0003677
WANDSWORTH COUNCIL,NGF CS,ADMINISTRATION,PRIVATE,Revenue,"CONTRACT 6- HWYS, PLAN ETC",20301876,120646170,06-Mar-15,"1,150.00",A S B LAW,2008363
WANDSWORTH COUNCIL,NGF CS,ADMINISTRATION,PRIVATE,Revenue,"CONTRACT 6- HWYS, PLAN ETC",20303050,120646170,30-Mar-15,"1,627.50",A S B LAW,2008363
WANDSWORTH COUNCIL,NGF CS,ADMINISTRATION,PRIVATE,Revenue,"CONTRACT 6- HWYS, PLAN ETC",20303067,120646170,30-Mar-15,512.50,A S B LAW,2008363
WANDSWORTH COUNCIL,NGF CS,ADMINISTRATION,PRIVATE,Revenue,"CONTRACT 6- HWYS, PLAN ETC",20301645,120646170,03-Mar-15,"-2,972.52",SHARPE PRITCHARD LLP,2011391
WANDSWORTH COUNCIL,NGF CS,ADMINISTRATION,PRIVATE,Revenue,"CONTRACT 6- HWYS, PLAN ETC",20301645,120646170,03-Mar-15,"2,972.52",SHARPE PRITCHARD LLP,2011391
WANDSWORTH COUNCIL,NGF CS,ADMINISTRATION,PRIVATE,Revenue,"CONTRACT 6- HWYS, PLAN ETC",20301651,120646170,03-Mar-15,"4,273.15",SHARPE PRITCHARD LLP,2011391
WANDSWORTH COUNCIL,NGF CS,ADMINISTRATION,PRIVATE,Revenue,"CONTRACT 6- HWYS, PLAN ETC",20301651,120646170,03-Mar-15,"-4,273.15",SHARPE PRITCHARD LLP,2011391
WANDSWORTH COUNCIL,NGF CS,ADMINISTRATION,PRIVATE,Revenue,"CONTRACT 6- HWYS, PLAN ETC",20303008,120646170,27-Mar-15,"-3,553.10",SHARPE PRITCHARD LLP,2011391
WANDSWORTH COUNCIL,NGF CS,ADMINISTRATION,PRIVATE,Revenue,"CONTRACT 6- HWYS, PLAN ETC",20303008,120646170,27-Mar-15,"3,553.10",SHARPE PRITCHARD LLP,2011391
WANDSWORTH COUNCIL,NGF CS,ENVIRONMENT & COMMUNITY,PRIVATE,Revenue,"CONTRACT 6- HWYS, PLAN ETC",622315,120646170,27-Mar-15,"2,091.48",SHARPE PRITCHARD LLP,SP0003677
WANDSWORTH COUNCIL,NGF CS,ENVIRONMENT & COMMUNITY,PRIVATE,Revenue,LOT 1 - LLORD SERVS PROP MGMT,613313,120746180,18-Mar-15,"13,996.20",LAMBERT SMITH HAMPTON,SP0002515
WANDSWORTH COUNCIL,NGF CS,ENVIRONMENT & COMMUNITY,PRIVATE,Revenue,LOT 1 - LLORD SERVS PROP MGMT,617222,120746180,23-Mar-15,"20,549.30",LAMBERT SMITH HAMPTON,SP0002515
WANDSWORTH COUNCIL,NGF CS,ENVIRONMENT & COMMUNITY,PRIVATE,Revenue,LOT 2 - GEN VALUATIONS,613314,120746250,18-Mar-15,"3,348.00",LAMBERT SMITH HAMPTON,SP0002515
WANDSWORTH COUNCIL,NGF CS,ADMINISTRATION,PRINTING STAT & GEN OFFICE EXP,Revenue,OUTWORK - MEDIA,20302009,121333350,23-Mar-15,500.00,LONDON WEEKLY NEWSPAPERS LTD,2003034
WANDSWORTH COUNCIL,NGF CS,ENVIRONMENT & COMMUNITY,PRINTING STAT & GEN OFFICE EXP,Revenue,OUTWORK - WEB OFFSET,625325,121333580,31-Mar-15,"10,820.00",WARNERS MIDLANDS PLC,SP0007709
WANDSWORTH COUNCIL,NGF CS,ENVIRONMENT & COMMUNITY,PRINTING STAT & GEN OFFICE EXP,Revenue,OUTWORK - WEB OFFSET,625326,121333580,31-Mar-15,"2,469.00",WOODFORD LITHO LTD,SP0007713
WANDSWORTH COUNCIL,NGF CS,ENVIRONMENT & COMMUNITY,PRINTING STAT & GEN OFFICE EXP,Revenue,OUTWORK - WEB OFFSET,625328,121333580,31-Mar-15,"2,238.00",WOODFORD LITHO LTD,SP0007713
WANDSWORTH COUNCIL,NGF CS,ENVIRONMENT & COMMUNITY,PRINTING STAT & GEN OFFICE EXP,Revenue,OUTWORK - LITHO,623161,121333590,27-Mar-15,"1,500.00",HALSTAN & CO LTD,SP0001850
WANDSWORTH COUNCIL,NGF CS,ADMINISTRATION,PRINTING STAT & GEN OFFICE EXP,Revenue,OUTWORK - LITHO,20302062,121333590,23-Mar-15,"3,995.00",HILL & GARWOOD PRINTING LTD,2007381
WANDSWORTH COUNCIL,NGF CS,ADMINISTRATION,PRINTING STAT & GEN OFFICE EXP,Revenue,OUTWORK - LITHO,20302044,121333590,23-Mar-15,762.00,IMPRESS PRINT SERVICES LTD,2008443
WANDSWORTH COUNCIL,NGF CS,ADMINISTRATION,PRINTING STAT & GEN OFFICE EXP,Revenue,OUTWORK - LITHO,20302045,121333590,23-Mar-15,"1,114.00",IMPRESS PRINT SERVICES LTD,2008443
WANDSWORTH COUNCIL,NGF CS,ADMINISTRATION,PRINTING STAT & GEN OFFICE EXP,Revenue,OUTWORK - LITHO,20302051,121333590,23-Mar-15,"2,938.00",IMPRESS PRINT SERVICES LTD,2008443
WANDSWORTH COUNCIL,NGF CS,ADMINISTRATION,PRINTING STAT & GEN OFFICE EXP,Revenue,OUTWORK - LITHO,20302053,121333590,23-Mar-15,"2,310.00",IMPRESS PRINT SERVICES LTD,2008443
WANDSWORTH COUNCIL,NGF CS,ADMINISTRATION,PRINTING STAT & GEN OFFICE EXP,Revenue,OUTWORK - LITHO,20302054,121333590,23-Mar-15,614.00,IMPRESS PRINT SERVICES LTD,2008443
WANDSWORTH COUNCIL,NGF CS,ADMINISTRATION,PRINTING STAT & GEN OFFICE EXP,Revenue,OUTWORK - LITHO,20302057,121333590,23-Mar-15,421.00,IMPRESS PRINT SERVICES LTD,2008443
WANDSWORTH COUNCIL,NGF CS,ADMINISTRATION,PRINTING STAT & GEN OFFICE EXP,Revenue,OUTWORK - LITHO,20302058,121333590,23-Mar-15,574.00,IMPRESS PRINT SERVICES LTD,2008443
WANDSWORTH COUNCIL,NGF CS,ENVIRONMENT & COMMUNITY,PRINTING STAT & GEN OFFICE EXP,Revenue,OUTWORK - LITHO,622308,121333590,27-Mar-15,810.00,IMPRESS PRINT SERVICES LTD,SP0003209
WANDSWORTH COUNCIL,NGF CS,ENVIRONMENT & COMMUNITY,PRINTING STAT & GEN OFFICE EXP,Revenue,OUTWORK - LITHO,623162,121333590,27-Mar-15,"1,364.00",IMPRESS PRINT SERVICES LTD,SP0003209
WANDSWORTH COUNCIL,NGF CS,ENVIRONMENT & COMMUNITY,PRINTING STAT & GEN OFFICE EXP,Revenue,OUTWORK - LITHO,623164,121333590,27-Mar-15,"1,520.00",IMPRESS PRINT SERVICES LTD,SP0003209
WANDSWORTH COUNCIL,NGF CS,ADMINISTRATION,PRINTING STAT & GEN OFFICE EXP,Revenue,OUTWORK - LITHO,20302023,121333590,23-Mar-15,750.00,KALL KWIK,2007566
WANDSWORTH COUNCIL,NGF CS,ADMINISTRATION,PRINTING STAT & GEN OFFICE EXP,Revenue,OUTWORK - LITHO,20302026,121333590,23-Mar-15,491.20,KALL KWIK,2007566
WANDSWORTH COUNCIL,NGF CS,ADMINISTRATION,PRINTING STAT & GEN OFFICE EXP,Revenue,OUTWORK - LITHO,20302027,121333590,23-Mar-15,491.20,KALL KWIK,2007566
WANDSWORTH COUNCIL,NGF CS,ENVIRONMENT & COMMUNITY,PRINTING STAT & GEN OFFICE EXP,Revenue,OUTWORK - LITHO,608028,121333590,09-Mar-15,594.16,KALL KWIK,SP0003093
WANDSWORTH COUNCIL,NGF CS,ENVIRONMENT & COMMUNITY,PRINTING STAT & GEN OFFICE EXP,Revenue,OUTWORK - LITHO,623165,121333590,27-Mar-15,750.00,KALL KWIK,SP0003093
WANDSWORTH COUNCIL,NGF CS,ENVIRONMENT & COMMUNITY,PRINTING STAT & GEN OFFICE EXP,Revenue,OUTWORK - LITHO,623172,121333590,27-Mar-15,450.00,KALL KWIK,SP0003093
WANDSWORTH COUNCIL,NGF CS,ENVIRONMENT & COMMUNITY,PRINTING STAT & GEN OFFICE EXP,Revenue,OUTWORK - LITHO,623178,121333590,27-Mar-15,433.20,KALL KWIK,SP0003093
WANDSWORTH COUNCIL,NGF CS,ENVIRONMENT & COMMUNITY,PRINTING STAT & GEN OFFICE EXP,Revenue,OUTWORK - LITHO,623181,121333590,27-Mar-15,532.64,KALL KWIK,SP0003093
WANDSWORTH COUNCIL,NGF CS,ADMINISTRATION,PRINTING STAT & GEN OFFICE EXP,Revenue,OUTWORK - EXTERN NON FRAMEWORK,20302018,121333600,23-Mar-15,450.00,LONDON LETTERBOX MARKETING,2003685
WANDSWORTH COUNCIL,NGF CS,ADMINISTRATION,PRINTING STAT & GEN OFFICE EXP,Revenue,OUTWORK - EXTERN NON FRAMEWORK,20302041,121333600,23-Mar-15,641.00,ONNEKAS LTD (MARTINS),2007366
WANDSWORTH COUNCIL,NGF CS,ENVIRONMENT & COMMUNITY,"EQUIPMENT, FURNITURE & MATS",Revenue,"EQUIPMENT, FURNITURE & MATS",609692,121430000,10-Mar-15,684.42,CANON (UK) LTD,SP0000262
WANDSWORTH COUNCIL,NGF CS,ENVIRONMENT & COMMUNITY,"EQUIPMENT, FURNITURE & MATS",Revenue,"EQUIPMENT, FURNITURE & MATS",609692,121430000,10-Mar-15,684.42,CANON (UK) LTD,SP0000262
WANDSWORTH COUNCIL,NGF CS,ENVIRONMENT & COMMUNITY,"EQUIPMENT, FURNITURE & MATS",Revenue,"EQUIPMENT, FURNITURE & MATS",609692,121430000,10-Mar-15,684.42,CANON (UK) LTD,SP0000262
WANDSWORTH COUNCIL,NGF CS,ENVIRONMENT & COMMUNITY,"EQUIPMENT, FURNITURE & MATS",Revenue,"EQUIPMENT, FURNITURE & MATS",609692,121430000,10-Mar-15,684.42,CANON (UK) LTD,SP0000262
WANDSWORTH COUNCIL,NGF CS,ENVIRONMENT & COMMUNITY,"EQUIPMENT, FURNITURE & MATS",Revenue,OP COSTS - QUICKPRINT MACHINE,608920,121430230,10-Mar-15,739.71,RICOH UK LTD,SP0002316
WANDSWORTH COUNCIL,NGF CS,ENVIRONMENT & COMMUNITY,"EQUIPMENT, FURNITURE & MATS",Revenue,OP COSTS - QUICKPRINT MACHINE,609019,121430230,10-Mar-15,"1,278.47",RICOH UK LTD,SP0002316
WANDSWORTH COUNCIL,NGF CS,ENVIRONMENT & COMMUNITY,"EQUIPMENT, FURNITURE & MATS",Revenue,OP COSTS -COLOUR COPIER RENTAL,605131,121430240,09-Mar-15,754.98,CANON,SP0002304
WANDSWORTH COUNCIL,NGF CS,ENVIRONMENT & COMMUNITY,PRINTING STAT & GEN OFFICE EXP,Revenue,PAPER - QUICKPRINT,605224,121433370,04-Mar-15,70.80,CANON (UK) LTD,SP0000262
WANDSWORTH COUNCIL,NGF CS,ENVIRONMENT & COMMUNITY,PRINTING STAT & GEN OFFICE EXP,Revenue,PAPER - QUICKPRINT,605224,121433370,04-Mar-15,246.60,CANON (UK) LTD,SP0000262
WANDSWORTH COUNCIL,NGF CS,ENVIRONMENT & COMMUNITY,PRINTING STAT & GEN OFFICE EXP,Revenue,PAPER - QUICKPRINT,605224,121433370,04-Mar-15,572.80,CANON (UK) LTD,SP0000262
WANDSWORTH COUNCIL,NGF CS,ENVIRONMENT & COMMUNITY,PRINTING STAT & GEN OFFICE EXP,Revenue,PAPER - QUICKPRINT,605224,121433370,04-Mar-15,128.70,CANON (UK) LTD,SP0000262
WANDSWORTH COUNCIL,NGF CS,ENVIRONMENT & COMMUNITY,PRINTING STAT & GEN OFFICE EXP,Revenue,PAPER - QUICKPRINT,605224,121433370,04-Mar-15,143.36,CANON (UK) LTD,SP0000262
WANDSWORTH COUNCIL,NGF CS,ENVIRONMENT & COMMUNITY,PRINTING STAT & GEN OFFICE EXP,Revenue,PAPER - QUICKPRINT,605224,121433370,04-Mar-15,208.80,CANON (UK) LTD,SP0000262
WANDSWORTH COUNCIL,NGF CS,ENVIRONMENT & COMMUNITY,PRINTING STAT & GEN OFFICE EXP,Revenue,PAPER - QUICKPRINT,605224,121433370,04-Mar-15,81.60,CANON (UK) LTD,SP0000262
WANDSWORTH COUNCIL,NGF CS,ENVIRONMENT & COMMUNITY,PRINTING STAT & GEN OFFICE EXP,Revenue,PAPER - QUICKPRINT,605224,121433370,04-Mar-15,70.00,CANON (UK) LTD,SP0000262
WANDSWORTH COUNCIL,NGF CS,ENVIRONMENT & COMMUNITY,PRINTING STAT & GEN OFFICE EXP,Revenue,PAPER - QUICKPRINT,605224,121433370,04-Mar-15,83.44,CANON (UK) LTD,SP0000262
WANDSWORTH COUNCIL,NGF CS,ENVIRONMENT & COMMUNITY,PRINTING STAT & GEN OFFICE EXP,Revenue,PAPER - QUICKPRINT,605224,121433370,04-Mar-15,40.48,CANON (UK) LTD,SP0000262
WANDSWORTH COUNCIL,NGF CS,ENVIRONMENT & COMMUNITY,PRINTING STAT & GEN OFFICE EXP,Revenue,PAPER - QUICKPRINT,605224,121433370,04-Mar-15,75.30,CANON (UK) LTD,SP0000262
WANDSWORTH COUNCIL,NGF CS,ENVIRONMENT & COMMUNITY,PRINTING STAT & GEN OFFICE EXP,Revenue,PAPER - QUICKPRINT,605224,121433370,04-Mar-15,42.48,CANON (UK) LTD,SP0000262
WANDSWORTH COUNCIL,NGF CS,ENVIRONMENT & COMMUNITY,PRINTING STAT & GEN OFFICE EXP,Revenue,PAPER - QUICKPRINT,605224,121433370,04-Mar-15,159.52,CANON (UK) LTD,SP0000262
WANDSWORTH COUNCIL,NGF CS,ENVIRONMENT & COMMUNITY,PRINTING STAT & GEN OFFICE EXP,Revenue,PAPER - QUICKPRINT,609692,121433370,10-Mar-15,159.72,CANON (UK) LTD,SP0000262
WANDSWORTH COUNCIL,NGF CS,ENVIRONMENT & COMMUNITY,PRINTING STAT & GEN OFFICE EXP,Revenue,PAPER - QUICKPRINT,622255,121433370,26-Mar-15,550.40,CANON (UK) LTD,SP0000262
WANDSWORTH COUNCIL,NGF CS,ENVIRONMENT & COMMUNITY,PRINTING STAT & GEN OFFICE EXP,Revenue,PAPER - QUICKPRINT,621669,121433370,26-Mar-15,171.80,ROBERT HORNE PAPER CO LTD T/A PAPERLINX,SP0002915
WANDSWORTH COUNCIL,NGF CS,ENVIRONMENT & COMMUNITY,PRINTING STAT & GEN OFFICE EXP,Revenue,PAPER - QUICKPRINT,621669,121433370,26-Mar-15,183.12,ROBERT HORNE PAPER CO LTD T/A PAPERLINX,SP0002915
WANDSWORTH COUNCIL,NGF CS,ENVIRONMENT & COMMUNITY,PRINTING STAT & GEN OFFICE EXP,Revenue,PAPER - QUICKPRINT,621669,121433370,26-Mar-15,158.24,ROBERT HORNE PAPER CO LTD T/A PAPERLINX,SP0002915
WANDSWORTH COUNCIL,NGF CS,ENVIRONMENT & COMMUNITY,PRINTING STAT & GEN OFFICE EXP,Revenue,PAPER - QUICKPRINT,622260,121433370,26-Mar-15,827.22,ROBERT HORNE PAPER CO LTD T/A PAPERLINX,SP0002915
WANDSWORTH COUNCIL,NGF CDC,ENVIRONMENT & COMMUNITY,PRINTING STAT & GEN OFFICE EXP,Revenue,PUBLICITY,608873,122033470,10-Mar-15,749.00,DOTMAILER LTD,SP0006264
WANDSWORTH COUNCIL,NGF CS,ADMINISTRATION,COMMUNICATIONS & COMP,Revenue,COMMUNICATIONS - POSTAGE,20301948,122136000,11-Mar-15,"1,687.26",ROYAL MAIL,2009044
WANDSWORTH COUNCIL,NGF CS,ADMINISTRATION,COMMUNICATIONS & COMP,Revenue,COMMUNICATIONS - POSTAGE,20302306,122136000,23-Mar-15,"1,069.94",ROYAL MAIL,2009044
WANDSWORTH COUNCIL,NGF CS,ADMINISTRATION,COMMUNICATIONS & COMP,Revenue,COMMUNICATIONS - POSTAGE,20303362,122136000,31-Mar-15,"5,903.87",ROYAL MAIL,2009044
WANDSWORTH COUNCIL,NGF CS,ADMINISTRATION,COMMUNICATIONS & COMP,Revenue,COMMUNICATIONS - POSTAGE,20303380,122136000,31-Mar-15,"8,971.64",ROYAL MAIL,2009044
WANDSWORTH COUNCIL,NGF CS,ADMINISTRATION,COMMUNICATIONS & COMP,Revenue,COMMUNICATIONS - POSTAGE,20301573,122136000,02-Mar-15,"3,520.11",WHISTL LONDON LIMITED,2011033
WANDSWORTH COUNCIL,NGF CS,ADMINISTRATION,COMMUNICATIONS & COMP,Revenue,COMMUNICATIONS - POSTAGE,20302322,122136000,23-Mar-15,"2,125.36",WHISTL LONDON LIMITED,2011033
WANDSWORTH COUNCIL,NGF CS,ADMINISTRATION,COMMUNICATIONS & COMP,Revenue,COMMUNICATIONS - POSTAGE,20302324,122136000,23-Mar-15,"2,025.34",WHISTL LONDON LIMITED,2011033
WANDSWORTH COUNCIL,NGF CS,ADMINISTRATION,COMMUNICATIONS & COMP,Revenue,COMMUNICATIONS - POSTAGE,20302325,122136000,23-Mar-15,"1,737.14",WHISTL LONDON LIMITED,2011033
WANDSWORTH COUNCIL,NGF CS,ADMINISTRATION,COMMUNICATIONS & COMP,Revenue,COMMUNICATIONS - POSTAGE,20303365,122136000,31-Mar-15,"5,856.10",WHISTL LONDON LIMITED,2011033
WANDSWORTH COUNCIL,NGF CS,ENVIRONMENT & COMMUNITY,INDIRECT,Revenue,IN-SERVICE TRAINING-SLA,608924,123000740,10-Mar-15,475.00,FIONNUALA MULLIN & ASSOCIATES,SP0006989
WANDSWORTH COUNCIL,NGF CS,ENVIRONMENT & COMMUNITY,INDIRECT,Revenue,IN-SERVICE TRAINING-SLA,608898,123000740,10-Mar-15,975.00,FIRST RESPONSE TRAINING,SP0005439
WANDSWORTH COUNCIL,NGF CS,ENVIRONMENT & COMMUNITY,INDIRECT,Revenue,IN-SERVICE TRAINING-SLA,603505,123000740,03-Mar-15,"1,500.00",ISV SOFTWARE LTD,SP0007152
WANDSWORTH COUNCIL,NGF CS,ENVIRONMENT & COMMUNITY,INDIRECT,Revenue,IN-SERVICE TRAINING-SLA,614156,123000740,18-Mar-15,700.00,LUCY JAQUES TRAINING,SP0003553
WANDSWORTH COUNCIL,NGF CS,ENVIRONMENT & COMMUNITY,INDIRECT,Revenue,IN-SERVICE TRAINING-SLA,614156,123000740,18-Mar-15,60.00,LUCY JAQUES TRAINING,SP0003553
WANDSWORTH COUNCIL,NGF CS,ENVIRONMENT & COMMUNITY,INDIRECT,Revenue,IN-SERVICE TRAINING-SLA,607624,123000740,10-Mar-15,998.00,QA LTD,SP0008675
WANDSWORTH COUNCIL,NGF CS,ENVIRONMENT & COMMUNITY,INDIRECT,Revenue,IN-SERVICE TRAINING-SLA,616371,123000740,20-Mar-15,625.00,TALKING LIFE,SP0007648
WANDSWORTH COUNCIL,NGF CS,ENVIRONMENT & COMMUNITY,INDIRECT,Revenue,IN-SERVICE TRAINING-SLA,614506,123000740,18-Mar-15,600.00,TRAINING OUTSOURCE LIMITED,SP0008861
WANDSWORTH COUNCIL,NGF CS,ENVIRONMENT & COMMUNITY,INDIRECT,Revenue,IN-SERVICE TRAINING-SLA,620003,123000740,25-Mar-15,915.00,TRAINING SYNERGY LTD,SP0000312
WANDSWORTH COUNCIL,NGF CS,ENVIRONMENT & COMMUNITY,INDIRECT,Revenue,IN-SERVICE TRAINING-SLA,613159,123000740,16-Mar-15,"1,380.00",VERITY BARTON,SP0003778
WANDSWORTH COUNCIL,NGF CS,ENVIRONMENT & COMMUNITY,INDIRECT,Revenue,TRAINING - APPROVED QUALS,612022,123000760,13-Mar-15,"2,284.00",C I P D,SP0007055
WANDSWORTH COUNCIL,NGF CS,ADMINISTRATION,INDIRECT,Revenue,CHILDCARE VOUCHERS,20301900,123200650,06-Mar-15,683.46,COMPUTERSHARE VOUCHER SERVICES,2007281
WANDSWORTH COUNCIL,NGF CS,ADMINISTRATION,INDIRECT,Revenue,CHILDCARE VOUCHERS,20301901,123200650,06-Mar-15,105.66,COMPUTERSHARE VOUCHER SERVICES,2007281
WANDSWORTH COUNCIL,NGF CS,ADMINISTRATION,INDIRECT,Revenue,CHILDCARE VOUCHERS,20302638,123200650,20-Mar-15,"1,102.45",COMPUTERSHARE VOUCHER SERVICES,2007281
WANDSWORTH COUNCIL,NGF CS,ADMINISTRATION,INDIRECT,Revenue,CHILDCARE VOUCHERS,20302639,123200650,20-Mar-15,100.58,COMPUTERSHARE VOUCHER SERVICES,2007281
WANDSWORTH COUNCIL,NGF CS,ADMINISTRATION,INDIRECT,Revenue,CHILDCARE VOUCHERS,20302640,123200650,20-Mar-15,21.87,COMPUTERSHARE VOUCHER SERVICES,2007281
WANDSWORTH COUNCIL,NGF CS,ENVIRONMENT & COMMUNITY,INDIRECT,Revenue,STAFF ADVERTISING - VACANCIES,623488,123200960,27-Mar-15,"2,182.64",CHEVIOT RECRUITMENT LTD,SP0005273
WANDSWORTH COUNCIL,NGF CS,ENVIRONMENT & COMMUNITY,PRINTING STAT & GEN OFFICE EXP,Revenue,PRINTING AND STATIONERY,608857,123233420,12-Mar-15,105.87,RICOH UK LTD,SP0002316
WANDSWORTH COUNCIL,NGF CS,ENVIRONMENT & COMMUNITY,PRINTING STAT & GEN OFFICE EXP,Revenue,PRINTING AND STATIONERY,608857,123233420,12-Mar-15,531.06,RICOH UK LTD,SP0002316
WANDSWORTH COUNCIL,NGF CS,ENVIRONMENT & COMMUNITY,PRINTING STAT & GEN OFFICE EXP,Revenue,PRINTING AND STATIONERY,608857,123233420,12-Mar-15,531.06,RICOH UK LTD,SP0002316
WANDSWORTH COUNCIL,NGF CS,ENVIRONMENT & COMMUNITY,PRINTING STAT & GEN OFFICE EXP,Revenue,PRINTING AND STATIONERY,608857,123233420,12-Mar-15,84.14,RICOH UK LTD,SP0002316
WANDSWORTH COUNCIL,NGF CS,ENVIRONMENT & COMMUNITY,PRINTING STAT & GEN OFFICE EXP,Revenue,PRINTING AND STATIONERY,608857,123233420,12-Mar-15,224.52,RICOH UK LTD,SP0002316
WANDSWORTH COUNCIL,NGF CS,ENVIRONMENT & COMMUNITY,PRINTING STAT & GEN OFFICE EXP,Revenue,PRINTING AND STATIONERY,608857,123233420,12-Mar-15,111.92,RICOH UK LTD,SP0002316
WANDSWORTH COUNCIL,NGF CS,ENVIRONMENT & COMMUNITY,PRINTING STAT & GEN OFFICE EXP,Revenue,PRINTING AND STATIONERY,608857,123233420,12-Mar-15,531.06,RICOH UK LTD,SP0002316
WANDSWORTH COUNCIL,NGF CS,ENVIRONMENT & COMMUNITY,PRINTING STAT & GEN OFFICE EXP,Revenue,PRINTING AND STATIONERY,608857,123233420,12-Mar-15,224.52,RICOH UK LTD,SP0002316
WANDSWORTH COUNCIL,NGF CS,ENVIRONMENT & COMMUNITY,PRINTING STAT & GEN OFFICE EXP,Revenue,PRINTING AND STATIONERY,608857,123233420,12-Mar-15,224.52,RICOH UK LTD,SP0002316
WANDSWORTH COUNCIL,NGF CS,ADMINISTRATION,SERVICES,Revenue,OHS SESSIONAL DOCTOR,20301931,123234690,10-Mar-15,500.00,DR John Stevens,2991000
WANDSWORTH COUNCIL,NGF CS,ENVIRONMENT & COMMUNITY,MISC,Revenue,MISCELLANEOUS EXPENSES,612453,123238500,13-Mar-15,"1,827.25",EDENRED UK GROUP LTD,SP0000238
WANDSWORTH COUNCIL,NGF CS,ADMINISTRATION,COMMUNICATIONS & COMP,Revenue,COMMUNICATIONS - POSTAGE,20303357,124736000,31-Mar-15,425.73,ROYAL MAIL,2009044
WANDSWORTH COUNCIL,NGF CS,ADMINISTRATION,COMMUNICATIONS & COMP,Revenue,COMMUNICATIONS - POSTAGE,20303361,124736000,31-Mar-15,"1,000.00",ROYAL MAIL,2009044
WANDSWORTH COUNCIL,PH,ENVIRONMENT & COMMUNITY,SERVICES,Revenue,PROJECT WORK,622275,125134800,26-Mar-15,"3,298.68",PLACES FOR PEOPLE - LATCHMERE LEISURE CT,SP0006367
WANDSWORTH COUNCIL,PH,ENVIRONMENT & COMMUNITY,HEALTH,Revenue,FOOTSTEP TO HEALTH (PILOT),619320,125141680,25-Mar-15,695.00,ACUITY TRAINING LTD,SP0009429
WANDSWORTH COUNCIL,NGF CS,FINANCE,DIRECT2,Revenue,AGENCY STAFF,20301841,126000510,06-Mar-15,928.38,MATRIX SCM LIMITED,2014926
WANDSWORTH COUNCIL,NGF CS,FINANCE,DIRECT2,Revenue,AGENCY STAFF,20301841,126000510,06-Mar-15,799.32,MATRIX SCM LIMITED,2014926
WANDSWORTH COUNCIL,NGF CS,FINANCE,DIRECT2,Revenue,AGENCY STAFF,20301841,126000510,06-Mar-15,918.79,MATRIX SCM LIMITED,2014926
WANDSWORTH COUNCIL,NGF CS,FINANCE,DIRECT2,Revenue,AGENCY STAFF,20301841,126000510,06-Mar-15,932.63,MATRIX SCM LIMITED,2014926
WANDSWORTH COUNCIL,NGF CS,FINANCE,DIRECT2,Revenue,AGENCY STAFF,20301841,126000510,06-Mar-15,"1,958.08",MATRIX SCM LIMITED,2014926
WANDSWORTH COUNCIL,NGF CS,FINANCE,DIRECT2,Revenue,AGENCY STAFF,20301841,126000510,06-Mar-15,"2,051.88",MATRIX SCM LIMITED,2014926
WANDSWORTH COUNCIL,NGF CS,FINANCE,DIRECT2,Revenue,AGENCY STAFF,20301841,126000510,06-Mar-15,"2,040.15",MATRIX SCM LIMITED,2014926
WANDSWORTH COUNCIL,NGF CS,FINANCE,DIRECT2,Revenue,AGENCY STAFF,20301841,126000510,06-Mar-15,"1,958.08",MATRIX SCM LIMITED,2014926
WANDSWORTH COUNCIL,NGF CS,FINANCE,DIRECT2,Revenue,AGENCY STAFF,20302239,126000510,12-Mar-15,"3,047.22",MATRIX SCM LIMITED,2014926
WANDSWORTH COUNCIL,NGF CS,FINANCE,DIRECT2,Revenue,AGENCY STAFF,20302239,126000510,12-Mar-15,936.79,MATRIX SCM LIMITED,2014926
WANDSWORTH COUNCIL,NGF CS,FINANCE,DIRECT2,Revenue,AGENCY STAFF,20302239,126000510,12-Mar-15,"3,421.44",MATRIX SCM LIMITED,2014926
WANDSWORTH COUNCIL,NGF CS,FINANCE,DIRECT2,Revenue,AGENCY STAFF,20302239,126000510,12-Mar-15,826.08,MATRIX SCM LIMITED,2014926
WANDSWORTH COUNCIL,NGF CS,FINANCE,DIRECT2,Revenue,AGENCY STAFF,20302239,126000510,12-Mar-15,"2,886.84",MATRIX SCM LIMITED,2014926
WANDSWORTH COUNCIL,NGF CS,FINANCE,DIRECT2,Revenue,AGENCY STAFF,20302239,126000510,12-Mar-15,"2,518.08",MATRIX SCM LIMITED,2014926
WANDSWORTH COUNCIL,NGF CS,FINANCE,DIRECT2,Revenue,AGENCY STAFF,20302998,126000510,27-Mar-15,930.80,MATRIX SCM LIMITED,2014926
WANDSWORTH COUNCIL,NGF CS,FINANCE,DIRECT2,Revenue,AGENCY STAFF,20302998,126000510,27-Mar-15,123.80,MATRIX SCM LIMITED,2014926
WANDSWORTH COUNCIL,NGF CS,FINANCE,DIRECT2,Revenue,AGENCY STAFF,20303036,126000510,27-Mar-15,"1,969.81",MATRIX SCM LIMITED,2014926
WANDSWORTH COUNCIL,NGF CS,FINANCE,DIRECT2,Revenue,AGENCY STAFF,20303036,126000510,27-Mar-15,445.68,MATRIX SCM LIMITED,2014926
WANDSWORTH COUNCIL,NGF CS,FINANCE,DIRECT2,Revenue,AGENCY STAFF,20303036,126000510,27-Mar-15,"1,969.81",MATRIX SCM LIMITED,2014926
WANDSWORTH COUNCIL,NGF CS,FINANCE,DIRECT2,Revenue,AGENCY STAFF,20303036,126000510,27-Mar-15,375.52,MATRIX SCM LIMITED,2014926
WANDSWORTH COUNCIL,NGF CS,FINANCE,DIRECT2,Revenue,AGENCY STAFF,20303036,126000510,27-Mar-15,"1,969.81",MATRIX SCM LIMITED,2014926
WANDSWORTH COUNCIL,NGF CS,FINANCE,DIRECT2,Revenue,AGENCY STAFF,20303036,126000510,27-Mar-15,"2,734.26",MATRIX SCM LIMITED,2014926
WANDSWORTH COUNCIL,NGF CS,FINANCE,DIRECT2,Revenue,AGENCY STAFF,20303036,126000510,27-Mar-15,151.13,MATRIX SCM LIMITED,2014926
WANDSWORTH COUNCIL,NGF CS,FINANCE,DIRECT2,Revenue,AGENCY STAFF,20303036,126000510,27-Mar-15,770.76,MATRIX SCM LIMITED,2014926
WANDSWORTH COUNCIL,NGF CS,FINANCE,DIRECT2,Revenue,AGENCY STAFF,20303036,126000510,27-Mar-15,813.58,MATRIX SCM LIMITED,2014926
WANDSWORTH COUNCIL,NGF CS,FINANCE,DIRECT2,Revenue,AGENCY STAFF,20303036,126000510,27-Mar-15,936.80,MATRIX SCM LIMITED,2014926
WANDSWORTH COUNCIL,NGF CS,ADMINISTRATION,COMMUNICATIONS & COMP,Revenue,CALLS USAGE,20302215,126036050,20-Mar-15,"1,811.73",VIRGIN MEDIA BUSINESS,2011718
WANDSWORTH COUNCIL,NGF CS,ADMINISTRATION,COMMUNICATIONS & COMP,Revenue,CALLS USAGE,20302469,126236050,30-Mar-15,"1,879.55",CABLE & WIRELESS COMMUNICATIONS,2009023
WANDSWORTH COUNCIL,NGF CS,FINANCE,DIRECT2,Revenue,AGENCY STAFF,20301841,126300510,06-Mar-15,698.64,MATRIX SCM LIMITED,2014926
WANDSWORTH COUNCIL,NGF CS,FINANCE,DIRECT2,Revenue,AGENCY STAFF,20303036,126300510,27-Mar-15,715.68,MATRIX SCM LIMITED,2014926
WANDSWORTH COUNCIL,NGF CS,ADMINISTRATION,"EQUIPMENT, FURNITURE & MATS",Revenue,"EQUIPMENT, FURNITURE & MATS",20302360,126330000,20-Mar-15,"1,055.25",CABLE & WIRELESS COMMUNICATIONS,2009023
WANDSWORTH COUNCIL,NGF CS,ADMINISTRATION,"EQUIPMENT, FURNITURE & MATS",Revenue,"EQUIPMENT, FURNITURE & MATS",20302469,126330000,30-Mar-15,385.50,CABLE & WIRELESS COMMUNICATIONS,2009023
WANDSWORTH COUNCIL,NGF CS,ADMINISTRATION,"EQUIPMENT, FURNITURE & MATS",Revenue,"EQUIPMENT, FURNITURE & MATS",20302215,126330000,20-Mar-15,"1,474.00",VIRGIN MEDIA BUSINESS,2011718
WANDSWORTH COUNCIL,NGF CS,ADMINISTRATION,"EQUIPMENT, FURNITURE & MATS",Revenue,"EQUIPMENT, FURNITURE & MATS",20302522,126330000,20-Mar-15,"61,502.34",VODAFONE CORPORATE,2009219
WANDSWORTH COUNCIL,NGF CS,FINANCE,"EQUIPMENT, FURNITURE & MATS",Revenue,EQUIP.FURN & MATS-REPS & MTCE,625540,126330010,31-Mar-15,472.52,ACR LONDON LTD,SP0000193
WANDSWORTH COUNCIL,NGF CS,ADMINISTRATION,"EQUIPMENT, FURNITURE & MATS",Revenue,"EQUIPMENT, FURNITURE & MATS",20302771,126530000,30-Mar-15,"13,138.55",VIRGIN MEDIA BUSINESS,2011718
WANDSWORTH COUNCIL,NGF CS,ENVIRONMENT & COMMUNITY,COMMUNICATIONS & COMP,Revenue,I.T. SOFTWARE,607655,126536240,25-Mar-15,"11,848.14",SOFTWARE BOX LTD,SP0007589
WANDSWORTH COUNCIL,NGF CS,ENVIRONMENT & COMMUNITY,COMMUNICATIONS & COMP,Revenue,I.T. SOFTWARE,607655,126536240,25-Mar-15,"3,142.90",SOFTWARE BOX LTD,SP0007589
WANDSWORTH COUNCIL,NGF CS,ENVIRONMENT & COMMUNITY,COMMUNICATIONS & COMP,Revenue,I.T. SOFTWARE,607656,126536240,25-Mar-15,"11,551.64",SOFTWARE BOX LTD,SP0007589
WANDSWORTH COUNCIL,NGF CS,ENVIRONMENT & COMMUNITY,COMMUNICATIONS & COMP,Revenue,I.T. DEVELOPMENTS,620752,126836200,25-Mar-15,695.00,REPROPOINT,SP0001643
WANDSWORTH COUNCIL,NGF CS,ENVIRONMENT & COMMUNITY,COMMUNICATIONS & COMP,Revenue,I.T. - SAFFRON,625334,126836260,31-Mar-15,"1,950.91",ARDENTA LTD,SP0006229
WANDSWORTH COUNCIL,NGF CS,ENVIRONMENT & COMMUNITY,COMMUNICATIONS & COMP,Revenue,I.T. - SAFFRON,624841,126836260,30-Mar-15,"2,690.00",FOUR Js DEVELOPMENT TOOLS EUROPE LTD,SP0000574
WANDSWORTH COUNCIL,NGF CS,ENVIRONMENT & COMMUNITY,COMMUNICATIONS & COMP,Revenue,I.T. - SAFFRON,607696,126836260,09-Mar-15,480.00,LEGAL ESCROW & ARBITRATION SERVICES LTD,SP0006406
WANDSWORTH COUNCIL,NGF CS,ENVIRONMENT & COMMUNITY,SERVICES,Revenue,PROJECT WORK,607729,127034800,10-Mar-15,"5,328.00",STORM FAMILY CENTRE LTD,SP0002613
WANDSWORTH COUNCIL,CS,ENVIRONMENT & COMMUNITY,DIRECT2,Revenue,AGENCY STAFF,608865,128000510,10-Mar-15,"12,159.05",MATRIX SCM LIMITED,SP0004572
WANDSWORTH COUNCIL,CS,ENVIRONMENT & COMMUNITY,DIRECT2,Revenue,AGENCY STAFF,613225,128000510,18-Mar-15,"21,789.45",MATRIX SCM LIMITED,SP0004572
WANDSWORTH COUNCIL,CS,ENVIRONMENT & COMMUNITY,DIRECT2,Revenue,AGENCY STAFF,619317,128000510,25-Mar-15,"19,376.13",MATRIX SCM LIMITED,SP0004572
WANDSWORTH COUNCIL,CS,ENVIRONMENT & COMMUNITY,INDIRECT,Revenue,STAFF ADVERTISING - VACANCIES,597828,128000960,16-Mar-15,"3,196.75",PENNA PLC,SP0006290
WANDSWORTH COUNCIL,CS,ENVIRONMENT & COMMUNITY,INDIRECT,Revenue,STAFF ADVERTISING - VACANCIES,601059,128000960,03-Mar-15,863.00,PENNA PLC,SP0006290
WANDSWORTH COUNCIL,CS,ENVIRONMENT & COMMUNITY,INDIRECT,Revenue,STAFF ADVERTISING - VACANCIES,601060,128000960,03-Mar-15,"1,458.00",PENNA PLC,SP0006290
WANDSWORTH COUNCIL,CS,ENVIRONMENT & COMMUNITY,INDIRECT,Revenue,STAFF ADVERTISING - VACANCIES,604201,128000960,04-Mar-15,776.00,PENNA PLC,SP0006290
WANDSWORTH COUNCIL,CS,ENVIRONMENT & COMMUNITY,INDIRECT,Revenue,STAFF ADVERTISING - VACANCIES,604202,128000960,04-Mar-15,776.00,PENNA PLC,SP0006290
WANDSWORTH COUNCIL,CS,ENVIRONMENT & COMMUNITY,INDIRECT,Revenue,STAFF ADVERTISING - VACANCIES,609774,128000960,12-Mar-15,823.00,PENNA PLC,SP0006290
WANDSWORTH COUNCIL,CS,ENVIRONMENT & COMMUNITY,INDIRECT,Revenue,STAFF ADVERTISING - VACANCIES,612471,128000960,13-Mar-15,776.00,PENNA PLC,SP0006290
WANDSWORTH COUNCIL,CS,ENVIRONMENT & COMMUNITY,INDIRECT,Revenue,STAFF ADVERTISING - VACANCIES,612934,128000960,16-Mar-15,"4,640.00",PENNA PLC,SP0006290
WANDSWORTH COUNCIL,CS,ENVIRONMENT & COMMUNITY,INDIRECT,Revenue,STAFF ADVERTISING - VACANCIES,612935,128000960,16-Mar-15,"1,113.00",PENNA PLC,SP0006290
WANDSWORTH COUNCIL,CS,ENVIRONMENT & COMMUNITY,INDIRECT,Revenue,STAFF ADVERTISING - VACANCIES,612936,128000960,16-Mar-15,"1,113.00",PENNA PLC,SP0006290
WANDSWORTH COUNCIL,CS,ENVIRONMENT & COMMUNITY,INDIRECT,Revenue,STAFF ADVERTISING - VACANCIES,612937,128000960,16-Mar-15,"1,599.00",PENNA PLC,SP0006290
WANDSWORTH COUNCIL,CS,ENVIRONMENT & COMMUNITY,INDIRECT,Revenue,STAFF ADVERTISING - VACANCIES,613184,128000960,16-Mar-15,562.00,PENNA PLC,SP0006290
WANDSWORTH COUNCIL,CS,ENVIRONMENT & COMMUNITY,INDIRECT,Revenue,STAFF ADVERTISING - VACANCIES,614568,128000960,18-Mar-15,776.00,PENNA PLC,SP0006290
WANDSWORTH COUNCIL,CS,ENVIRONMENT & COMMUNITY,INDIRECT,Revenue,STAFF ADVERTISING - VACANCIES,616370,128000960,20-Mar-15,776.00,PENNA PLC,SP0006290
WANDSWORTH COUNCIL,CS,ENVIRONMENT & COMMUNITY,INDIRECT,Revenue,STAFF ADVERTISING - VACANCIES,616383,128000960,20-Mar-15,"2,758.00",PENNA PLC,SP0006290
WANDSWORTH COUNCIL,CS,ENVIRONMENT & COMMUNITY,INDIRECT,Revenue,STAFF ADVERTISING - VACANCIES,617448,128000960,23-Mar-15,776.00,PENNA PLC,SP0006290
WANDSWORTH COUNCIL,CS,ENVIRONMENT & COMMUNITY,INDIRECT,Revenue,STAFF ADVERTISING - VACANCIES,620000,128000960,25-Mar-15,"2,830.46",PENNA PLC,SP0006290
WANDSWORTH COUNCIL,CS,ENVIRONMENT & COMMUNITY,HEALTH,Revenue,THIRD PARTY PYMT - HEALTH,603472,128041130,03-Mar-15,779.33,CARE UK CLINICAL SERVICES LTD,SP0005790
WANDSWORTH COUNCIL,CS,ENVIRONMENT & COMMUNITY,HEALTH,Revenue,THIRD PARTY PYMT - HEALTH,605204,128041130,05-Mar-15,"4,294.29",CARE UK CLINICAL SERVICES LTD,SP0005790
WANDSWORTH COUNCIL,CS,ENVIRONMENT & COMMUNITY,HEALTH,Revenue,THIRD PARTY PYMT - HEALTH,612465,128041130,31-Mar-15,"3,342.50",CHATFIELD HEALTH CARE,SP0002903
WANDSWORTH COUNCIL,CS,ENVIRONMENT & COMMUNITY,HEALTH,Revenue,THIRD PARTY PYMT - HEALTH,601909,128041130,12-Mar-15,"3,075.25",ELBOROUGH STREET SURGERY H85057,SP0007971
WANDSWORTH COUNCIL,CS,ENVIRONMENT & COMMUNITY,HEALTH,Revenue,THIRD PARTY PYMT - HEALTH,607635,128041130,10-Mar-15,"2,325.00",PEARL CHEMIST LTD,SP0004997
WANDSWORTH COUNCIL,CS,ENVIRONMENT & COMMUNITY,HEALTH,Revenue,THIRD PARTY PYMT - HEALTH,612017,128041130,13-Mar-15,"1,327.36",QUEENSTOWN ROAD MEDICAL PRACTICE H85003,SP0003591
WANDSWORTH COUNCIL,CS,ENVIRONMENT & COMMUNITY,HEALTH,Revenue,THIRD PARTY PYMT - HEALTH,612468,128041130,13-Mar-15,598.35,THE ROEHAMPTON SURGERY,SP0008174
WANDSWORTH COUNCIL,ASC,SOCIAL SERVICES,HIRE,Revenue,HIRE - TRANSPORT,604434,130020410,03-Mar-15,"1,232.00",A STAR TRANSPORT LTD,SP0000866
WANDSWORTH COUNCIL,ASC,SOCIAL SERVICES,HIRE,Revenue,HIRE - TRANSPORT,604444,130020410,03-Mar-15,"1,160.00",A STAR TRANSPORT LTD,SP0000866
WANDSWORTH COUNCIL,ASC,SOCIAL SERVICES,HIRE,Revenue,HIRE - TRANSPORT,604366,130020410,03-Mar-15,"1,534.35",BECKETT CORPORATION LTD T/A TINAS CARS,SP0000729
WANDSWORTH COUNCIL,ASC,SOCIAL SERVICES,HIRE,Revenue,HIRE - TRANSPORT,615405,130020410,17-Mar-15,"1,392.75",BECKETT CORPORATION LTD T/A TINAS CARS,SP0000729
WANDSWORTH COUNCIL,ASC,SOCIAL SERVICES,HIRE,Revenue,HIRE - TRANSPORT,604392,130220410,03-Mar-15,"1,008.00",A STAR TRANSPORT LTD,SP0000866
WANDSWORTH COUNCIL,ASC,SOCIAL SERVICES,HIRE,Revenue,HIRE - TRANSPORT,604393,130220410,03-Mar-15,479.44,A STAR TRANSPORT LTD,SP0000866
WANDSWORTH COUNCIL,ASC,SOCIAL SERVICES,HIRE,Revenue,HIRE - TRANSPORT,604394,130220410,03-Mar-15,748.50,A STAR TRANSPORT LTD,SP0000866
WANDSWORTH COUNCIL,ASC,SOCIAL SERVICES,HIRE,Revenue,HIRE - TRANSPORT,604395,130220410,03-Mar-15,598.50,A STAR TRANSPORT LTD,SP0000866
WANDSWORTH COUNCIL,ASC,SOCIAL SERVICES,HIRE,Revenue,HIRE - TRANSPORT,604396,130220410,03-Mar-15,404.00,A STAR TRANSPORT LTD,SP0000866
WANDSWORTH COUNCIL,ASC,SOCIAL SERVICES,HIRE,Revenue,HIRE - TRANSPORT,604398,130220410,03-Mar-15,790.20,A STAR TRANSPORT LTD,SP0000866
WANDSWORTH COUNCIL,ASC,SOCIAL SERVICES,HIRE,Revenue,HIRE - TRANSPORT,604399,130220410,03-Mar-15,789.90,A STAR TRANSPORT LTD,SP0000866
WANDSWORTH COUNCIL,ASC,SOCIAL SERVICES,HIRE,Revenue,HIRE - TRANSPORT,604400,130220410,03-Mar-15,789.90,A STAR TRANSPORT LTD,SP0000866
WANDSWORTH COUNCIL,ASC,SOCIAL SERVICES,HIRE,Revenue,HIRE - TRANSPORT,604402,130220410,03-Mar-15,544.00,A STAR TRANSPORT LTD,SP0000866
WANDSWORTH COUNCIL,ASC,SOCIAL SERVICES,HIRE,Revenue,HIRE - TRANSPORT,604403,130220410,03-Mar-15,880.00,A STAR TRANSPORT LTD,SP0000866
WANDSWORTH COUNCIL,ASC,SOCIAL SERVICES,HIRE,Revenue,HIRE - TRANSPORT,604405,130220410,03-Mar-15,552.00,A STAR TRANSPORT LTD,SP0000866
WANDSWORTH COUNCIL,ASC,SOCIAL SERVICES,HIRE,Revenue,HIRE - TRANSPORT,604406,130220410,03-Mar-15,"1,000.00",A STAR TRANSPORT LTD,SP0000866
WANDSWORTH COUNCIL,ASC,SOCIAL SERVICES,HIRE,Revenue,HIRE - TRANSPORT,604407,130220410,03-Mar-15,"1,088.00",A STAR TRANSPORT LTD,SP0000866
WANDSWORTH COUNCIL,ASC,SOCIAL SERVICES,HIRE,Revenue,HIRE - TRANSPORT,604410,130220410,03-Mar-15,"1,000.00",A STAR TRANSPORT LTD,SP0000866
WANDSWORTH COUNCIL,ASC,SOCIAL SERVICES,HIRE,Revenue,HIRE - TRANSPORT,604411,130220410,03-Mar-15,"1,000.00",A STAR TRANSPORT LTD,SP0000866
WANDSWORTH COUNCIL,ASC,SOCIAL SERVICES,HIRE,Revenue,HIRE - TRANSPORT,604416,130220410,03-Mar-15,644.00,A STAR TRANSPORT LTD,SP0000866
WANDSWORTH COUNCIL,ASC,SOCIAL SERVICES,HIRE,Revenue,HIRE - TRANSPORT,604418,130220410,03-Mar-15,910.00,A STAR TRANSPORT LTD,SP0000866
WANDSWORTH COUNCIL,ASC,SOCIAL SERVICES,HIRE,Revenue,HIRE - TRANSPORT,604420,130220410,03-Mar-15,888.00,A STAR TRANSPORT LTD,SP0000866
WANDSWORTH COUNCIL,ASC,SOCIAL SERVICES,HIRE,Revenue,HIRE - TRANSPORT,604421,130220410,03-Mar-15,536.00,A STAR TRANSPORT LTD,SP0000866
WANDSWORTH COUNCIL,ASC,SOCIAL SERVICES,HIRE,Revenue,HIRE - TRANSPORT,604422,130220410,03-Mar-15,432.00,A STAR TRANSPORT LTD,SP0000866
WANDSWORTH COUNCIL,ASC,SOCIAL SERVICES,HIRE,Revenue,HIRE - TRANSPORT,604425,130220410,03-Mar-15,"1,876.00",A STAR TRANSPORT LTD,SP0000866
WANDSWORTH COUNCIL,ASC,SOCIAL SERVICES,HIRE,Revenue,HIRE - TRANSPORT,604426,130220410,03-Mar-15,500.10,A STAR TRANSPORT LTD,SP0000866
WANDSWORTH COUNCIL,ASC,SOCIAL SERVICES,HIRE,Revenue,HIRE - TRANSPORT,604427,130220410,03-Mar-15,500.10,A STAR TRANSPORT LTD,SP0000866
WANDSWORTH COUNCIL,ASC,SOCIAL SERVICES,HIRE,Revenue,HIRE - TRANSPORT,604428,130220410,03-Mar-15,499.80,A STAR TRANSPORT LTD,SP0000866
WANDSWORTH COUNCIL,ASC,SOCIAL SERVICES,HIRE,Revenue,HIRE - TRANSPORT,604429,130220410,03-Mar-15,767.36,A STAR TRANSPORT LTD,SP0000866
WANDSWORTH COUNCIL,ASC,SOCIAL SERVICES,HIRE,Revenue,HIRE - TRANSPORT,604430,130220410,03-Mar-15,624.00,A STAR TRANSPORT LTD,SP0000866
WANDSWORTH COUNCIL,ASC,SOCIAL SERVICES,HIRE,Revenue,HIRE - TRANSPORT,604431,130220410,03-Mar-15,"1,240.00",A STAR TRANSPORT LTD,SP0000866
WANDSWORTH COUNCIL,ASC,SOCIAL SERVICES,HIRE,Revenue,HIRE - TRANSPORT,604433,130220410,03-Mar-15,750.00,A STAR TRANSPORT LTD,SP0000866
WANDSWORTH COUNCIL,ASC,SOCIAL SERVICES,HIRE,Revenue,HIRE - TRANSPORT,604435,130220410,03-Mar-15,616.24,A STAR TRANSPORT LTD,SP0000866
WANDSWORTH COUNCIL,ASC,SOCIAL SERVICES,HIRE,Revenue,HIRE - TRANSPORT,604437,130220410,03-Mar-15,450.00,A STAR TRANSPORT LTD,SP0000866
WANDSWORTH COUNCIL,ASC,SOCIAL SERVICES,HIRE,Revenue,HIRE - TRANSPORT,604439,130220410,03-Mar-15,888.00,A STAR TRANSPORT LTD,SP0000866
WANDSWORTH COUNCIL,ASC,SOCIAL SERVICES,HIRE,Revenue,HIRE - TRANSPORT,604441,130220410,03-Mar-15,456.00,A STAR TRANSPORT LTD,SP0000866
WANDSWORTH COUNCIL,ASC,SOCIAL SERVICES,HIRE,Revenue,HIRE - TRANSPORT,604442,130220410,03-Mar-15,450.00,A STAR TRANSPORT LTD,SP0000866
WANDSWORTH COUNCIL,ASC,SOCIAL SERVICES,HIRE,Revenue,HIRE - TRANSPORT,604443,130220410,03-Mar-15,852.00,A STAR TRANSPORT LTD,SP0000866
WANDSWORTH COUNCIL,ASC,SOCIAL SERVICES,HIRE,Revenue,HIRE - TRANSPORT,604446,130220410,03-Mar-15,573.80,A STAR TRANSPORT LTD,SP0000866
WANDSWORTH COUNCIL,ASC,SOCIAL SERVICES,HIRE,Revenue,HIRE - TRANSPORT,604449,130220410,03-Mar-15,546.36,A STAR TRANSPORT LTD,SP0000866
WANDSWORTH COUNCIL,ASC,SOCIAL SERVICES,HIRE,Revenue,HIRE - TRANSPORT,604453,130220410,03-Mar-15,566.28,A STAR TRANSPORT LTD,SP0000866
WANDSWORTH COUNCIL,ASC,SOCIAL SERVICES,HIRE,Revenue,HIRE - TRANSPORT,620296,130220410,25-Mar-15,967.92,A STAR TRANSPORT LTD,SP0000866
WANDSWORTH COUNCIL,ASC,SOCIAL SERVICES,HIRE,Revenue,HIRE - TRANSPORT,620298,130220410,25-Mar-15,692.00,A STAR TRANSPORT LTD,SP0000866
WANDSWORTH COUNCIL,ASC,SOCIAL SERVICES,HIRE,Revenue,HIRE - TRANSPORT,620299,130220410,25-Mar-15,"1,033.60",A STAR TRANSPORT LTD,SP0000866
WANDSWORTH COUNCIL,ASC,SOCIAL SERVICES,HIRE,Revenue,HIRE - TRANSPORT,620300,130220410,25-Mar-15,"1,033.20",A STAR TRANSPORT LTD,SP0000866
WANDSWORTH COUNCIL,ASC,SOCIAL SERVICES,HIRE,Revenue,HIRE - TRANSPORT,623128,130220410,26-Mar-15,468.00,A STAR TRANSPORT LTD,SP0000866
WANDSWORTH COUNCIL,ASC,SOCIAL SERVICES,HIRE,Revenue,HIRE - TRANSPORT,604361,130220410,03-Mar-15,575.22,BECKETT CORPORATION LTD T/A TINAS CARS,SP0000729
WANDSWORTH COUNCIL,ASC,SOCIAL SERVICES,HIRE,Revenue,HIRE - TRANSPORT,604364,130220410,03-Mar-15,615.03,BECKETT CORPORATION LTD T/A TINAS CARS,SP0000729
WANDSWORTH COUNCIL,ASC,SOCIAL SERVICES,HIRE,Revenue,HIRE - TRANSPORT,604369,130220410,03-Mar-15,108.48,BECKETT CORPORATION LTD T/A TINAS CARS,SP0000729
WANDSWORTH COUNCIL,ASC,SOCIAL SERVICES,HIRE,Revenue,HIRE - TRANSPORT,604371,130220410,03-Mar-15,"1,257.84",BECKETT CORPORATION LTD T/A TINAS CARS,SP0000729
WANDSWORTH COUNCIL,ASC,SOCIAL SERVICES,HIRE,Revenue,HIRE - TRANSPORT,604372,130220410,03-Mar-15,490.72,BECKETT CORPORATION LTD T/A TINAS CARS,SP0000729
WANDSWORTH COUNCIL,ASC,SOCIAL SERVICES,HIRE,Revenue,HIRE - TRANSPORT,604373,130220410,03-Mar-15,"1,210.00",BECKETT CORPORATION LTD T/A TINAS CARS,SP0000729
WANDSWORTH COUNCIL,ASC,SOCIAL SERVICES,HIRE,Revenue,HIRE - TRANSPORT,604374,130220410,03-Mar-15,539.88,BECKETT CORPORATION LTD T/A TINAS CARS,SP0000729
WANDSWORTH COUNCIL,ASC,SOCIAL SERVICES,HIRE,Revenue,HIRE - TRANSPORT,604377,130220410,03-Mar-15,"1,966.50",BECKETT CORPORATION LTD T/A TINAS CARS,SP0000729
WANDSWORTH COUNCIL,ASC,SOCIAL SERVICES,HIRE,Revenue,HIRE - TRANSPORT,604378,130220410,03-Mar-15,538.62,BECKETT CORPORATION LTD T/A TINAS CARS,SP0000729
WANDSWORTH COUNCIL,ASC,SOCIAL SERVICES,HIRE,Revenue,HIRE - TRANSPORT,604379,130220410,03-Mar-15,538.62,BECKETT CORPORATION LTD T/A TINAS CARS,SP0000729
WANDSWORTH COUNCIL,ASC,SOCIAL SERVICES,HIRE,Revenue,HIRE - TRANSPORT,615401,130220410,17-Mar-15,601.95,BECKETT CORPORATION LTD T/A TINAS CARS,SP0000729
WANDSWORTH COUNCIL,ASC,SOCIAL SERVICES,HIRE,Revenue,HIRE - TRANSPORT,615407,130220410,17-Mar-15,137.12,BECKETT CORPORATION LTD T/A TINAS CARS,SP0000729
WANDSWORTH COUNCIL,ASC,SOCIAL SERVICES,HIRE,Revenue,HIRE - TRANSPORT,615408,130220410,17-Mar-15,"1,098.92",BECKETT CORPORATION LTD T/A TINAS CARS,SP0000729
WANDSWORTH COUNCIL,ASC,SOCIAL SERVICES,HIRE,Revenue,HIRE - TRANSPORT,615409,130220410,17-Mar-15,460.05,BECKETT CORPORATION LTD T/A TINAS CARS,SP0000729
WANDSWORTH COUNCIL,ASC,SOCIAL SERVICES,HIRE,Revenue,HIRE - TRANSPORT,615410,130220410,17-Mar-15,770.00,BECKETT CORPORATION LTD T/A TINAS CARS,SP0000729
WANDSWORTH COUNCIL,ASC,SOCIAL SERVICES,HIRE,Revenue,HIRE - TRANSPORT,615411,130220410,17-Mar-15,"1,577.00",BECKETT CORPORATION LTD T/A TINAS CARS,SP0000729
WANDSWORTH COUNCIL,ASC,SOCIAL SERVICES,HIRE,Revenue,HIRE - TRANSPORT,615412,130220410,17-Mar-15,526.60,BECKETT CORPORATION LTD T/A TINAS CARS,SP0000729
WANDSWORTH COUNCIL,ASC,SOCIAL SERVICES,HIRE,Revenue,HIRE - TRANSPORT,615413,130220410,17-Mar-15,526.60,BECKETT CORPORATION LTD T/A TINAS CARS,SP0000729
WANDSWORTH COUNCIL,ASC,SOCIAL SERVICES,HIRE,Revenue,HIRE - TRANSPORT,609328,130220410,10-Mar-15,630.00,HEALTHCARE & TRANSPORT SERVICES (HATS),SP0000012
WANDSWORTH COUNCIL,ASC,SOCIAL SERVICES,HIRE,Revenue,HIRE - TRANSPORT,612606,130220410,13-Mar-15,630.00,HEALTHCARE & TRANSPORT SERVICES (HATS),SP0000012
WANDSWORTH COUNCIL,ASC,SOCIAL SERVICES,HIRE,Revenue,HIRE - TRANSPORT,617586,130220410,20-Mar-15,630.00,HEALTHCARE & TRANSPORT SERVICES (HATS),SP0000012
WANDSWORTH COUNCIL,ASC,SOCIAL SERVICES,HIRE,Revenue,NEW TRANSPORT CONTRACT,604396,130220430,03-Mar-15,172.00,A STAR TRANSPORT LTD,SP0000866
WANDSWORTH COUNCIL,ASC,SOCIAL SERVICES,HIRE,Revenue,NEW TRANSPORT CONTRACT,620290,130220430,25-Mar-15,440.00,A STAR TRANSPORT LTD,SP0000866
WANDSWORTH COUNCIL,ASC,SOCIAL SERVICES,HIRE,Revenue,NEW TRANSPORT CONTRACT,620293,130220430,25-Mar-15,440.00,A STAR TRANSPORT LTD,SP0000866
WANDSWORTH COUNCIL,ASC,SOCIAL SERVICES,HIRE,Revenue,NEW TRANSPORT CONTRACT,620302,130220430,25-Mar-15,528.00,A STAR TRANSPORT LTD,SP0000866
WANDSWORTH COUNCIL,ASC,SOCIAL SERVICES,HIRE,Revenue,NEW TRANSPORT CONTRACT,604367,130220430,03-Mar-15,"1,534.35",BECKETT CORPORATION LTD T/A TINAS CARS,SP0000729
WANDSWORTH COUNCIL,ASC,SOCIAL SERVICES,HIRE,Revenue,NEW TRANSPORT CONTRACT,604369,130220430,03-Mar-15,396.16,BECKETT CORPORATION LTD T/A TINAS CARS,SP0000729
WANDSWORTH COUNCIL,ASC,SOCIAL SERVICES,HIRE,Revenue,NEW TRANSPORT CONTRACT,615406,130220430,17-Mar-15,"1,392.75",BECKETT CORPORATION LTD T/A TINAS CARS,SP0000729
WANDSWORTH COUNCIL,ASC,SOCIAL SERVICES,HIRE,Revenue,NEW TRANSPORT CONTRACT,615407,130220430,17-Mar-15,335.98,BECKETT CORPORATION LTD T/A TINAS CARS,SP0000729
WANDSWORTH COUNCIL,ASC,SOCIAL SERVICES,"EQUIPMENT, FURNITURE & MATS",Revenue,PURCHASE OF EQUIP- SOCIAL CARE,20302084,130230500,10-Mar-15,"1,003.15",SAAJ LTD (FA398),2015432
WANDSWORTH COUNCIL,ASC,SOCIAL SERVICES,SERVICES,Revenue,TRAVEL BUDDY SCHEME,617589,130234970,20-Mar-15,664.86,HARINGEY ASSOCIATION FOR INDEPENDENT LIV,SP0000222
WANDSWORTH COUNCIL,ASC,SOCIAL SERVICES,SERVICES,Revenue,TRAVEL BUDDY SCHEME,617592,130234970,20-Mar-15,569.88,HARINGEY ASSOCIATION FOR INDEPENDENT LIV,SP0000222
WANDSWORTH COUNCIL,ASC,SOCIAL SERVICES,SERVICES,Revenue,TRAVEL BUDDY SCHEME,617593,130234970,20-Mar-15,506.56,HARINGEY ASSOCIATION FOR INDEPENDENT LIV,SP0000222
WANDSWORTH COUNCIL,ASC,SOCIAL SERVICES,SERVICES,Revenue,TRAVEL BUDDY SCHEME,617594,130234970,20-Mar-15,506.56,HARINGEY ASSOCIATION FOR INDEPENDENT LIV,SP0000222
WANDSWORTH COUNCIL,ASC,SOCIAL SERVICES,SERVICES,Revenue,TRAVEL BUDDY SCHEME,617597,130234970,20-Mar-15,522.39,HARINGEY ASSOCIATION FOR INDEPENDENT LIV,SP0000222
WANDSWORTH COUNCIL,ASC,SOCIAL SERVICES,SERVICES,Revenue,TRAVEL BUDDY SCHEME,617604,130234970,20-Mar-15,506.56,HARINGEY ASSOCIATION FOR INDEPENDENT LIV,SP0000222
WANDSWORTH COUNCIL,ASC,SOCIAL SERVICES,SERVICES,Revenue,TRAVEL BUDDY SCHEME,617611,130234970,20-Mar-15,633.20,HARINGEY ASSOCIATION FOR INDEPENDENT LIV,SP0000222
WANDSWORTH COUNCIL,ASC,SOCIAL SERVICES,SERVICES,Revenue,TRAVEL BUDDY SCHEME,617615,130234970,20-Mar-15,728.18,HARINGEY ASSOCIATION FOR INDEPENDENT LIV,SP0000222
WANDSWORTH COUNCIL,ASC,SOCIAL SERVICES,SERVICES,Revenue,TRAVEL BUDDY SCHEME,615367,130234970,17-Mar-15,"1,124.70",SOUTHSIDE PARTNERSHIP,SP0000692
WANDSWORTH COUNCIL,ASC,SOCIAL SERVICES,HEALTH,Revenue,EXT RES S28A 100% OLD LONGSTAY,615340,130241010,17-Mar-15,"3,037.02",PARKGATE MANOR,SP0000521
WANDSWORTH COUNCIL,ASC,SOCIAL SERVICES,HEALTH,Revenue,EXTERNAL RESIDENTIAL CARE S28A,604226,130241080,03-Mar-15,"6,507.52",PROGRESS HOUSING LULWORTH,SP0000921
WANDSWORTH COUNCIL,ASC,SOCIAL SERVICES,HEALTH,Revenue,EXTERNAL RESIDENTIAL CARE S28A,615350,130241080,17-Mar-15,"6,507.52",PROGRESS HOUSING LULWORTH,SP0000921
WANDSWORTH COUNCIL,ASC,SOCIAL SERVICES,HEALTH,Revenue,EXT RES S28A OLD LONG STAY,617500,130241110,20-Mar-15,"4,351.72",ANTHONY TOBY HOMES TRUST,SP0000755
WANDSWORTH COUNCIL,ASC,SOCIAL SERVICES,HEALTH,Revenue,EXT RES S28A OLD LONG STAY,609103,130241110,10-Mar-15,"4,586.40",THE COMMUNITY CARE COMPANY UK LTD,SP0000576
WANDSWORTH COUNCIL,ASC,SOCIAL SERVICES,OTHER AGENCIES,Revenue,EXTERNAL LODGINGS,612576,130243320,13-Mar-15,980.00,M RAZA T/A CLOCK HOUSE HOTEL,SP0001280
WANDSWORTH COUNCIL,ASC,SOCIAL SERVICES,OTHER AGENCIES,Revenue,EXTERNAL OUTREACH,616866,130243330,19-Mar-15,720.00,ACT TOO LTD,SP0000855
WANDSWORTH COUNCIL,ASC,SOCIAL SERVICES,OTHER AGENCIES,Revenue,EXTERNAL OUTREACH,616868,130243330,19-Mar-15,600.00,ACT TOO LTD,SP0000855
WANDSWORTH COUNCIL,ASC,SOCIAL SERVICES,OTHER AGENCIES,Revenue,EXTERNAL OUTREACH,604388,130243330,03-Mar-15,576.00,C M CARE LTD,SP0000455
WANDSWORTH COUNCIL,ASC,SOCIAL SERVICES,OTHER AGENCIES,Revenue,EXTERNAL OUTREACH,608171,130243330,06-Mar-15,"2,185.32",C M CARE LTD,SP0000455
WANDSWORTH COUNCIL,ASC,SOCIAL SERVICES,OTHER AGENCIES,Revenue,EXTERNAL OUTREACH,608173,130243330,06-Mar-15,576.00,C M CARE LTD,SP0000455
WANDSWORTH COUNCIL,ASC,SOCIAL SERVICES,OTHER AGENCIES,Revenue,EXTERNAL OUTREACH,608174,130243330,06-Mar-15,"1,540.00",C M CARE LTD,SP0000455
WANDSWORTH COUNCIL,ASC,SOCIAL SERVICES,OTHER AGENCIES,Revenue,EXTERNAL OUTREACH,611418,130243330,11-Mar-15,936.00,C M CARE LTD,SP0000455
WANDSWORTH COUNCIL,ASC,SOCIAL SERVICES,OTHER AGENCIES,Revenue,EXTERNAL OUTREACH,611419,130243330,11-Mar-15,"1,287.20",C M CARE LTD,SP0000455
WANDSWORTH COUNCIL,ASC,SOCIAL SERVICES,OTHER AGENCIES,Revenue,EXTERNAL OUTREACH,611329,130243330,11-Mar-15,717.84,GENERATE OPPORTUNITIES LTD,SP0000503
WANDSWORTH COUNCIL,ASC,SOCIAL SERVICES,OTHER AGENCIES,Revenue,EXTERNAL OUTREACH,611334,130243330,11-Mar-15,239.28,GENERATE OPPORTUNITIES LTD,SP0000503
WANDSWORTH COUNCIL,ASC,SOCIAL SERVICES,OTHER AGENCIES,Revenue,EXTERNAL OUTREACH,611335,130243330,11-Mar-15,598.20,GENERATE OPPORTUNITIES LTD,SP0000503
WANDSWORTH COUNCIL,ASC,SOCIAL SERVICES,OTHER AGENCIES,Revenue,EXTERNAL OUTREACH,611341,130243330,11-Mar-15,638.08,GENERATE OPPORTUNITIES LTD,SP0000503
WANDSWORTH COUNCIL,ASC,SOCIAL SERVICES,OTHER AGENCIES,Revenue,EXTERNAL OUTREACH,611342,130243330,11-Mar-15,797.60,GENERATE OPPORTUNITIES LTD,SP0000503
WANDSWORTH COUNCIL,ASC,SOCIAL SERVICES,OTHER AGENCIES,Revenue,EXTERNAL OUTREACH,611348,130243330,11-Mar-15,322.24,GENERATE OPPORTUNITIES LTD,SP0000503
WANDSWORTH COUNCIL,ASC,SOCIAL SERVICES,OTHER AGENCIES,Revenue,EXTERNAL OUTREACH,611355,130243330,11-Mar-15,"2,233.28",GENERATE OPPORTUNITIES LTD,SP0000503
WANDSWORTH COUNCIL,ASC,SOCIAL SERVICES,OTHER AGENCIES,Revenue,EXTERNAL OUTREACH,611370,130243330,11-Mar-15,638.08,GENERATE OPPORTUNITIES LTD,SP0000503
WANDSWORTH COUNCIL,ASC,SOCIAL SERVICES,OTHER AGENCIES,Revenue,EXTERNAL OUTREACH,611372,130243330,11-Mar-15,735.52,GENERATE OPPORTUNITIES LTD,SP0000503
WANDSWORTH COUNCIL,ASC,SOCIAL SERVICES,OTHER AGENCIES,Revenue,EXTERNAL OUTREACH,611375,130243330,11-Mar-15,797.60,GENERATE OPPORTUNITIES LTD,SP0000503
WANDSWORTH COUNCIL,ASC,SOCIAL SERVICES,OTHER AGENCIES,Revenue,EXTERNAL OUTREACH,611385,130243330,11-Mar-15,"2,475.00",GENERATE OPPORTUNITIES LTD,SP0000503
WANDSWORTH COUNCIL,ASC,SOCIAL SERVICES,OTHER AGENCIES,Revenue,EXTERNAL OUTREACH,618701,130243330,23-Mar-15,506.56,HARINGEY ASSOCIATION FOR INDEPENDENT LIV,SP0000222
WANDSWORTH COUNCIL,ASC,SOCIAL SERVICES,OTHER AGENCIES,Revenue,EXTERNAL OUTREACH,618705,130243330,23-Mar-15,628.00,HARINGEY ASSOCIATION FOR INDEPENDENT LIV,SP0000222
WANDSWORTH COUNCIL,ASC,SOCIAL SERVICES,OTHER AGENCIES,Revenue,EXTERNAL OUTREACH,618708,130243330,23-Mar-15,628.00,HARINGEY ASSOCIATION FOR INDEPENDENT LIV,SP0000222
WANDSWORTH COUNCIL,ASC,SOCIAL SERVICES,OTHER AGENCIES,Revenue,EXTERNAL OUTREACH,606424,130243330,05-Mar-15,442.00,PROTOCOL EDUCATION  LTD,SP0000171
WANDSWORTH COUNCIL,ASC,SOCIAL SERVICES,OTHER AGENCIES,Revenue,EXTERNAL OUTREACH,606425,130243330,05-Mar-15,425.00,PROTOCOL EDUCATION  LTD,SP0000171
WANDSWORTH COUNCIL,ASC,SOCIAL SERVICES,OTHER AGENCIES,Revenue,EXTERNAL OUTREACH,606426,130243330,05-Mar-15,425.00,PROTOCOL EDUCATION  LTD,SP0000171
WANDSWORTH COUNCIL,ASC,SOCIAL SERVICES,OTHER AGENCIES,Revenue,EXTERNAL OUTREACH,606427,130243330,05-Mar-15,475.00,PROTOCOL EDUCATION  LTD,SP0000171
WANDSWORTH COUNCIL,ASC,SOCIAL SERVICES,OTHER AGENCIES,Revenue,EXTERNAL OUTREACH,611423,130243330,11-Mar-15,456.32,RAINBOW MEDICAL SERVICES,SP0000037
WANDSWORTH COUNCIL,ASC,SOCIAL SERVICES,OTHER AGENCIES,Revenue,EXTERNAL OUTREACH,611425,130243330,11-Mar-15,677.52,RAINBOW MEDICAL SERVICES,SP0000037
WANDSWORTH COUNCIL,ASC,SOCIAL SERVICES,OTHER AGENCIES,Revenue,EXTERNAL OUTREACH,612010,130243330,12-Mar-15,"2,640.00",RELIABLE PERSONNEL LTD,SP0005657
WANDSWORTH COUNCIL,ASC,SOCIAL SERVICES,OTHER AGENCIES,Revenue,EXTERNAL OUTREACH,606419,130243330,05-Mar-15,547.50,ROYAL ASSOCIATION FOR DEAF PEOPLE,SP0001251
WANDSWORTH COUNCIL,ASC,SOCIAL SERVICES,OTHER AGENCIES,Revenue,EXTERNAL OUTREACH,612592,130243330,13-Mar-15,592.56,SOUTHSIDE PARTNERSHIP,SP0000692
WANDSWORTH COUNCIL,ASC,SOCIAL SERVICES,OTHER AGENCIES,Revenue,EXTERNAL OUTREACH,612599,130243330,13-Mar-15,592.56,SOUTHSIDE PARTNERSHIP,SP0000692
WANDSWORTH COUNCIL,ASC,SOCIAL SERVICES,OTHER AGENCIES,Revenue,EXTERNAL OUTREACH,609241,130243330,10-Mar-15,331.24,THE BRANDON TRUST,SP0005337
WANDSWORTH COUNCIL,ASC,SOCIAL SERVICES,OTHER AGENCIES,Revenue,EXTERNAL OUTREACH,609250,130243330,10-Mar-15,757.92,THE BRANDON TRUST,SP0005337
WANDSWORTH COUNCIL,ASC,SOCIAL SERVICES,OTHER AGENCIES,Revenue,EXTERNAL OUTREACH,609256,130243330,10-Mar-15,568.44,THE BRANDON TRUST,SP0005337
WANDSWORTH COUNCIL,ASC,SOCIAL SERVICES,OTHER AGENCIES,Revenue,EXTERNAL OUTREACH,609257,130243330,10-Mar-15,523.33,THE BRANDON TRUST,SP0005337
WANDSWORTH COUNCIL,ASC,SOCIAL SERVICES,OTHER AGENCIES,Revenue,EXTERNAL OUTREACH,609258,130243330,10-Mar-15,252.64,THE BRANDON TRUST,SP0005337
WANDSWORTH COUNCIL,ASC,SOCIAL SERVICES,OTHER AGENCIES,Revenue,EXTERNAL OUTREACH,609265,130243330,10-Mar-15,947.40,THE BRANDON TRUST,SP0005337
WANDSWORTH COUNCIL,ASC,SOCIAL SERVICES,OTHER AGENCIES,Revenue,EXTERNAL OUTREACH,609267,130243330,10-Mar-15,"1,170.80",THE BRANDON TRUST,SP0005337
WANDSWORTH COUNCIL,ASC,SOCIAL SERVICES,OTHER AGENCIES,Revenue,EXTERNAL OUTREACH,609300,130243330,10-Mar-15,189.48,THE BRANDON TRUST,SP0005337
WANDSWORTH COUNCIL,ASC,SOCIAL SERVICES,OTHER AGENCIES,Revenue,EXTERNAL OUTREACH,609314,130243330,10-Mar-15,694.76,THE BRANDON TRUST,SP0005337
WANDSWORTH COUNCIL,ASC,SOCIAL SERVICES,OTHER AGENCIES,Revenue,EXTERNAL OUTREACH,610005,130243330,10-Mar-15,189.48,THE BRANDON TRUST,SP0005337
WANDSWORTH COUNCIL,ASC,SOCIAL SERVICES,OTHER AGENCIES,Revenue,EXTERNAL OUTREACH,610014,130243330,10-Mar-15,252.64,THE BRANDON TRUST,SP0005337
WANDSWORTH COUNCIL,ASC,SOCIAL SERVICES,OTHER AGENCIES,Revenue,EXTERNAL OUTREACH,610020,130243330,10-Mar-15,947.40,THE BRANDON TRUST,SP0005337
WANDSWORTH COUNCIL,ASC,SOCIAL SERVICES,OTHER AGENCIES,Revenue,EXTERNAL OUTREACH,610022,130243330,10-Mar-15,"1,170.80",THE BRANDON TRUST,SP0005337
WANDSWORTH COUNCIL,ASC,SOCIAL SERVICES,OTHER AGENCIES,Revenue,EXTERNAL OUTREACH,610047,130243330,10-Mar-15,757.92,THE BRANDON TRUST,SP0005337
WANDSWORTH COUNCIL,ASC,SOCIAL SERVICES,OTHER AGENCIES,Revenue,EXTERNAL OUTREACH,610062,130243330,10-Mar-15,331.20,THE BRANDON TRUST,SP0005337
WANDSWORTH COUNCIL,ASC,SOCIAL SERVICES,OTHER AGENCIES,Revenue,EXTERNAL OUTREACH,610071,130243330,10-Mar-15,631.60,THE BRANDON TRUST,SP0005337
WANDSWORTH COUNCIL,ASC,SOCIAL SERVICES,OTHER AGENCIES,Revenue,EXTERNAL OUTREACH,610093,130243330,10-Mar-15,568.44,THE BRANDON TRUST,SP0005337
WANDSWORTH COUNCIL,ASC,SOCIAL SERVICES,OTHER AGENCIES,Revenue,EXTERNAL OUTREACH,610094,130243330,10-Mar-15,505.28,THE BRANDON TRUST,SP0005337
WANDSWORTH COUNCIL,ASC,SOCIAL SERVICES,OTHER AGENCIES,Revenue,EXTERNAL OUTREACH,610096,130243330,10-Mar-15,694.76,THE BRANDON TRUST,SP0005337
WANDSWORTH COUNCIL,ASC,SOCIAL SERVICES,OTHER AGENCIES,Revenue,EXTERNAL OUTREACH,612737,130243330,13-Mar-15,804.76,THE BRANDON TRUST,SP0005337
WANDSWORTH COUNCIL,ASC,ENVIRONMENT & COMMUNITY,OTHER AGENCIES,Revenue,APS SHARED LIVES SCHEME,609775,130243820,31-Mar-15,"5,959.77",SOUTHSIDE PARTNERSHIP,SP0000692
WANDSWORTH COUNCIL,ASC,ENVIRONMENT & COMMUNITY,OTHER AGENCIES,Revenue,APS SHARED LIVES SCHEME,609777,130243820,31-Mar-15,"15,619.00",SOUTHSIDE PARTNERSHIP,SP0000692
WANDSWORTH COUNCIL,ASC,SOCIAL SERVICES,PRIVATE,Revenue,EXTERNAL DAYCARE,608151,130245290,06-Mar-15,554.04,ACT TOO LTD,SP0000855
WANDSWORTH COUNCIL,ASC,SOCIAL SERVICES,PRIVATE,Revenue,EXTERNAL DAYCARE,609126,130245290,10-Mar-15,554.04,ACT TOO LTD,SP0000855
WANDSWORTH COUNCIL,ASC,SOCIAL SERVICES,PRIVATE,Revenue,EXTERNAL DAYCARE,609127,130245290,10-Mar-15,738.72,ACT TOO LTD,SP0000855
WANDSWORTH COUNCIL,ASC,SOCIAL SERVICES,PRIVATE,Revenue,EXTERNAL DAYCARE,609130,130245290,10-Mar-15,554.04,ACT TOO LTD,SP0000855
WANDSWORTH COUNCIL,ASC,SOCIAL SERVICES,PRIVATE,Revenue,EXTERNAL DAYCARE,609131,130245290,10-Mar-15,554.04,ACT TOO LTD,SP0000855
WANDSWORTH COUNCIL,ASC,SOCIAL SERVICES,PRIVATE,Revenue,EXTERNAL DAYCARE,609132,130245290,10-Mar-15,"1,108.08",ACT TOO LTD,SP0000855
WANDSWORTH COUNCIL,ASC,SOCIAL SERVICES,PRIVATE,Revenue,EXTERNAL DAYCARE,609135,130245290,10-Mar-15,554.04,ACT TOO LTD,SP0000855
WANDSWORTH COUNCIL,ASC,SOCIAL SERVICES,PRIVATE,Revenue,EXTERNAL DAYCARE,609136,130245290,10-Mar-15,554.04,ACT TOO LTD,SP0000855
WANDSWORTH COUNCIL,ASC,SOCIAL SERVICES,PRIVATE,Revenue,EXTERNAL DAYCARE,609137,130245290,10-Mar-15,923.40,ACT TOO LTD,SP0000855
WANDSWORTH COUNCIL,ASC,SOCIAL SERVICES,PRIVATE,Revenue,EXTERNAL DAYCARE,609139,130245290,10-Mar-15,554.04,ACT TOO LTD,SP0000855
WANDSWORTH COUNCIL,ASC,SOCIAL SERVICES,PRIVATE,Revenue,EXTERNAL DAYCARE,609141,130245290,10-Mar-15,554.04,ACT TOO LTD,SP0000855
WANDSWORTH COUNCIL,ASC,SOCIAL SERVICES,PRIVATE,Revenue,EXTERNAL DAYCARE,609148,130245290,10-Mar-15,923.40,ACT TOO LTD,SP0000855
WANDSWORTH COUNCIL,ASC,SOCIAL SERVICES,PRIVATE,Revenue,EXTERNAL DAYCARE,609151,130245290,10-Mar-15,554.04,ACT TOO LTD,SP0000855
WANDSWORTH COUNCIL,ASC,SOCIAL SERVICES,PRIVATE,Revenue,EXTERNAL DAYCARE,609155,130245290,10-Mar-15,554.04,ACT TOO LTD,SP0000855
WANDSWORTH COUNCIL,ASC,SOCIAL SERVICES,PRIVATE,Revenue,EXTERNAL DAYCARE,609156,130245290,10-Mar-15,554.04,ACT TOO LTD,SP0000855
WANDSWORTH COUNCIL,ASC,SOCIAL SERVICES,PRIVATE,Revenue,EXTERNAL DAYCARE,609159,130245290,10-Mar-15,738.72,ACT TOO LTD,SP0000855
WANDSWORTH COUNCIL,ASC,SOCIAL SERVICES,PRIVATE,Revenue,EXTERNAL DAYCARE,609160,130245290,10-Mar-15,554.04,ACT TOO LTD,SP0000855
WANDSWORTH COUNCIL,ASC,SOCIAL SERVICES,PRIVATE,Revenue,EXTERNAL DAYCARE,609162,130245290,10-Mar-15,923.40,ACT TOO LTD,SP0000855
WANDSWORTH COUNCIL,ASC,SOCIAL SERVICES,PRIVATE,Revenue,EXTERNAL DAYCARE,609164,130245290,10-Mar-15,738.72,ACT TOO LTD,SP0000855
WANDSWORTH COUNCIL,ASC,SOCIAL SERVICES,PRIVATE,Revenue,EXTERNAL DAYCARE,609169,130245290,10-Mar-15,554.04,ACT TOO LTD,SP0000855
WANDSWORTH COUNCIL,ASC,SOCIAL SERVICES,PRIVATE,Revenue,EXTERNAL DAYCARE,609170,130245290,10-Mar-15,554.04,ACT TOO LTD,SP0000855
WANDSWORTH COUNCIL,ASC,SOCIAL SERVICES,PRIVATE,Revenue,EXTERNAL DAYCARE,609171,130245290,10-Mar-15,"1,108.08",ACT TOO LTD,SP0000855
WANDSWORTH COUNCIL,ASC,SOCIAL SERVICES,PRIVATE,Revenue,EXTERNAL DAYCARE,609174,130245290,10-Mar-15,554.04,ACT TOO LTD,SP0000855
WANDSWORTH COUNCIL,ASC,SOCIAL SERVICES,PRIVATE,Revenue,EXTERNAL DAYCARE,609176,130245290,10-Mar-15,738.72,ACT TOO LTD,SP0000855
WANDSWORTH COUNCIL,ASC,SOCIAL SERVICES,PRIVATE,Revenue,EXTERNAL DAYCARE,609181,130245290,10-Mar-15,554.04,ACT TOO LTD,SP0000855
WANDSWORTH COUNCIL,ASC,SOCIAL SERVICES,PRIVATE,Revenue,EXTERNAL DAYCARE,609182,130245290,10-Mar-15,554.04,ACT TOO LTD,SP0000855
WANDSWORTH COUNCIL,ASC,SOCIAL SERVICES,PRIVATE,Revenue,EXTERNAL DAYCARE,609183,130245290,10-Mar-15,738.72,ACT TOO LTD,SP0000855
WANDSWORTH COUNCIL,ASC,SOCIAL SERVICES,PRIVATE,Revenue,EXTERNAL DAYCARE,609184,130245290,10-Mar-15,923.40,ACT TOO LTD,SP0000855
WANDSWORTH COUNCIL,ASC,SOCIAL SERVICES,PRIVATE,Revenue,EXTERNAL DAYCARE,609185,130245290,10-Mar-15,738.72,ACT TOO LTD,SP0000855
WANDSWORTH COUNCIL,ASC,SOCIAL SERVICES,PRIVATE,Revenue,EXTERNAL DAYCARE,609186,130245290,10-Mar-15,738.72,ACT TOO LTD,SP0000855
WANDSWORTH COUNCIL,ASC,SOCIAL SERVICES,PRIVATE,Revenue,EXTERNAL DAYCARE,609187,130245290,10-Mar-15,738.72,ACT TOO LTD,SP0000855
WANDSWORTH COUNCIL,ASC,SOCIAL SERVICES,PRIVATE,Revenue,EXTERNAL DAYCARE,609190,130245290,10-Mar-15,554.04,ACT TOO LTD,SP0000855
WANDSWORTH COUNCIL,ASC,SOCIAL SERVICES,PRIVATE,Revenue,EXTERNAL DAYCARE,617572,130245290,20-Mar-15,"1,204.06",ANTHONY TOBY HOMES TRUST,SP0000755
WANDSWORTH COUNCIL,ASC,SOCIAL SERVICES,PRIVATE,Revenue,EXTERNAL DAYCARE,611386,130245290,11-Mar-15,957.66,ASHFIELD CARE HOMES LTD,SP0000590
WANDSWORTH COUNCIL,ASC,SOCIAL SERVICES,PRIVATE,Revenue,EXTERNAL DAYCARE,612566,130245290,13-Mar-15,942.23,CHATSWORTH CARE,SP0000831
WANDSWORTH COUNCIL,ASC,SOCIAL SERVICES,PRIVATE,Revenue,EXTERNAL DAYCARE,608152,130245290,06-Mar-15,683.36,CHOICES,SP0000486
WANDSWORTH COUNCIL,ASC,SOCIAL SERVICES,PRIVATE,Revenue,EXTERNAL DAYCARE,611922,130245290,12-Mar-15,"2,094.62",CMG HOMES LTD,SP0000075
WANDSWORTH COUNCIL,ASC,SOCIAL SERVICES,PRIVATE,Revenue,EXTERNAL DAYCARE,609338,130245290,10-Mar-15,"1,059.52",COUNTRY CARE,SP0000090
WANDSWORTH COUNCIL,ASC,SOCIAL SERVICES,PRIVATE,Revenue,EXTERNAL DAYCARE,612727,130245290,13-Mar-15,806.04,CRAEGMOOR FACILITIES CO LTD,SP0000306
WANDSWORTH COUNCIL,ASC,SOCIAL SERVICES,PRIVATE,Revenue,EXTERNAL DAYCARE,609214,130245290,10-Mar-15,608.84,CREST COOPERATIVE LTD,SP0000683
WANDSWORTH COUNCIL,ASC,SOCIAL SERVICES,PRIVATE,Revenue,EXTERNAL DAYCARE,612565,130245290,13-Mar-15,"1,070.96",DOLPHIN HOMES LTD,SP0000331
WANDSWORTH COUNCIL,ASC,SOCIAL SERVICES,PRIVATE,Revenue,EXTERNAL DAYCARE,611932,130245290,12-Mar-15,549.90,EAST SUSSEX COUNTY COUNCIL,SP0000427
WANDSWORTH COUNCIL,ASC,SOCIAL SERVICES,PRIVATE,Revenue,EXTERNAL DAYCARE,611933,130245290,12-Mar-15,733.20,EAST SUSSEX COUNTY COUNCIL,SP0000427
WANDSWORTH COUNCIL,ASC,SOCIAL SERVICES,PRIVATE,Revenue,EXTERNAL DAYCARE,611934,130245290,12-Mar-15,"1,122.42",EAST SUSSEX COUNTY COUNCIL,SP0000427
WANDSWORTH COUNCIL,ASC,SOCIAL SERVICES,PRIVATE,Revenue,EXTERNAL DAYCARE,611935,130245290,12-Mar-15,"1,554.12",EAST SUSSEX COUNTY COUNCIL,SP0000427
WANDSWORTH COUNCIL,ASC,SOCIAL SERVICES,PRIVATE,Revenue,EXTERNAL DAYCARE,611936,130245290,12-Mar-15,949.74,EAST SUSSEX COUNTY COUNCIL,SP0000427
WANDSWORTH COUNCIL,ASC,SOCIAL SERVICES,PRIVATE,Revenue,EXTERNAL DAYCARE,612726,130245290,13-Mar-15,"6,711.00",ESSEX COUNTY COUNCIL,SP0000269
WANDSWORTH COUNCIL,ASC,SOCIAL SERVICES,PRIVATE,Revenue,EXTERNAL DAYCARE,604280,130245290,03-Mar-15,"5,280.00",GENERATE OPPORTUNITIES LTD,SP0000503
WANDSWORTH COUNCIL,ASC,SOCIAL SERVICES,PRIVATE,Revenue,EXTERNAL DAYCARE,611325,130245290,11-Mar-15,576.00,GENERATE OPPORTUNITIES LTD,SP0000503
WANDSWORTH COUNCIL,ASC,SOCIAL SERVICES,PRIVATE,Revenue,EXTERNAL DAYCARE,611327,130245290,11-Mar-15,640.00,GENERATE OPPORTUNITIES LTD,SP0000503
WANDSWORTH COUNCIL,ASC,SOCIAL SERVICES,PRIVATE,Revenue,EXTERNAL DAYCARE,611334,130245290,11-Mar-15,560.01,GENERATE OPPORTUNITIES LTD,SP0000503
WANDSWORTH COUNCIL,ASC,SOCIAL SERVICES,PRIVATE,Revenue,EXTERNAL DAYCARE,611335,130245290,11-Mar-15,519.40,GENERATE OPPORTUNITIES LTD,SP0000503
WANDSWORTH COUNCIL,ASC,SOCIAL SERVICES,PRIVATE,Revenue,EXTERNAL DAYCARE,611337,130245290,11-Mar-15,576.00,GENERATE OPPORTUNITIES LTD,SP0000503
WANDSWORTH COUNCIL,ASC,SOCIAL SERVICES,PRIVATE,Revenue,EXTERNAL DAYCARE,611339,130245290,11-Mar-15,800.00,GENERATE OPPORTUNITIES LTD,SP0000503
WANDSWORTH COUNCIL,ASC,SOCIAL SERVICES,PRIVATE,Revenue,EXTERNAL DAYCARE,611346,130245290,11-Mar-15,576.00,GENERATE OPPORTUNITIES LTD,SP0000503
WANDSWORTH COUNCIL,ASC,SOCIAL SERVICES,PRIVATE,Revenue,EXTERNAL DAYCARE,611348,130245290,11-Mar-15,280.00,GENERATE OPPORTUNITIES LTD,SP0000503
WANDSWORTH COUNCIL,ASC,SOCIAL SERVICES,PRIVATE,Revenue,EXTERNAL DAYCARE,611360,130245290,11-Mar-15,576.00,GENERATE OPPORTUNITIES LTD,SP0000503
WANDSWORTH COUNCIL,ASC,SOCIAL SERVICES,PRIVATE,Revenue,EXTERNAL DAYCARE,611368,130245290,11-Mar-15,560.00,GENERATE OPPORTUNITIES LTD,SP0000503
WANDSWORTH COUNCIL,ASC,SOCIAL SERVICES,PRIVATE,Revenue,EXTERNAL DAYCARE,611369,130245290,11-Mar-15,576.00,GENERATE OPPORTUNITIES LTD,SP0000503
WANDSWORTH COUNCIL,ASC,SOCIAL SERVICES,PRIVATE,Revenue,EXTERNAL DAYCARE,611373,130245290,11-Mar-15,"1,100.00",GENERATE OPPORTUNITIES LTD,SP0000503
WANDSWORTH COUNCIL,ASC,SOCIAL SERVICES,PRIVATE,Revenue,EXTERNAL DAYCARE,617564,130245290,20-Mar-15,602.56,HIGH HURLANDS HOMES,SP0000668
WANDSWORTH COUNCIL,ASC,SOCIAL SERVICES,PRIVATE,Revenue,EXTERNAL DAYCARE,615353,130245290,17-Mar-15,"1,551.24",LONDON CARE PARTNERSHIP LTD,SP0001138
WANDSWORTH COUNCIL,ASC,SOCIAL SERVICES,PRIVATE,Revenue,EXTERNAL DAYCARE,611986,130245290,12-Mar-15,515.52,MENCAP OPEN DOOR,SP0000832
WANDSWORTH COUNCIL,ASC,SOCIAL SERVICES,PRIVATE,Revenue,EXTERNAL DAYCARE,612004,130245290,12-Mar-15,504.80,MENCAP OPEN DOOR,SP0000832
WANDSWORTH COUNCIL,ASC,SOCIAL SERVICES,PRIVATE,Revenue,EXTERNAL DAYCARE,606399,130245290,05-Mar-15,"2,000.16",NORWOOD SCHOOLS LTD,SP0000332
WANDSWORTH COUNCIL,ASC,SOCIAL SERVICES,PRIVATE,Revenue,EXTERNAL DAYCARE,606400,130245290,05-Mar-15,"2,055.64",NORWOOD SCHOOLS LTD,SP0000332
WANDSWORTH COUNCIL,ASC,SOCIAL SERVICES,PRIVATE,Revenue,EXTERNAL DAYCARE,612570,130245290,13-Mar-15,525.70,O A ROWE,SP0000431
WANDSWORTH COUNCIL,ASC,SOCIAL SERVICES,PRIVATE,Revenue,EXTERNAL DAYCARE,612571,130245290,13-Mar-15,525.70,O A ROWE,SP0000431
WANDSWORTH COUNCIL,ASC,SOCIAL SERVICES,PRIVATE,Revenue,EXTERNAL DAYCARE,612572,130245290,13-Mar-15,525.70,O A ROWE,SP0000431
WANDSWORTH COUNCIL,ASC,SOCIAL SERVICES,PRIVATE,Revenue,EXTERNAL DAYCARE,609981,130245290,10-Mar-15,878.48,ORCHARD VALE TRUST,SP0000214
WANDSWORTH COUNCIL,ASC,SOCIAL SERVICES,PRIVATE,Revenue,EXTERNAL DAYCARE,609982,130245290,10-Mar-15,878.48,ORCHARD VALE TRUST,SP0000214
WANDSWORTH COUNCIL,ASC,SOCIAL SERVICES,PRIVATE,Revenue,EXTERNAL DAYCARE,611924,130245290,12-Mar-15,750.56,ORIONE CARE,SP0000961
WANDSWORTH COUNCIL,ASC,SOCIAL SERVICES,PRIVATE,Revenue,EXTERNAL DAYCARE,611926,130245290,12-Mar-15,562.92,ORIONE CARE,SP0000961
WANDSWORTH COUNCIL,ASC,SOCIAL SERVICES,PRIVATE,Revenue,EXTERNAL DAYCARE,611927,130245290,12-Mar-15,797.47,ORIONE CARE,SP0000961
WANDSWORTH COUNCIL,ASC,SOCIAL SERVICES,PRIVATE,Revenue,EXTERNAL DAYCARE,611929,130245290,12-Mar-15,609.83,ORIONE CARE,SP0000961
WANDSWORTH COUNCIL,ASC,SOCIAL SERVICES,PRIVATE,Revenue,EXTERNAL DAYCARE,612736,130245290,13-Mar-15,546.00,PARCHMENT TRUST LTD,SP0000255
WANDSWORTH COUNCIL,ASC,SOCIAL SERVICES,PRIVATE,Revenue,EXTERNAL DAYCARE,611930,130245290,12-Mar-15,540.00,PROSPECTS,SP0000800
WANDSWORTH COUNCIL,ASC,SOCIAL SERVICES,PRIVATE,Revenue,EXTERNAL DAYCARE,616829,130245290,19-Mar-15,"1,103.42",RESIDENTIAL CARE SERVICES T/A FRANKLYN L,SP0000147
WANDSWORTH COUNCIL,ASC,SOCIAL SERVICES,PRIVATE,Revenue,EXTERNAL DAYCARE,609099,130245290,10-Mar-15,"1,176.00",RIDGEWOOD CARE SERVICES LTD,SP0000969
WANDSWORTH COUNCIL,ASC,SOCIAL SERVICES,PRIVATE,Revenue,EXTERNAL DAYCARE,609212,130245290,10-Mar-15,"1,138.40",RIDGEWOOD CARE SERVICES LTD,SP0000969
WANDSWORTH COUNCIL,ASC,SOCIAL SERVICES,PRIVATE,Revenue,EXTERNAL DAYCARE,612731,130245290,13-Mar-15,969.80,SCOPE,SP0000991
WANDSWORTH COUNCIL,ASC,SOCIAL SERVICES,PRIVATE,Revenue,EXTERNAL DAYCARE,612732,130245290,13-Mar-15,596.80,SCOPE,SP0000991
WANDSWORTH COUNCIL,ASC,SOCIAL SERVICES,PRIVATE,Revenue,EXTERNAL DAYCARE,615388,130245290,17-Mar-15,814.03,SCOPE,SP0000852
WANDSWORTH COUNCIL,ASC,SOCIAL SERVICES,PRIVATE,Revenue,EXTERNAL DAYCARE,615393,130245290,17-Mar-15,833.52,SCOPE,SP0000852
WANDSWORTH COUNCIL,ASC,SOCIAL SERVICES,PRIVATE,Revenue,EXTERNAL DAYCARE,604290,130245290,03-Mar-15,706.08,SHARE COMMUNITY,SP0000329
WANDSWORTH COUNCIL,ASC,SOCIAL SERVICES,PRIVATE,Revenue,EXTERNAL DAYCARE,604292,130245290,03-Mar-15,"1,176.80",SHARE COMMUNITY,SP0000329
WANDSWORTH COUNCIL,ASC,SOCIAL SERVICES,PRIVATE,Revenue,EXTERNAL DAYCARE,604293,130245290,03-Mar-15,706.08,SHARE COMMUNITY,SP0000329
WANDSWORTH COUNCIL,ASC,SOCIAL SERVICES,PRIVATE,Revenue,EXTERNAL DAYCARE,604296,130245290,03-Mar-15,706.08,SHARE COMMUNITY,SP0000329
WANDSWORTH COUNCIL,ASC,SOCIAL SERVICES,PRIVATE,Revenue,EXTERNAL DAYCARE,604298,130245290,03-Mar-15,941.44,SHARE COMMUNITY,SP0000329
WANDSWORTH COUNCIL,ASC,SOCIAL SERVICES,PRIVATE,Revenue,EXTERNAL DAYCARE,604299,130245290,03-Mar-15,"1,176.80",SHARE COMMUNITY,SP0000329
WANDSWORTH COUNCIL,ASC,SOCIAL SERVICES,PRIVATE,Revenue,EXTERNAL DAYCARE,604300,130245290,03-Mar-15,706.08,SHARE COMMUNITY,SP0000329
WANDSWORTH COUNCIL,ASC,SOCIAL SERVICES,PRIVATE,Revenue,EXTERNAL DAYCARE,604301,130245290,03-Mar-15,588.40,SHARE COMMUNITY,SP0000329
WANDSWORTH COUNCIL,ASC,SOCIAL SERVICES,PRIVATE,Revenue,EXTERNAL DAYCARE,604302,130245290,03-Mar-15,706.08,SHARE COMMUNITY,SP0000329
WANDSWORTH COUNCIL,ASC,SOCIAL SERVICES,PRIVATE,Revenue,EXTERNAL DAYCARE,604303,130245290,03-Mar-15,941.44,SHARE COMMUNITY,SP0000329
WANDSWORTH COUNCIL,ASC,SOCIAL SERVICES,PRIVATE,Revenue,EXTERNAL DAYCARE,604306,130245290,03-Mar-15,706.08,SHARE COMMUNITY,SP0000329
WANDSWORTH COUNCIL,ASC,SOCIAL SERVICES,PRIVATE,Revenue,EXTERNAL DAYCARE,604308,130245290,03-Mar-15,588.40,SHARE COMMUNITY,SP0000329
WANDSWORTH COUNCIL,ASC,SOCIAL SERVICES,PRIVATE,Revenue,EXTERNAL DAYCARE,604309,130245290,03-Mar-15,706.08,SHARE COMMUNITY,SP0000329
WANDSWORTH COUNCIL,ASC,SOCIAL SERVICES,PRIVATE,Revenue,EXTERNAL DAYCARE,604310,130245290,03-Mar-15,706.08,SHARE COMMUNITY,SP0000329
WANDSWORTH COUNCIL,ASC,SOCIAL SERVICES,PRIVATE,Revenue,EXTERNAL DAYCARE,604314,130245290,03-Mar-15,706.08,SHARE COMMUNITY,SP0000329
WANDSWORTH COUNCIL,ASC,SOCIAL SERVICES,PRIVATE,Revenue,EXTERNAL DAYCARE,604315,130245290,03-Mar-15,"1,176.80",SHARE COMMUNITY,SP0000329
WANDSWORTH COUNCIL,ASC,SOCIAL SERVICES,PRIVATE,Revenue,EXTERNAL DAYCARE,604320,130245290,03-Mar-15,706.08,SHARE COMMUNITY,SP0000329
WANDSWORTH COUNCIL,ASC,SOCIAL SERVICES,PRIVATE,Revenue,EXTERNAL DAYCARE,604321,130245290,03-Mar-15,706.08,SHARE COMMUNITY,SP0000329
WANDSWORTH COUNCIL,ASC,SOCIAL SERVICES,PRIVATE,Revenue,EXTERNAL DAYCARE,604325,130245290,03-Mar-15,706.08,SHARE COMMUNITY,SP0000329
WANDSWORTH COUNCIL,ASC,SOCIAL SERVICES,PRIVATE,Revenue,EXTERNAL DAYCARE,604327,130245290,03-Mar-15,706.08,SHARE COMMUNITY,SP0000329
WANDSWORTH COUNCIL,ASC,SOCIAL SERVICES,PRIVATE,Revenue,EXTERNAL DAYCARE,604328,130245290,03-Mar-15,941.44,SHARE COMMUNITY,SP0000329
WANDSWORTH COUNCIL,ASC,SOCIAL SERVICES,PRIVATE,Revenue,EXTERNAL DAYCARE,604329,130245290,03-Mar-15,706.08,SHARE COMMUNITY,SP0000329
WANDSWORTH COUNCIL,ASC,SOCIAL SERVICES,PRIVATE,Revenue,EXTERNAL DAYCARE,604331,130245290,03-Mar-15,706.08,SHARE COMMUNITY,SP0000329
WANDSWORTH COUNCIL,ASC,SOCIAL SERVICES,PRIVATE,Revenue,EXTERNAL DAYCARE,604333,130245290,03-Mar-15,706.08,SHARE COMMUNITY,SP0000329
WANDSWORTH COUNCIL,ASC,SOCIAL SERVICES,PRIVATE,Revenue,EXTERNAL DAYCARE,604339,130245290,03-Mar-15,706.08,SHARE COMMUNITY,SP0000329
WANDSWORTH COUNCIL,ASC,SOCIAL SERVICES,PRIVATE,Revenue,EXTERNAL DAYCARE,604343,130245290,03-Mar-15,706.08,SHARE COMMUNITY,SP0000329
WANDSWORTH COUNCIL,ASC,SOCIAL SERVICES,PRIVATE,Revenue,EXTERNAL DAYCARE,606408,130245290,05-Mar-15,"1,471.00",SHARE COMMUNITY,SP0000329
WANDSWORTH COUNCIL,ASC,SOCIAL SERVICES,PRIVATE,Revenue,EXTERNAL DAYCARE,606409,130245290,05-Mar-15,"1,117.96",SHARE COMMUNITY,SP0000329
WANDSWORTH COUNCIL,ASC,SOCIAL SERVICES,PRIVATE,Revenue,EXTERNAL DAYCARE,609205,130245290,10-Mar-15,"1,057.00",ST DAVIDS CARE IN THE COMMUNITY,SP0000379
WANDSWORTH COUNCIL,ASC,SOCIAL SERVICES,PRIVATE,Revenue,EXTERNAL DAYCARE,609206,130245290,10-Mar-15,"1,057.00",ST DAVIDS CARE IN THE COMMUNITY,SP0000379
WANDSWORTH COUNCIL,ASC,SOCIAL SERVICES,PRIVATE,Revenue,EXTERNAL DAYCARE,609207,130245290,10-Mar-15,"1,057.00",ST DAVIDS CARE IN THE COMMUNITY,SP0000379
WANDSWORTH COUNCIL,ASC,SOCIAL SERVICES,PRIVATE,Revenue,EXTERNAL DAYCARE,609972,130245290,10-Mar-15,"1,736.84",ST MARYS RESIDENTIAL HOME,SP0000215
WANDSWORTH COUNCIL,ASC,SOCIAL SERVICES,PRIVATE,Revenue,EXTERNAL DAYCARE,609973,130245290,10-Mar-15,"1,000.00",ST MARYS RESIDENTIAL HOME,SP0000215
WANDSWORTH COUNCIL,ASC,SOCIAL SERVICES,PRIVATE,Revenue,EXTERNAL DAYCARE,609974,130245290,10-Mar-15,708.52,ST MARYS RESIDENTIAL HOME,SP0000215
WANDSWORTH COUNCIL,ASC,SOCIAL SERVICES,PRIVATE,Revenue,EXTERNAL DAYCARE,609977,130245290,10-Mar-15,956.80,ST MARYS RESIDENTIAL HOME,SP0000215
WANDSWORTH COUNCIL,ASC,SOCIAL SERVICES,PRIVATE,Revenue,EXTERNAL DAYCARE,609979,130245290,10-Mar-15,534.28,ST MARYS RESIDENTIAL HOME,SP0000215
WANDSWORTH COUNCIL,ASC,SOCIAL SERVICES,PRIVATE,Revenue,EXTERNAL DAYCARE,609036,130245290,10-Mar-15,"1,474.00",SUSSEX HEALTH CARE,SP0001115
WANDSWORTH COUNCIL,ASC,SOCIAL SERVICES,PRIVATE,Revenue,EXTERNAL DAYCARE,604281,130245290,03-Mar-15,650.00,THE CAMDEN SOCIETY,SP0001674
WANDSWORTH COUNCIL,ASC,SOCIAL SERVICES,PRIVATE,Revenue,EXTERNAL DAYCARE,611317,130245290,11-Mar-15,520.00,THE CAMDEN SOCIETY,SP0001674
WANDSWORTH COUNCIL,ASC,SOCIAL SERVICES,PRIVATE,Revenue,EXTERNAL DAYCARE,611318,130245290,11-Mar-15,520.00,THE CAMDEN SOCIETY,SP0001674
WANDSWORTH COUNCIL,ASC,SOCIAL SERVICES,PRIVATE,Revenue,EXTERNAL DAYCARE,611319,130245290,11-Mar-15,520.00,THE CAMDEN SOCIETY,SP0001674
WANDSWORTH COUNCIL,ASC,SOCIAL SERVICES,PRIVATE,Revenue,EXTERNAL DAYCARE,611320,130245290,11-Mar-15,520.00,THE CAMDEN SOCIETY,SP0001674
WANDSWORTH COUNCIL,ASC,SOCIAL SERVICES,PRIVATE,Revenue,EXTERNAL DAYCARE,611321,130245290,11-Mar-15,520.00,THE CAMDEN SOCIETY,SP0001674
WANDSWORTH COUNCIL,ASC,SOCIAL SERVICES,PRIVATE,Revenue,EXTERNAL DAYCARE,606288,130245290,05-Mar-15,125.80,THE CHESTNUTS,SP0000182
WANDSWORTH COUNCIL,ASC,SOCIAL SERVICES,PRIVATE,Revenue,EXTERNAL DAYCARE,608030,130245290,06-Mar-15,125.80,THE CHESTNUTS,SP0000182
WANDSWORTH COUNCIL,ASC,SOCIAL SERVICES,PRIVATE,Revenue,EXTERNAL DAYCARE,617471,130245290,20-Mar-15,125.80,THE CHESTNUTS,SP0000182
WANDSWORTH COUNCIL,ASC,SOCIAL SERVICES,PRIVATE,Revenue,EXTERNAL DAYCARE,620243,130245290,25-Mar-15,644.00,THE CHESTNUTS,SP0000182
WANDSWORTH COUNCIL,ASC,SOCIAL SERVICES,PRIVATE,Revenue,EXTERNAL DAYCARE,609103,130245290,10-Mar-15,296.96,THE COMMUNITY CARE COMPANY UK LTD,SP0000576
WANDSWORTH COUNCIL,ASC,SOCIAL SERVICES,PRIVATE,Revenue,EXTERNAL DAYCARE,617565,130245290,20-Mar-15,880.00,THE HOME FARM TRUST LTD,SP0001048
WANDSWORTH COUNCIL,ASC,SOCIAL SERVICES,PRIVATE,Revenue,EXTERNAL DAYCARE,608155,130245290,06-Mar-15,980.00,THE MANOR,SP0000340
WANDSWORTH COUNCIL,ASC,SOCIAL SERVICES,PRIVATE,Revenue,EXTERNAL DAYCARE,615389,130245290,17-Mar-15,"1,162.70",THE MANOR HOUSE,SP0000728
WANDSWORTH COUNCIL,ASC,SOCIAL SERVICES,PRIVATE,Revenue,EXTERNAL DAYCARE,608141,130245290,06-Mar-15,528.00,THRIVE,SP0000601
WANDSWORTH COUNCIL,ASC,SOCIAL SERVICES,PRIVATE,Revenue,EXTERNAL DAYCARE,609211,130245290,10-Mar-15,578.08,VOYAGE CARE LTD,SP0000366
WANDSWORTH COUNCIL,ASC,SOCIAL SERVICES,PRIVATE,Revenue,EXTERNAL DAYCARE,609213,130245290,10-Mar-15,"1,654.08",VOYAGE CARE LTD,SP0000366
WANDSWORTH COUNCIL,ASC,SOCIAL SERVICES,PRIVATE,Revenue,EXTERNAL DAYCARE,604353,130245290,03-Mar-15,760.00,WANDSWORTH BENGALI WELFARE ASSOCIATION,SP0000479
WANDSWORTH COUNCIL,ASC,SOCIAL SERVICES,PRIVATE,Revenue,EXTERNAL DAYCARE,623108,130245290,26-Mar-15,760.00,WANDSWORTH BENGALI WELFARE ASSOCIATION,SP0000479
WANDSWORTH COUNCIL,ASC,SOCIAL SERVICES,PRIVATE,Revenue,EXTERNAL DAYCARE,604350,130245290,03-Mar-15,"1,416.24",WINSLOW COURT,SP0000886
WANDSWORTH COUNCIL,ASC,SOCIAL SERVICES,PRIVATE,Revenue,EXTERNAL DAYCARE,604351,130245290,03-Mar-15,"1,416.24",WINSLOW COURT,SP0000886
WANDSWORTH COUNCIL,ASC,SOCIAL SERVICES,PRIVATE,Revenue,EXTERNAL DAYCARE,611938,130245290,12-Mar-15,552.00,WORKSHOP 305,SP0001403
WANDSWORTH COUNCIL,ASC,SOCIAL SERVICES,PRIVATE,Revenue,EXTERNAL DAYCARE,611939,130245290,12-Mar-15,828.00,WORKSHOP 305,SP0001403
WANDSWORTH COUNCIL,ASC,SOCIAL SERVICES,PRIVATE,Revenue,EXTERNAL DAYCARE,611947,130245290,12-Mar-15,944.00,WORKSHOP 305,SP0001403
WANDSWORTH COUNCIL,ASC,SOCIAL SERVICES,PRIVATE,Revenue,EXTERNAL DAYCARE,611951,130245290,12-Mar-15,708.00,WORKSHOP 305,SP0001403
WANDSWORTH COUNCIL,ASC,SOCIAL SERVICES,PRIVATE,Revenue,EXTERNAL DAYCARE,611959,130245290,12-Mar-15,828.00,WORKSHOP 305,SP0001403
WANDSWORTH COUNCIL,ASC,SOCIAL SERVICES,PRIVATE,Revenue,EXTERNAL DAYCARE,611960,130245290,12-Mar-15,708.00,WORKSHOP 305,SP0001403
WANDSWORTH COUNCIL,ASC,SOCIAL SERVICES,PRIVATE,Revenue,EXTERNAL DAYCARE,611966,130245290,12-Mar-15,552.00,WORKSHOP 305,SP0001403
WANDSWORTH COUNCIL,ASC,SOCIAL SERVICES,PRIVATE,Revenue,EXTERNAL DAYCARE,611967,130245290,12-Mar-15,708.00,WORKSHOP 305,SP0001403
WANDSWORTH COUNCIL,ASC,SOCIAL SERVICES,PRIVATE,Revenue,EXTERNAL DAYCARE,611973,130245290,12-Mar-15,552.00,WORKSHOP 305,SP0001403
WANDSWORTH COUNCIL,ASC,SOCIAL SERVICES,PRIVATE,Revenue,EXTERNAL DAYCARE,611981,130245290,12-Mar-15,944.00,WORKSHOP 305,SP0001403
WANDSWORTH COUNCIL,ASC,SOCIAL SERVICES,PRIVATE,Revenue,EXTERNAL HOMECARE,617557,130245300,20-Mar-15,709.74,ASIAN ELDERS SUPPORT SCHEME,SP0000190
WANDSWORTH COUNCIL,ASC,SOCIAL SERVICES,PRIVATE,Revenue,EXTERNAL HOMECARE,609118,130245300,10-Mar-15,"3,232.00",CHRISTIES CARE LTD,SP0005440
WANDSWORTH COUNCIL,ASC,SOCIAL SERVICES,PRIVATE,Revenue,EXTERNAL HOMECARE,609341,130245300,10-Mar-15,"4,480.00",HFH HEALTHCARE,SP0005937
WANDSWORTH COUNCIL,ASC,SOCIAL SERVICES,PRIVATE,Revenue,EXTERNAL HOMECARE,623006,130245300,26-Mar-15,"2,218.87",MEARS CARE LTD,SP0001491
WANDSWORTH COUNCIL,ASC,SOCIAL SERVICES,PRIVATE,Revenue,EXTERNAL HOMECARE,20302869,130245300,26-Mar-15,"5,343.47",MUSHKIL AASAAN LTD,2008470
WANDSWORTH COUNCIL,ASC,SOCIAL SERVICES,PRIVATE,Revenue,EXTERNAL HOMECARE,611311,130245300,11-Mar-15,953.04,RAINBOW MEDICAL SERVICES,SP0000037
WANDSWORTH COUNCIL,ASC,SOCIAL SERVICES,PRIVATE,Revenue,EXTERNAL NURSING CARE,617465,130245310,20-Mar-15,"5,382.08",HIGH HURLANDS HOMES,SP0000668
WANDSWORTH COUNCIL,ASC,SOCIAL SERVICES,PRIVATE,Revenue,EXTERNAL NURSING CARE,609906,130245310,10-Mar-15,"6,577.05",ROYAL HOSPITAL FOR NEURO-DISABILITY,SP0000375
WANDSWORTH COUNCIL,ASC,SOCIAL SERVICES,PRIVATE,Revenue,EXTERNAL NURSING CARE,609907,130245310,10-Mar-15,"5,940.56",ROYAL HOSPITAL FOR NEURO-DISABILITY,SP0000375
WANDSWORTH COUNCIL,ASC,SOCIAL SERVICES,PRIVATE,Revenue,EXTERNAL NURSING CARE,609042,130245310,10-Mar-15,"8,454.89",SUSSEX HEALTH CARE,SP0001115
WANDSWORTH COUNCIL,ASC,SOCIAL SERVICES,PRIVATE,Revenue,EXTERNAL NURSING CARE,603880,130245310,02-Mar-15,"2,787.60",TRINITY COURT NURSING HOME,SP0001001
WANDSWORTH COUNCIL,ASC,SOCIAL SERVICES,PRIVATE,Revenue,EXTERNAL NURSING CARE,622850,130245310,26-Mar-15,"2,787.60",TRINITY COURT NURSING HOME,SP0001001
WANDSWORTH COUNCIL,ASC,SOCIAL SERVICES,PRIVATE,Revenue,EXTERNAL NURSING CARE,609091,130245310,10-Mar-15,"4,181.88",VOYAGE CARE LTD,SP0000366
WANDSWORTH COUNCIL,ASC,SOCIAL SERVICES,PRIVATE,Revenue,EXTERNAL NURSING CARE,609094,130245310,10-Mar-15,"5,325.08",VOYAGE CARE LTD,SP0000366
WANDSWORTH COUNCIL,ASC,SOCIAL SERVICES,PRIVATE,Revenue,EXTERNAL NURSING CARE,620814,130245310,25-Mar-15,"5,975.84",WINGHAM COURT,SP0000025
WANDSWORTH COUNCIL,ASC,SOCIAL SERVICES,PRIVATE,Revenue,EXTERNAL NURSING CARE,611861,130245310,12-Mar-15,"3,065.88",YEW TREE NURSING HOME,SP0000454
WANDSWORTH COUNCIL,ASC,SOCIAL SERVICES,PRIVATE,Revenue,EXTERNAL NURSING CARE,603925,130245310,02-Mar-15,"2,675.12",YORK COURT CARE HOME,SP0006091
WANDSWORTH COUNCIL,ASC,SOCIAL SERVICES,PRIVATE,Revenue,EXTERNAL NURSING CARE,622894,130245310,26-Mar-15,"2,675.12",YORK COURT CARE HOME,SP0006091
WANDSWORTH COUNCIL,ASC,SOCIAL SERVICES,PRIVATE,Revenue,EXTERNAL RESIDENTIAL CARE,611824,130245330,12-Mar-15,"4,472.68",229 MITCHAM LANE LTD,SP0000884
WANDSWORTH COUNCIL,ASC,SOCIAL SERVICES,PRIVATE,Revenue,EXTERNAL RESIDENTIAL CARE,611825,130245330,12-Mar-15,"5,236.12",229 MITCHAM LANE LTD,SP0000884
WANDSWORTH COUNCIL,ASC,SOCIAL SERVICES,PRIVATE,Revenue,EXTERNAL RESIDENTIAL CARE,611826,130245330,12-Mar-15,"5,558.83",229 MITCHAM LANE LTD,SP0000884
WANDSWORTH COUNCIL,ASC,SOCIAL SERVICES,PRIVATE,Revenue,EXTERNAL RESIDENTIAL CARE,611827,130245330,13-Mar-15,"5,236.12",229 MITCHAM LANE LTD,SP0000884
WANDSWORTH COUNCIL,ASC,SOCIAL SERVICES,PRIVATE,Revenue,EXTERNAL RESIDENTIAL CARE,608031,130245330,06-Mar-15,"5,095.92",ACH OF LONDON LLP,SP0001688
WANDSWORTH COUNCIL,ASC,SOCIAL SERVICES,PRIVATE,Revenue,EXTERNAL RESIDENTIAL CARE,611267,130245330,11-Mar-15,"8,532.57",ACH OF LONDON LLP,SP0001688
WANDSWORTH COUNCIL,ASC,SOCIAL SERVICES,PRIVATE,Revenue,EXTERNAL RESIDENTIAL CARE,608039,130245330,06-Mar-15,"8,370.84",AIMS CARE PARTNERSHIP,SP0000561
WANDSWORTH COUNCIL,ASC,SOCIAL SERVICES,PRIVATE,Revenue,EXTERNAL RESIDENTIAL CARE,611269,130245330,11-Mar-15,"4,332.74",ALLIED CARE (MHS) LTD,SP0001069
WANDSWORTH COUNCIL,ASC,SOCIAL SERVICES,PRIVATE,Revenue,EXTERNAL RESIDENTIAL CARE,611284,130245330,11-Mar-15,"7,054.98",ALLIED CARE (MHS) LTD,SP0001069
WANDSWORTH COUNCIL,ASC,SOCIAL SERVICES,PRIVATE,Revenue,EXTERNAL RESIDENTIAL CARE,611285,130245330,11-Mar-15,"5,000.30",ALLIED CARE (MHS) LTD,SP0001069
WANDSWORTH COUNCIL,ASC,SOCIAL SERVICES,PRIVATE,Revenue,EXTERNAL RESIDENTIAL CARE,611286,130245330,11-Mar-15,"4,630.48",ALLIED CARE (MHS) LTD,SP0001069
WANDSWORTH COUNCIL,ASC,SOCIAL SERVICES,PRIVATE,Revenue,EXTERNAL RESIDENTIAL CARE,611252,130245330,11-Mar-15,"11,311.23",ASHCROFT CARE SERVICES,SP0000872
WANDSWORTH COUNCIL,ASC,SOCIAL SERVICES,PRIVATE,Revenue,EXTERNAL RESIDENTIAL CARE,617455,130245330,20-Mar-15,"3,586.16",BEECH LODGE,SP0000807
WANDSWORTH COUNCIL,ASC,SOCIAL SERVICES,PRIVATE,Revenue,EXTERNAL RESIDENTIAL CARE,617456,130245330,20-Mar-15,"3,586.16",BEECH LODGE,SP0000807
WANDSWORTH COUNCIL,ASC,SOCIAL SERVICES,PRIVATE,Revenue,EXTERNAL RESIDENTIAL CARE,617457,130245330,20-Mar-15,"3,586.16",BEECH LODGE,SP0000807
WANDSWORTH COUNCIL,ASC,SOCIAL SERVICES,PRIVATE,Revenue,EXTERNAL RESIDENTIAL CARE,620823,130245330,25-Mar-15,"6,641.44",BIRCC,SP0000584
WANDSWORTH COUNCIL,ASC,SOCIAL SERVICES,PRIVATE,Revenue,EXTERNAL RESIDENTIAL CARE,620824,130245330,25-Mar-15,"5,998.72",BIRCC,SP0000584
WANDSWORTH COUNCIL,ASC,SOCIAL SERVICES,PRIVATE,Revenue,EXTERNAL RESIDENTIAL CARE,620825,130245330,25-Mar-15,"6,641.44",BIRCC,SP0000584
WANDSWORTH COUNCIL,ASC,SOCIAL SERVICES,PRIVATE,Revenue,EXTERNAL RESIDENTIAL CARE,611272,130245330,11-Mar-15,"8,046.58",BROOKDALE CARE,SP0000282
WANDSWORTH COUNCIL,ASC,SOCIAL SERVICES,PRIVATE,Revenue,EXTERNAL RESIDENTIAL CARE,611273,130245330,11-Mar-15,"4,689.36",CAMERON LODGE LIMITED,SP0000271
WANDSWORTH COUNCIL,ASC,SOCIAL SERVICES,PRIVATE,Revenue,EXTERNAL RESIDENTIAL CARE,615729,130245330,18-Mar-15,"4,689.36",CAMERON LODGE LIMITED,SP0000271
WANDSWORTH COUNCIL,ASC,SOCIAL SERVICES,PRIVATE,Revenue,EXTERNAL RESIDENTIAL CARE,622974,130245330,26-Mar-15,"6,060.62",CARE UK LEARNING DISABILITIES SERVICES L,SP0001039
WANDSWORTH COUNCIL,ASC,SOCIAL SERVICES,PRIVATE,Revenue,EXTERNAL RESIDENTIAL CARE,618636,130245330,23-Mar-15,"3,631.96",CARE UNLIMITED GROUP LTD,SP0001575
WANDSWORTH COUNCIL,ASC,SOCIAL SERVICES,PRIVATE,Revenue,EXTERNAL RESIDENTIAL CARE,617490,130245330,20-Mar-15,"3,975.08",CENTRUST CARE HOMES LTD,SP0000141
WANDSWORTH COUNCIL,ASC,SOCIAL SERVICES,PRIVATE,Revenue,EXTERNAL RESIDENTIAL CARE,612538,130245330,13-Mar-15,"7,959.25",CHATSWORTH CARE,SP0000831
WANDSWORTH COUNCIL,ASC,SOCIAL SERVICES,PRIVATE,Revenue,EXTERNAL RESIDENTIAL CARE,617464,130245330,20-Mar-15,"9,200.00",CHATSWORTH CARE,SP0000831
WANDSWORTH COUNCIL,ASC,SOCIAL SERVICES,PRIVATE,Revenue,EXTERNAL RESIDENTIAL CARE,617458,130245330,20-Mar-15,"3,604.36",CHERRY LODGE,SP0000965
WANDSWORTH COUNCIL,ASC,SOCIAL SERVICES,PRIVATE,Revenue,EXTERNAL RESIDENTIAL CARE,606301,130245330,05-Mar-15,"6,628.16",CHOICE CARE GROUP,SP0001367
WANDSWORTH COUNCIL,ASC,SOCIAL SERVICES,PRIVATE,Revenue,EXTERNAL RESIDENTIAL CARE,615334,130245330,17-Mar-15,"6,628.16",CHOICE CARE GROUP,SP0001367
WANDSWORTH COUNCIL,ASC,SOCIAL SERVICES,PRIVATE,Revenue,EXTERNAL RESIDENTIAL CARE,612709,130245330,13-Mar-15,"6,007.12",CMG HOMES LTD,SP0000075
WANDSWORTH COUNCIL,ASC,SOCIAL SERVICES,PRIVATE,Revenue,EXTERNAL RESIDENTIAL CARE,612710,130245330,13-Mar-15,"5,553.00",CMG HOMES LTD,SP0000075
WANDSWORTH COUNCIL,ASC,SOCIAL SERVICES,PRIVATE,Revenue,EXTERNAL RESIDENTIAL CARE,612711,130245330,13-Mar-15,"4,244.60",CMG HOMES LTD,SP0000075
WANDSWORTH COUNCIL,ASC,SOCIAL SERVICES,PRIVATE,Revenue,EXTERNAL RESIDENTIAL CARE,612712,130245330,13-Mar-15,"4,245.03",CMG HOMES LTD,SP0000075
WANDSWORTH COUNCIL,ASC,SOCIAL SERVICES,PRIVATE,Revenue,EXTERNAL RESIDENTIAL CARE,612713,130245330,13-Mar-15,"4,233.62",CMG HOMES LTD,SP0000075
WANDSWORTH COUNCIL,ASC,SOCIAL SERVICES,PRIVATE,Revenue,EXTERNAL RESIDENTIAL CARE,612714,130245330,13-Mar-15,"8,061.00",CMG HOMES LTD,SP0000075
WANDSWORTH COUNCIL,ASC,SOCIAL SERVICES,PRIVATE,Revenue,EXTERNAL RESIDENTIAL CARE,615733,130245330,18-Mar-15,"4,415.60",CMG HOMES LTD,SP0000075
WANDSWORTH COUNCIL,ASC,SOCIAL SERVICES,PRIVATE,Revenue,EXTERNAL RESIDENTIAL CARE,611846,130245330,12-Mar-15,"8,192.86",CONDOVER COLLEGE LTD,SP0001641
WANDSWORTH COUNCIL,ASC,SOCIAL SERVICES,PRIVATE,Revenue,EXTERNAL RESIDENTIAL CARE,611838,130245330,12-Mar-15,"7,271.56",CORICH COMMUNITY CARE LTD,SP0000915
WANDSWORTH COUNCIL,ASC,SOCIAL SERVICES,PRIVATE,Revenue,EXTERNAL RESIDENTIAL CARE,609053,130245330,10-Mar-15,"3,449.59",COUNTRY CARE,SP0000090
WANDSWORTH COUNCIL,ASC,SOCIAL SERVICES,PRIVATE,Revenue,EXTERNAL RESIDENTIAL CARE,603758,130245330,02-Mar-15,"2,618.36",COUNTRY COURT CARE,SP0009215
WANDSWORTH COUNCIL,ASC,SOCIAL SERVICES,PRIVATE,Revenue,EXTERNAL RESIDENTIAL CARE,622735,130245330,26-Mar-15,"2,618.36",COUNTRY COURT CARE,SP0009215
WANDSWORTH COUNCIL,ASC,SOCIAL SERVICES,PRIVATE,Revenue,EXTERNAL RESIDENTIAL CARE,615360,130245330,17-Mar-15,"3,029.72",CRAEGMOOR FACILITIES CO LTD,SP0000306
WANDSWORTH COUNCIL,ASC,SOCIAL SERVICES,PRIVATE,Revenue,EXTERNAL RESIDENTIAL CARE,615341,130245330,17-Mar-15,"3,900.77",CRAEGMOOR OLD RECTORY BREDE PRIORY,SP0001621
WANDSWORTH COUNCIL,ASC,SOCIAL SERVICES,PRIVATE,Revenue,EXTERNAL RESIDENTIAL CARE,611276,130245330,11-Mar-15,"5,385.27",CREDITON CARE & SUPPORT HOMES,SP0000998
WANDSWORTH COUNCIL,ASC,SOCIAL SERVICES,PRIVATE,Revenue,EXTERNAL RESIDENTIAL CARE,615342,130245330,17-Mar-15,"3,469.00",CSS LTD T/A  THF CARE ESTATES LTD,SP0005682
WANDSWORTH COUNCIL,ASC,SOCIAL SERVICES,PRIVATE,Revenue,EXTERNAL RESIDENTIAL CARE,615344,130245330,17-Mar-15,"3,469.00",CSS LTD T/A  THF CARE ESTATES LTD,SP0005682
WANDSWORTH COUNCIL,ASC,SOCIAL SERVICES,PRIVATE,Revenue,EXTERNAL RESIDENTIAL CARE,612535,130245330,13-Mar-15,"5,476.25",DOLPHIN HOMES LTD,SP0000331
WANDSWORTH COUNCIL,ASC,SOCIAL SERVICES,PRIVATE,Revenue,EXTERNAL RESIDENTIAL CARE,612536,130245330,13-Mar-15,"4,311.16",DOLPHIN HOMES LTD,SP0000331
WANDSWORTH COUNCIL,ASC,SOCIAL SERVICES,PRIVATE,Revenue,EXTERNAL RESIDENTIAL CARE,609101,130245330,10-Mar-15,"4,029.91",DOWNING (CHERTSEY ROAD) LTD,SP0000959
WANDSWORTH COUNCIL,ASC,SOCIAL SERVICES,PRIVATE,Revenue,EXTERNAL RESIDENTIAL CARE,617520,130245330,20-Mar-15,"5,980.80",ENHAM,SP0005845
WANDSWORTH COUNCIL,ASC,SOCIAL SERVICES,PRIVATE,Revenue,EXTERNAL RESIDENTIAL CARE,609113,130245330,10-Mar-15,"5,646.25",ESSEX CARE CONSORTIUM,SP0000387
WANDSWORTH COUNCIL,ASC,SOCIAL SERVICES,PRIVATE,Revenue,EXTERNAL RESIDENTIAL CARE,606305,130245330,05-Mar-15,"10,129.89",EVERGREEN PARTNERSHIP,SP0000597
WANDSWORTH COUNCIL,ASC,SOCIAL SERVICES,PRIVATE,Revenue,EXTERNAL RESIDENTIAL CARE,617467,130245330,20-Mar-15,"10,118.48",EVERGREEN PARTNERSHIP,SP0000597
WANDSWORTH COUNCIL,ASC,SOCIAL SERVICES,PRIVATE,Revenue,EXTERNAL RESIDENTIAL CARE,615335,130245330,17-Mar-15,"8,051.14",FIRCROFT,SP0000840
WANDSWORTH COUNCIL,ASC,SOCIAL SERVICES,PRIVATE,Revenue,EXTERNAL RESIDENTIAL CARE,606299,130245330,05-Mar-15,"3,835.15",FRANCES TAYLOR FOUNDATION,SP0000142
WANDSWORTH COUNCIL,ASC,SOCIAL SERVICES,PRIVATE,Revenue,EXTERNAL RESIDENTIAL CARE,608036,130245330,06-Mar-15,"3,806.64",GLENCARE GROUP,SP0000791
WANDSWORTH COUNCIL,ASC,SOCIAL SERVICES,PRIVATE,Revenue,EXTERNAL RESIDENTIAL CARE,608037,130245330,06-Mar-15,"6,110.72",GLENCARE GROUP,SP0000791
WANDSWORTH COUNCIL,ASC,SOCIAL SERVICES,PRIVATE,Revenue,EXTERNAL RESIDENTIAL CARE,608038,130245330,06-Mar-15,"3,806.64",GLENCARE GROUP,SP0000791
WANDSWORTH COUNCIL,ASC,SOCIAL SERVICES,PRIVATE,Revenue,EXTERNAL RESIDENTIAL CARE,618637,130245330,23-Mar-15,"6,110.72",GLENCARE GROUP,SP0000791
WANDSWORTH COUNCIL,ASC,SOCIAL SERVICES,PRIVATE,Revenue,EXTERNAL RESIDENTIAL CARE,612708,130245330,13-Mar-15,"3,724.72",HAYDON PARK LODGE LTD,SP0000231
WANDSWORTH COUNCIL,ASC,SOCIAL SERVICES,PRIVATE,Revenue,EXTERNAL RESIDENTIAL CARE,615352,130245330,17-Mar-15,"8,026.83",HEALTHLINC INDIVIDUAL CARE,SP0000617
WANDSWORTH COUNCIL,ASC,SOCIAL SERVICES,PRIVATE,Revenue,EXTERNAL RESIDENTIAL CARE,611841,130245330,12-Mar-15,"2,571.36",HEYWOODS GRANGE LTD,SP0000361
WANDSWORTH COUNCIL,ASC,SOCIAL SERVICES,PRIVATE,Revenue,EXTERNAL RESIDENTIAL CARE,611842,130245330,12-Mar-15,"2,899.99",HEYWOODS GRANGE LTD,SP0000361
WANDSWORTH COUNCIL,ASC,SOCIAL SERVICES,PRIVATE,Revenue,EXTERNAL RESIDENTIAL CARE,615724,130245330,18-Mar-15,"2,322.52",HEYWOODS GRANGE LTD,SP0000361
WANDSWORTH COUNCIL,ASC,SOCIAL SERVICES,PRIVATE,Revenue,EXTERNAL RESIDENTIAL CARE,615725,130245330,18-Mar-15,"3,210.71",HEYWOODS GRANGE LTD,SP0000361
WANDSWORTH COUNCIL,ASC,SOCIAL SERVICES,PRIVATE,Revenue,EXTERNAL RESIDENTIAL CARE,615346,130245330,17-Mar-15,"2,405.51",HILL PARK AUTISTIC TRUST,SP0000926
WANDSWORTH COUNCIL,ASC,SOCIAL SERVICES,PRIVATE,Revenue,EXTERNAL RESIDENTIAL CARE,612517,130245330,13-Mar-15,"6,679.26",HOME FROM HOME CARE LIMITED,SP0001373
WANDSWORTH COUNCIL,ASC,SOCIAL SERVICES,PRIVATE,Revenue,EXTERNAL RESIDENTIAL CARE,615339,130245330,17-Mar-15,"5,025.37",IN CHORUS LTD,SP0000129
WANDSWORTH COUNCIL,ASC,SOCIAL SERVICES,PRIVATE,Revenue,EXTERNAL RESIDENTIAL CARE,611818,130245330,12-Mar-15,"3,976.83",KENILWORTH RESIDENTIAL HOME,SP0000432
WANDSWORTH COUNCIL,ASC,SOCIAL SERVICES,PRIVATE,Revenue,EXTERNAL RESIDENTIAL CARE,611819,130245330,12-Mar-15,"4,150.04",KENILWORTH RESIDENTIAL HOME,SP0000432
WANDSWORTH COUNCIL,ASC,SOCIAL SERVICES,PRIVATE,Revenue,EXTERNAL RESIDENTIAL CARE,620822,130245330,25-Mar-15,"11,057.48",KISIMUL GROUP LTD,SP0002487
WANDSWORTH COUNCIL,ASC,SOCIAL SERVICES,PRIVATE,Revenue,EXTERNAL RESIDENTIAL CARE,606855,130245330,05-Mar-15,"4,792.20",LAETUS LODGE,SP0000600
WANDSWORTH COUNCIL,ASC,SOCIAL SERVICES,PRIVATE,Revenue,EXTERNAL RESIDENTIAL CARE,606856,130245330,05-Mar-15,"6,096.48",LAETUS LODGE,SP0000600
WANDSWORTH COUNCIL,ASC,SOCIAL SERVICES,PRIVATE,Revenue,EXTERNAL RESIDENTIAL CARE,606857,130245330,05-Mar-15,"3,759.76",LAETUS LODGE,SP0000600
WANDSWORTH COUNCIL,ASC,SOCIAL SERVICES,PRIVATE,Revenue,EXTERNAL RESIDENTIAL CARE,606858,130245330,05-Mar-15,"6,193.48",LAETUS LODGE,SP0000600
WANDSWORTH COUNCIL,ASC,SOCIAL SERVICES,PRIVATE,Revenue,EXTERNAL RESIDENTIAL CARE,606859,130245330,05-Mar-15,"3,669.12",LAETUS LODGE,SP0000600
WANDSWORTH COUNCIL,ASC,SOCIAL SERVICES,PRIVATE,Revenue,EXTERNAL RESIDENTIAL CARE,606860,130245330,05-Mar-15,"3,759.76",LAETUS LODGE,SP0000600
WANDSWORTH COUNCIL,ASC,SOCIAL SERVICES,PRIVATE,Revenue,EXTERNAL RESIDENTIAL CARE,606861,130245330,05-Mar-15,"5,240.56",LAETUS LODGE,SP0000600
WANDSWORTH COUNCIL,ASC,SOCIAL SERVICES,PRIVATE,Revenue,EXTERNAL RESIDENTIAL CARE,615338,130245330,17-Mar-15,"4,967.48",LARKFIELD HALL LTD T/A PEPENBURY,SP0001378
WANDSWORTH COUNCIL,ASC,SOCIAL SERVICES,PRIVATE,Revenue,EXTERNAL RESIDENTIAL CARE,606285,130245330,05-Mar-15,"4,306.03",LEONARD CHESHIRE,SP0000976
WANDSWORTH COUNCIL,ASC,SOCIAL SERVICES,PRIVATE,Revenue,EXTERNAL RESIDENTIAL CARE,606287,130245330,05-Mar-15,"6,323.91",LEONARD CHESHIRE,SP0000976
WANDSWORTH COUNCIL,ASC,SOCIAL SERVICES,PRIVATE,Revenue,EXTERNAL RESIDENTIAL CARE,609035,130245330,10-Mar-15,"3,875.68",LEONARD CHESHIRE,SP0000976
WANDSWORTH COUNCIL,ASC,SOCIAL SERVICES,PRIVATE,Revenue,EXTERNAL RESIDENTIAL CARE,611271,130245330,11-Mar-15,"3,889.32",LEONARD CHESHIRE,SP0000976
WANDSWORTH COUNCIL,ASC,SOCIAL SERVICES,PRIVATE,Revenue,EXTERNAL RESIDENTIAL CARE,611278,130245330,11-Mar-15,"5,711.92",LEONARD CHESHIRE,SP0000976
WANDSWORTH COUNCIL,ASC,SOCIAL SERVICES,PRIVATE,Revenue,EXTERNAL RESIDENTIAL CARE,612529,130245330,13-Mar-15,"2,395.60",LIVABILITY,SP0000669
WANDSWORTH COUNCIL,ASC,SOCIAL SERVICES,PRIVATE,Revenue,EXTERNAL RESIDENTIAL CARE,615353,130245330,17-Mar-15,"6,916.63",LONDON CARE PARTNERSHIP LTD,SP0001138
WANDSWORTH COUNCIL,ASC,SOCIAL SERVICES,PRIVATE,Revenue,EXTERNAL RESIDENTIAL CARE,615354,130245330,17-Mar-15,"8,835.00",LONDON CARE PARTNERSHIP LTD,SP0001138
WANDSWORTH COUNCIL,ASC,SOCIAL SERVICES,PRIVATE,Revenue,EXTERNAL RESIDENTIAL CARE,615355,130245330,17-Mar-15,"8,192.86",LONDON CARE PARTNERSHIP LTD,SP0001138
WANDSWORTH COUNCIL,ASC,SOCIAL SERVICES,PRIVATE,Revenue,EXTERNAL RESIDENTIAL CARE,615356,130245330,17-Mar-15,"8,303.57",LONDON CARE PARTNERSHIP LTD,SP0001138
WANDSWORTH COUNCIL,ASC,SOCIAL SERVICES,PRIVATE,Revenue,EXTERNAL RESIDENTIAL CARE,615357,130245330,17-Mar-15,"8,303.57",LONDON CARE PARTNERSHIP LTD,SP0001138
WANDSWORTH COUNCIL,ASC,SOCIAL SERVICES,PRIVATE,Revenue,EXTERNAL RESIDENTIAL CARE,615358,130245330,17-Mar-15,"8,525.00",LONDON CARE PARTNERSHIP LTD,SP0001138
WANDSWORTH COUNCIL,ASC,SOCIAL SERVICES,PRIVATE,Revenue,EXTERNAL RESIDENTIAL CARE,606304,130245330,05-Mar-15,"7,717.76",LORING HALL LIMITED,SP0000511
WANDSWORTH COUNCIL,ASC,SOCIAL SERVICES,PRIVATE,Revenue,EXTERNAL RESIDENTIAL CARE,617466,130245330,20-Mar-15,"7,717.76",LORING HALL LIMITED,SP0000511
WANDSWORTH COUNCIL,ASC,SOCIAL SERVICES,PRIVATE,Revenue,EXTERNAL RESIDENTIAL CARE,611820,130245330,12-Mar-15,"4,613.60",LOTUS CARE HOME LTD,SP0001006
WANDSWORTH COUNCIL,ASC,SOCIAL SERVICES,PRIVATE,Revenue,EXTERNAL RESIDENTIAL CARE,606292,130245330,05-Mar-15,"11,322.96",LOVING CARE LTD,SP0000670
WANDSWORTH COUNCIL,ASC,SOCIAL SERVICES,PRIVATE,Revenue,EXTERNAL RESIDENTIAL CARE,606293,130245330,05-Mar-15,"11,282.12",LOVING CARE LTD,SP0000670
WANDSWORTH COUNCIL,ASC,SOCIAL SERVICES,PRIVATE,Revenue,EXTERNAL RESIDENTIAL CARE,606294,130245330,05-Mar-15,"11,475.84",LOVING CARE LTD,SP0000670
WANDSWORTH COUNCIL,ASC,SOCIAL SERVICES,PRIVATE,Revenue,EXTERNAL RESIDENTIAL CARE,606295,130245330,05-Mar-15,"11,017.24",LOVING CARE LTD,SP0000670
WANDSWORTH COUNCIL,ASC,SOCIAL SERVICES,PRIVATE,Revenue,EXTERNAL RESIDENTIAL CARE,606296,130245330,05-Mar-15,"11,475.88",LOVING CARE LTD,SP0000670
WANDSWORTH COUNCIL,ASC,SOCIAL SERVICES,PRIVATE,Revenue,EXTERNAL RESIDENTIAL CARE,606297,130245330,05-Mar-15,"11,475.88",LOVING CARE LTD,SP0000670
WANDSWORTH COUNCIL,ASC,SOCIAL SERVICES,PRIVATE,Revenue,EXTERNAL RESIDENTIAL CARE,606298,130245330,05-Mar-15,"11,170.12",LOVING CARE LTD,SP0000670
WANDSWORTH COUNCIL,ASC,SOCIAL SERVICES,PRIVATE,Revenue,EXTERNAL RESIDENTIAL CARE,611867,130245330,12-Mar-15,"5,206.28",MACINTYRE CARE,SP0000473
WANDSWORTH COUNCIL,ASC,SOCIAL SERVICES,PRIVATE,Revenue,EXTERNAL RESIDENTIAL CARE,611868,130245330,12-Mar-15,"3,759.64",MACINTYRE CARE,SP0000473
WANDSWORTH COUNCIL,ASC,SOCIAL SERVICES,PRIVATE,Revenue,EXTERNAL RESIDENTIAL CARE,611869,130245330,12-Mar-15,"5,429.64",MACINTYRE CARE,SP0000473
WANDSWORTH COUNCIL,ASC,SOCIAL SERVICES,PRIVATE,Revenue,EXTERNAL RESIDENTIAL CARE,611871,130245330,12-Mar-15,"3,759.64",MACINTYRE CARE,SP0000473
WANDSWORTH COUNCIL,ASC,SOCIAL SERVICES,PRIVATE,Revenue,EXTERNAL RESIDENTIAL CARE,611872,130245330,12-Mar-15,"5,192.48",MACINTYRE CARE,SP0000473
WANDSWORTH COUNCIL,ASC,SOCIAL SERVICES,PRIVATE,Revenue,EXTERNAL RESIDENTIAL CARE,611873,130245330,12-Mar-15,"3,750.72",MACINTYRE CARE,SP0000473
WANDSWORTH COUNCIL,ASC,SOCIAL SERVICES,PRIVATE,Revenue,EXTERNAL RESIDENTIAL CARE,611874,130245330,12-Mar-15,"3,813.84",MACINTYRE CARE,SP0000473
WANDSWORTH COUNCIL,ASC,SOCIAL SERVICES,PRIVATE,Revenue,EXTERNAL RESIDENTIAL CARE,611875,130245330,12-Mar-15,"4,998.84",MACINTYRE CARE,SP0000473
WANDSWORTH COUNCIL,ASC,SOCIAL SERVICES,PRIVATE,Revenue,EXTERNAL RESIDENTIAL CARE,611876,130245330,12-Mar-15,"5,097.20",MACINTYRE CARE,SP0000473
WANDSWORTH COUNCIL,ASC,SOCIAL SERVICES,PRIVATE,Revenue,EXTERNAL RESIDENTIAL CARE,611877,130245330,12-Mar-15,"2,301.48",MACINTYRE CARE,SP0000473
WANDSWORTH COUNCIL,ASC,SOCIAL SERVICES,PRIVATE,Revenue,EXTERNAL RESIDENTIAL CARE,611878,130245330,12-Mar-15,"8,054.24",MACINTYRE CARE,SP0000473
WANDSWORTH COUNCIL,ASC,SOCIAL SERVICES,PRIVATE,Revenue,EXTERNAL RESIDENTIAL CARE,611879,130245330,12-Mar-15,"5,026.36",MACINTYRE CARE,SP0000473
WANDSWORTH COUNCIL,ASC,SOCIAL SERVICES,PRIVATE,Revenue,EXTERNAL RESIDENTIAL CARE,611880,130245330,12-Mar-15,"5,429.76",MACINTYRE CARE,SP0000473
WANDSWORTH COUNCIL,ASC,SOCIAL SERVICES,PRIVATE,Revenue,EXTERNAL RESIDENTIAL CARE,611881,130245330,12-Mar-15,"4,296.00",MACINTYRE CARE,SP0000473
WANDSWORTH COUNCIL,ASC,SOCIAL SERVICES,PRIVATE,Revenue,EXTERNAL RESIDENTIAL CARE,611882,130245330,12-Mar-15,"4,893.16",MACINTYRE CARE,SP0000473
WANDSWORTH COUNCIL,ASC,SOCIAL SERVICES,PRIVATE,Revenue,EXTERNAL RESIDENTIAL CARE,611883,130245330,12-Mar-15,"4,909.16",MACINTYRE CARE,SP0000473
WANDSWORTH COUNCIL,ASC,SOCIAL SERVICES,PRIVATE,Revenue,EXTERNAL RESIDENTIAL CARE,611885,130245330,12-Mar-15,"4,907.76",MACINTYRE CARE,SP0000473
WANDSWORTH COUNCIL,ASC,SOCIAL SERVICES,PRIVATE,Revenue,EXTERNAL RESIDENTIAL CARE,611886,130245330,12-Mar-15,"4,907.76",MACINTYRE CARE,SP0000473
WANDSWORTH COUNCIL,ASC,SOCIAL SERVICES,PRIVATE,Revenue,EXTERNAL RESIDENTIAL CARE,611887,130245330,12-Mar-15,"4,901.68",MACINTYRE CARE,SP0000473
WANDSWORTH COUNCIL,ASC,SOCIAL SERVICES,PRIVATE,Revenue,EXTERNAL RESIDENTIAL CARE,611888,130245330,12-Mar-15,"5,030.56",MACINTYRE CARE,SP0000473
WANDSWORTH COUNCIL,ASC,SOCIAL SERVICES,PRIVATE,Revenue,EXTERNAL RESIDENTIAL CARE,611889,130245330,12-Mar-15,"4,907.76",MACINTYRE CARE,SP0000473
WANDSWORTH COUNCIL,ASC,SOCIAL SERVICES,PRIVATE,Revenue,EXTERNAL RESIDENTIAL CARE,606290,130245330,05-Mar-15,"7,523.88",MCCH SOCIETY LIMITED,SP0001531
WANDSWORTH COUNCIL,ASC,SOCIAL SERVICES,PRIVATE,Revenue,EXTERNAL RESIDENTIAL CARE,606291,130245330,05-Mar-15,"7,523.88",MCCH SOCIETY LIMITED,SP0001531
WANDSWORTH COUNCIL,ASC,SOCIAL SERVICES,PRIVATE,Revenue,EXTERNAL RESIDENTIAL CARE,612495,130245330,13-Mar-15,"3,454.37",MENCAP,SP0000604
WANDSWORTH COUNCIL,ASC,SOCIAL SERVICES,PRIVATE,Revenue,EXTERNAL RESIDENTIAL CARE,612496,130245330,13-Mar-15,"3,454.37",MENCAP,SP0000604
WANDSWORTH COUNCIL,ASC,SOCIAL SERVICES,PRIVATE,Revenue,EXTERNAL RESIDENTIAL CARE,612503,130245330,13-Mar-15,"2,391.83",MENCAP,SP0000604
WANDSWORTH COUNCIL,ASC,SOCIAL SERVICES,PRIVATE,Revenue,EXTERNAL RESIDENTIAL CARE,608051,130245330,06-Mar-15,"3,659.52",METROPOLITAN HOUSING TRUST,SP0000626
WANDSWORTH COUNCIL,ASC,SOCIAL SERVICES,PRIVATE,Revenue,EXTERNAL RESIDENTIAL CARE,608052,130245330,06-Mar-15,"3,659.52",METROPOLITAN HOUSING TRUST,SP0000626
WANDSWORTH COUNCIL,ASC,SOCIAL SERVICES,PRIVATE,Revenue,EXTERNAL RESIDENTIAL CARE,608053,130245330,06-Mar-15,"3,659.52",METROPOLITAN HOUSING TRUST,SP0000626
WANDSWORTH COUNCIL,ASC,SOCIAL SERVICES,PRIVATE,Revenue,EXTERNAL RESIDENTIAL CARE,608054,130245330,06-Mar-15,"3,659.68",METROPOLITAN HOUSING TRUST,SP0000626
WANDSWORTH COUNCIL,ASC,SOCIAL SERVICES,PRIVATE,Revenue,EXTERNAL RESIDENTIAL CARE,608055,130245330,06-Mar-15,"3,628.36",METROPOLITAN HOUSING TRUST,SP0000626
WANDSWORTH COUNCIL,ASC,SOCIAL SERVICES,PRIVATE,Revenue,EXTERNAL RESIDENTIAL CARE,608056,130245330,06-Mar-15,"3,659.52",METROPOLITAN HOUSING TRUST,SP0000626
WANDSWORTH COUNCIL,ASC,SOCIAL SERVICES,PRIVATE,Revenue,EXTERNAL RESIDENTIAL CARE,608057,130245330,06-Mar-15,"3,659.52",METROPOLITAN HOUSING TRUST,SP0000626
WANDSWORTH COUNCIL,ASC,SOCIAL SERVICES,PRIVATE,Revenue,EXTERNAL RESIDENTIAL CARE,608058,130245330,06-Mar-15,"3,492.64",METROPOLITAN HOUSING TRUST,SP0000626
WANDSWORTH COUNCIL,ASC,SOCIAL SERVICES,PRIVATE,Revenue,EXTERNAL RESIDENTIAL CARE,608059,130245330,06-Mar-15,"3,659.52",METROPOLITAN HOUSING TRUST,SP0000626
WANDSWORTH COUNCIL,ASC,SOCIAL SERVICES,PRIVATE,Revenue,EXTERNAL RESIDENTIAL CARE,617501,130245330,20-Mar-15,"3,981.68",METROPOLITAN HOUSING TRUST,SP0000626
WANDSWORTH COUNCIL,ASC,SOCIAL SERVICES,PRIVATE,Revenue,EXTERNAL RESIDENTIAL CARE,617502,130245330,20-Mar-15,"3,659.52",METROPOLITAN HOUSING TRUST,SP0000626
WANDSWORTH COUNCIL,ASC,SOCIAL SERVICES,PRIVATE,Revenue,EXTERNAL RESIDENTIAL CARE,617503,130245330,20-Mar-15,"3,659.52",METROPOLITAN HOUSING TRUST,SP0000626
WANDSWORTH COUNCIL,ASC,SOCIAL SERVICES,PRIVATE,Revenue,EXTERNAL RESIDENTIAL CARE,617504,130245330,20-Mar-15,"3,659.68",METROPOLITAN HOUSING TRUST,SP0000626
WANDSWORTH COUNCIL,ASC,SOCIAL SERVICES,PRIVATE,Revenue,EXTERNAL RESIDENTIAL CARE,617505,130245330,20-Mar-15,"3,628.36",METROPOLITAN HOUSING TRUST,SP0000626
WANDSWORTH COUNCIL,ASC,SOCIAL SERVICES,PRIVATE,Revenue,EXTERNAL RESIDENTIAL CARE,617506,130245330,20-Mar-15,"3,659.52",METROPOLITAN HOUSING TRUST,SP0000626
WANDSWORTH COUNCIL,ASC,SOCIAL SERVICES,PRIVATE,Revenue,EXTERNAL RESIDENTIAL CARE,617507,130245330,20-Mar-15,"3,659.52",METROPOLITAN HOUSING TRUST,SP0000626
WANDSWORTH COUNCIL,ASC,SOCIAL SERVICES,PRIVATE,Revenue,EXTERNAL RESIDENTIAL CARE,617508,130245330,20-Mar-15,"3,492.64",METROPOLITAN HOUSING TRUST,SP0000626
WANDSWORTH COUNCIL,ASC,SOCIAL SERVICES,PRIVATE,Revenue,EXTERNAL RESIDENTIAL CARE,617509,130245330,20-Mar-15,"3,659.52",METROPOLITAN HOUSING TRUST,SP0000626
WANDSWORTH COUNCIL,ASC,SOCIAL SERVICES,PRIVATE,Revenue,EXTERNAL RESIDENTIAL CARE,609911,130245330,10-Mar-15,"8,500.00",MIGHOUSE RESIDENTIAL CARE HOME LTD,SP0001402
WANDSWORTH COUNCIL,ASC,SOCIAL SERVICES,PRIVATE,Revenue,EXTERNAL RESIDENTIAL CARE,609912,130245330,10-Mar-15,"6,800.00",MIGHOUSE RESIDENTIAL CARE HOME LTD,SP0001402
WANDSWORTH COUNCIL,ASC,SOCIAL SERVICES,PRIVATE,Revenue,EXTERNAL RESIDENTIAL CARE,611831,130245330,12-Mar-15,"2,930.00",MISSION CARE,SP0000958
WANDSWORTH COUNCIL,ASC,SOCIAL SERVICES,PRIVATE,Revenue,EXTERNAL RESIDENTIAL CARE,612489,130245330,13-Mar-15,"7,714.28",NATIONAL SOCIETY FOR EPILEPSY,SP0000120
WANDSWORTH COUNCIL,ASC,SOCIAL SERVICES,PRIVATE,Revenue,EXTERNAL RESIDENTIAL CARE,606306,130245330,05-Mar-15,"6,154.44",NORWOOD SCHOOLS LTD,SP0000332
WANDSWORTH COUNCIL,ASC,SOCIAL SERVICES,PRIVATE,Revenue,EXTERNAL RESIDENTIAL CARE,606307,130245330,05-Mar-15,"6,409.80",NORWOOD SCHOOLS LTD,SP0000332
WANDSWORTH COUNCIL,ASC,SOCIAL SERVICES,PRIVATE,Revenue,EXTERNAL RESIDENTIAL CARE,611833,130245330,12-Mar-15,"3,959.20",NUTLEY HALL LTD,SP0001581
WANDSWORTH COUNCIL,ASC,SOCIAL SERVICES,PRIVATE,Revenue,EXTERNAL RESIDENTIAL CARE,611834,130245330,12-Mar-15,"4,383.40",NUTLEY HALL LTD,SP0001581
WANDSWORTH COUNCIL,ASC,SOCIAL SERVICES,PRIVATE,Revenue,EXTERNAL RESIDENTIAL CARE,609909,130245330,10-Mar-15,"1,647.40",ORCHARD VALE TRUST,SP0000214
WANDSWORTH COUNCIL,ASC,SOCIAL SERVICES,PRIVATE,Revenue,EXTERNAL RESIDENTIAL CARE,609910,130245330,10-Mar-15,"1,647.40",ORCHARD VALE TRUST,SP0000214
WANDSWORTH COUNCIL,ASC,SOCIAL SERVICES,PRIVATE,Revenue,EXTERNAL RESIDENTIAL CARE,20302660,130245330,23-Mar-15,"4,542.00",OWNLIFE LIMITED,2014705
WANDSWORTH COUNCIL,ASC,SOCIAL SERVICES,PRIVATE,Revenue,EXTERNAL RESIDENTIAL CARE,612492,130245330,13-Mar-15,"4,035.97",PARK LODGE SOLUTIONS LTD,SP0006663
WANDSWORTH COUNCIL,ASC,SOCIAL SERVICES,PRIVATE,Revenue,EXTERNAL RESIDENTIAL CARE,615359,130245330,17-Mar-15,"4,035.96",PARK LODGE SOLUTIONS LTD,SP0006663
WANDSWORTH COUNCIL,ASC,SOCIAL SERVICES,PRIVATE,Revenue,EXTERNAL RESIDENTIAL CARE,612490,130245330,13-Mar-15,"7,581.49",PATHWAY HEALTHCARE,SP0001779
WANDSWORTH COUNCIL,ASC,SOCIAL SERVICES,PRIVATE,Revenue,EXTERNAL RESIDENTIAL CARE,612491,130245330,13-Mar-15,"7,134.21",PATHWAY HEALTHCARE,SP0001779
WANDSWORTH COUNCIL,ASC,SOCIAL SERVICES,PRIVATE,Revenue,EXTERNAL RESIDENTIAL CARE,620835,130245330,25-Mar-15,"3,135.60",POTENSIAL LTD,SP0000395
WANDSWORTH COUNCIL,ASC,SOCIAL SERVICES,PRIVATE,Revenue,EXTERNAL RESIDENTIAL CARE,604227,130245330,03-Mar-15,"8,456.27",PROGRESS HOUSING MARLOW,SP0000952
WANDSWORTH COUNCIL,ASC,SOCIAL SERVICES,PRIVATE,Revenue,EXTERNAL RESIDENTIAL CARE,615351,130245330,17-Mar-15,"8,456.27",PROGRESS HOUSING MARLOW,SP0000952
WANDSWORTH COUNCIL,ASC,SOCIAL SERVICES,PRIVATE,Revenue,EXTERNAL RESIDENTIAL CARE,611835,130245330,12-Mar-15,"3,174.01",PROSPECTS,SP0000800
WANDSWORTH COUNCIL,ASC,SOCIAL SERVICES,PRIVATE,Revenue,EXTERNAL RESIDENTIAL CARE,611843,130245330,12-Mar-15,"8,576.72",RALEIGH HOUSE LTD,SP0000760
WANDSWORTH COUNCIL,ASC,SOCIAL SERVICES,PRIVATE,Revenue,EXTERNAL RESIDENTIAL CARE,611844,130245330,12-Mar-15,"7,763.33",RALEIGH HOUSE LTD,SP0000760
WANDSWORTH COUNCIL,ASC,SOCIAL SERVICES,PRIVATE,Revenue,EXTERNAL RESIDENTIAL CARE,616807,130245330,19-Mar-15,"4,022.20",RESIDENTIAL CARE SERVICES T/A FRANKLYN L,SP0000147
WANDSWORTH COUNCIL,ASC,SOCIAL SERVICES,PRIVATE,Revenue,EXTERNAL RESIDENTIAL CARE,609043,130245330,10-Mar-15,"3,548.76",RIDGEWOOD CARE SERVICES LTD,SP0000969
WANDSWORTH COUNCIL,ASC,SOCIAL SERVICES,PRIVATE,Revenue,EXTERNAL RESIDENTIAL CARE,609095,130245330,10-Mar-15,"6,493.16",RIDGEWOOD CARE SERVICES LTD,SP0000969
WANDSWORTH COUNCIL,ASC,SOCIAL SERVICES,PRIVATE,Revenue,EXTERNAL RESIDENTIAL CARE,609098,130245330,10-Mar-15,"3,359.36",RIDGEWOOD CARE SERVICES LTD,SP0000969
WANDSWORTH COUNCIL,ASC,SOCIAL SERVICES,PRIVATE,Revenue,EXTERNAL RESIDENTIAL CARE,612537,130245330,13-Mar-15,"8,784.69",ROOKERY HOVE PRIORY,SP0001498
WANDSWORTH COUNCIL,ASC,SOCIAL SERVICES,PRIVATE,Revenue,EXTERNAL RESIDENTIAL CARE,603620,130245330,02-Mar-15,"2,162.32",SANCTUARY CARE LTD,SP0000121
WANDSWORTH COUNCIL,ASC,SOCIAL SERVICES,PRIVATE,Revenue,EXTERNAL RESIDENTIAL CARE,622599,130245330,26-Mar-15,"2,162.32",SANCTUARY CARE LTD,SP0000121
WANDSWORTH COUNCIL,ASC,SOCIAL SERVICES,PRIVATE,Revenue,EXTERNAL RESIDENTIAL CARE,617517,130245330,20-Mar-15,"2,098.50",SAXON COURT,SP0001100
WANDSWORTH COUNCIL,ASC,SOCIAL SERVICES,PRIVATE,Revenue,EXTERNAL RESIDENTIAL CARE,617518,130245330,20-Mar-15,"2,323.33",SAXON COURT,SP0001100
WANDSWORTH COUNCIL,ASC,SOCIAL SERVICES,PRIVATE,Revenue,EXTERNAL RESIDENTIAL CARE,620815,130245330,25-Mar-15,"2,249.54",SCOPE,SP0000852
WANDSWORTH COUNCIL,ASC,SOCIAL SERVICES,PRIVATE,Revenue,EXTERNAL RESIDENTIAL CARE,620816,130245330,25-Mar-15,"2,618.36",SCOPE,SP0000852
WANDSWORTH COUNCIL,ASC,SOCIAL SERVICES,PRIVATE,Revenue,EXTERNAL RESIDENTIAL CARE,620817,130245330,25-Mar-15,"2,763.53",SCOPE,SP0000852
WANDSWORTH COUNCIL,ASC,SOCIAL SERVICES,PRIVATE,Revenue,EXTERNAL RESIDENTIAL CARE,609039,130245330,10-Mar-15,"2,178.12",ST DAVIDS CARE IN THE COMMUNITY,SP0000379
WANDSWORTH COUNCIL,ASC,SOCIAL SERVICES,PRIVATE,Revenue,EXTERNAL RESIDENTIAL CARE,609040,130245330,10-Mar-15,"2,625.12",ST DAVIDS CARE IN THE COMMUNITY,SP0000379
WANDSWORTH COUNCIL,ASC,SOCIAL SERVICES,PRIVATE,Revenue,EXTERNAL RESIDENTIAL CARE,609041,130245330,10-Mar-15,"2,178.12",ST DAVIDS CARE IN THE COMMUNITY,SP0000379
WANDSWORTH COUNCIL,ASC,SOCIAL SERVICES,PRIVATE,Revenue,EXTERNAL RESIDENTIAL CARE,606289,130245330,05-Mar-15,"3,347.72",ST MARYS RESIDENTIAL HOME,SP0000215
WANDSWORTH COUNCIL,ASC,SOCIAL SERVICES,PRIVATE,Revenue,EXTERNAL RESIDENTIAL CARE,616811,130245330,19-Mar-15,"3,961.80",ST MARYS RESIDENTIAL HOME,SP0000215
WANDSWORTH COUNCIL,ASC,SOCIAL SERVICES,PRIVATE,Revenue,EXTERNAL RESIDENTIAL CARE,616812,130245330,19-Mar-15,"3,582.71",ST MARYS RESIDENTIAL HOME,SP0000215
WANDSWORTH COUNCIL,ASC,SOCIAL SERVICES,PRIVATE,Revenue,EXTERNAL RESIDENTIAL CARE,616813,130245330,19-Mar-15,"3,898.73",ST MARYS RESIDENTIAL HOME,SP0000215
WANDSWORTH COUNCIL,ASC,SOCIAL SERVICES,PRIVATE,Revenue,EXTERNAL RESIDENTIAL CARE,616814,130245330,19-Mar-15,"5,127.49",ST MARYS RESIDENTIAL HOME,SP0000215
WANDSWORTH COUNCIL,ASC,SOCIAL SERVICES,PRIVATE,Revenue,EXTERNAL RESIDENTIAL CARE,616815,130245330,19-Mar-15,"3,569.82",ST MARYS RESIDENTIAL HOME,SP0000215
WANDSWORTH COUNCIL,ASC,SOCIAL SERVICES,PRIVATE,Revenue,EXTERNAL RESIDENTIAL CARE,616816,130245330,19-Mar-15,"3,711.63",ST MARYS RESIDENTIAL HOME,SP0000215
WANDSWORTH COUNCIL,ASC,SOCIAL SERVICES,PRIVATE,Revenue,EXTERNAL RESIDENTIAL CARE,616817,130245330,19-Mar-15,"3,134.18",ST MARYS RESIDENTIAL HOME,SP0000215
WANDSWORTH COUNCIL,ASC,SOCIAL SERVICES,PRIVATE,Revenue,EXTERNAL RESIDENTIAL CARE,616818,130245330,19-Mar-15,"5,041.35",ST MARYS RESIDENTIAL HOME,SP0000215
WANDSWORTH COUNCIL,ASC,SOCIAL SERVICES,PRIVATE,Revenue,EXTERNAL RESIDENTIAL CARE,616819,130245330,19-Mar-15,"3,619.78",ST MARYS RESIDENTIAL HOME,SP0000215
WANDSWORTH COUNCIL,ASC,SOCIAL SERVICES,PRIVATE,Revenue,EXTERNAL RESIDENTIAL CARE,616820,130245330,19-Mar-15,"3,582.71",ST MARYS RESIDENTIAL HOME,SP0000215
WANDSWORTH COUNCIL,ASC,SOCIAL SERVICES,PRIVATE,Revenue,EXTERNAL RESIDENTIAL CARE,616821,130245330,19-Mar-15,"3,542.85",ST MARYS RESIDENTIAL HOME,SP0000215
WANDSWORTH COUNCIL,ASC,SOCIAL SERVICES,PRIVATE,Revenue,EXTERNAL RESIDENTIAL CARE,616822,130245330,19-Mar-15,"2,313.48",ST MARYS RESIDENTIAL HOME,SP0000215
WANDSWORTH COUNCIL,ASC,SOCIAL SERVICES,PRIVATE,Revenue,EXTERNAL RESIDENTIAL CARE,617476,130245330,20-Mar-15,"3,578.40",ST MARYS RESIDENTIAL HOME,SP0000215
WANDSWORTH COUNCIL,ASC,SOCIAL SERVICES,PRIVATE,Revenue,EXTERNAL RESIDENTIAL CARE,617477,130245330,20-Mar-15,"3,236.00",ST MARYS RESIDENTIAL HOME,SP0000215
WANDSWORTH COUNCIL,ASC,SOCIAL SERVICES,PRIVATE,Revenue,EXTERNAL RESIDENTIAL CARE,617478,130245330,20-Mar-15,"3,521.43",ST MARYS RESIDENTIAL HOME,SP0000215
WANDSWORTH COUNCIL,ASC,SOCIAL SERVICES,PRIVATE,Revenue,EXTERNAL RESIDENTIAL CARE,617479,130245330,20-Mar-15,"4,631.28",ST MARYS RESIDENTIAL HOME,SP0000215
WANDSWORTH COUNCIL,ASC,SOCIAL SERVICES,PRIVATE,Revenue,EXTERNAL RESIDENTIAL CARE,617480,130245330,20-Mar-15,"3,224.36",ST MARYS RESIDENTIAL HOME,SP0000215
WANDSWORTH COUNCIL,ASC,SOCIAL SERVICES,PRIVATE,Revenue,EXTERNAL RESIDENTIAL CARE,617481,130245330,20-Mar-15,"3,352.44",ST MARYS RESIDENTIAL HOME,SP0000215
WANDSWORTH COUNCIL,ASC,SOCIAL SERVICES,PRIVATE,Revenue,EXTERNAL RESIDENTIAL CARE,617482,130245330,20-Mar-15,"2,830.88",ST MARYS RESIDENTIAL HOME,SP0000215
WANDSWORTH COUNCIL,ASC,SOCIAL SERVICES,PRIVATE,Revenue,EXTERNAL RESIDENTIAL CARE,617483,130245330,20-Mar-15,"4,553.48",ST MARYS RESIDENTIAL HOME,SP0000215
WANDSWORTH COUNCIL,ASC,SOCIAL SERVICES,PRIVATE,Revenue,EXTERNAL RESIDENTIAL CARE,617484,130245330,20-Mar-15,"3,269.47",ST MARYS RESIDENTIAL HOME,SP0000215
WANDSWORTH COUNCIL,ASC,SOCIAL SERVICES,PRIVATE,Revenue,EXTERNAL RESIDENTIAL CARE,617485,130245330,20-Mar-15,"3,236.00",ST MARYS RESIDENTIAL HOME,SP0000215
WANDSWORTH COUNCIL,ASC,SOCIAL SERVICES,PRIVATE,Revenue,EXTERNAL RESIDENTIAL CARE,617486,130245330,20-Mar-15,"3,269.48",ST MARYS RESIDENTIAL HOME,SP0000215
WANDSWORTH COUNCIL,ASC,SOCIAL SERVICES,PRIVATE,Revenue,EXTERNAL RESIDENTIAL CARE,617487,130245330,20-Mar-15,"3,200.00",ST MARYS RESIDENTIAL HOME,SP0000215
WANDSWORTH COUNCIL,ASC,SOCIAL SERVICES,PRIVATE,Revenue,EXTERNAL RESIDENTIAL CARE,617488,130245330,20-Mar-15,"3,101.12",ST MARYS RESIDENTIAL HOME,SP0000215
WANDSWORTH COUNCIL,ASC,SOCIAL SERVICES,PRIVATE,Revenue,EXTERNAL RESIDENTIAL CARE,617489,130245330,20-Mar-15,"3,723.12",ST MARYS RESIDENTIAL HOME,SP0000215
WANDSWORTH COUNCIL,ASC,SOCIAL SERVICES,PRIVATE,Revenue,EXTERNAL RESIDENTIAL CARE,618638,130245330,23-Mar-15,"3,269.48",ST MARYS RESIDENTIAL HOME,SP0000215
WANDSWORTH COUNCIL,ASC,SOCIAL SERVICES,PRIVATE,Revenue,EXTERNAL RESIDENTIAL CARE,618639,130245330,23-Mar-15,"3,101.12",ST MARYS RESIDENTIAL HOME,SP0000215
WANDSWORTH COUNCIL,ASC,SOCIAL SERVICES,PRIVATE,Revenue,EXTERNAL RESIDENTIAL CARE,618640,130245330,23-Mar-15,"3,723.12",ST MARYS RESIDENTIAL HOME,SP0000215
WANDSWORTH COUNCIL,ASC,SOCIAL SERVICES,PRIVATE,Revenue,EXTERNAL RESIDENTIAL CARE,617497,130245330,20-Mar-15,"9,303.25",SURREY & BORDERS PARTNERSHIP NHS TRUST,SP0000501
WANDSWORTH COUNCIL,ASC,SOCIAL SERVICES,PRIVATE,Revenue,EXTERNAL RESIDENTIAL CARE,617498,130245330,20-Mar-15,"5,823.78",SURREY & BORDERS PARTNERSHIP NHS TRUST,SP0000501
WANDSWORTH COUNCIL,ASC,SOCIAL SERVICES,PRIVATE,Revenue,EXTERNAL RESIDENTIAL CARE,609036,130245330,10-Mar-15,"7,153.22",SUSSEX HEALTH CARE,SP0001115
WANDSWORTH COUNCIL,ASC,SOCIAL SERVICES,PRIVATE,Revenue,EXTERNAL RESIDENTIAL CARE,612519,130245330,13-Mar-15,"6,186.63",SUSSEX HEALTH CARE,SP0001115
WANDSWORTH COUNCIL,ASC,SOCIAL SERVICES,PRIVATE,Revenue,EXTERNAL RESIDENTIAL CARE,616806,130245330,19-Mar-15,"9,312.93",TANGLEWOOD CARE HOME,SP0000167
WANDSWORTH COUNCIL,ASC,SOCIAL SERVICES,PRIVATE,Revenue,EXTERNAL RESIDENTIAL CARE,608044,130245330,06-Mar-15,"6,408.96",THE BRANDON TRUST,SP0005337
WANDSWORTH COUNCIL,ASC,SOCIAL SERVICES,PRIVATE,Revenue,EXTERNAL RESIDENTIAL CARE,611857,130245330,12-Mar-15,"6,408.96",THE BRANDON TRUST,SP0005337
WANDSWORTH COUNCIL,ASC,SOCIAL SERVICES,PRIVATE,Revenue,EXTERNAL RESIDENTIAL CARE,606288,130245330,05-Mar-15,"4,593.96",THE CHESTNUTS,SP0000182
WANDSWORTH COUNCIL,ASC,SOCIAL SERVICES,PRIVATE,Revenue,EXTERNAL RESIDENTIAL CARE,608030,130245330,06-Mar-15,"4,593.96",THE CHESTNUTS,SP0000182
WANDSWORTH COUNCIL,ASC,SOCIAL SERVICES,PRIVATE,Revenue,EXTERNAL RESIDENTIAL CARE,617471,130245330,20-Mar-15,"4,593.96",THE CHESTNUTS,SP0000182
WANDSWORTH COUNCIL,ASC,SOCIAL SERVICES,PRIVATE,Revenue,EXTERNAL RESIDENTIAL CARE,609027,130245330,10-Mar-15,"6,127.37",THE COMMUNITY CARE COMPANY UK LTD,SP0000576
WANDSWORTH COUNCIL,ASC,SOCIAL SERVICES,PRIVATE,Revenue,EXTERNAL RESIDENTIAL CARE,609106,130245330,10-Mar-15,"5,588.41",THE COMMUNITY CARE COMPANY UK LTD,SP0000576
WANDSWORTH COUNCIL,ASC,SOCIAL SERVICES,PRIVATE,Revenue,EXTERNAL RESIDENTIAL CARE,609107,130245330,10-Mar-15,"7,051.53",THE COMMUNITY CARE COMPANY UK LTD,SP0000576
WANDSWORTH COUNCIL,ASC,SOCIAL SERVICES,PRIVATE,Revenue,EXTERNAL RESIDENTIAL CARE,609108,130245330,10-Mar-15,"5,943.28",THE COMMUNITY CARE COMPANY UK LTD,SP0000576
WANDSWORTH COUNCIL,ASC,SOCIAL SERVICES,PRIVATE,Revenue,EXTERNAL RESIDENTIAL CARE,609112,130245330,10-Mar-15,"7,131.86",THE COMMUNITY CARE COMPANY UK LTD,SP0000576
WANDSWORTH COUNCIL,ASC,SOCIAL SERVICES,PRIVATE,Revenue,EXTERNAL RESIDENTIAL CARE,612694,130245330,13-Mar-15,"7,708.95",THE DISABILITIES TRUST,SP0000239
WANDSWORTH COUNCIL,ASC,SOCIAL SERVICES,PRIVATE,Revenue,EXTERNAL RESIDENTIAL CARE,612514,130245330,13-Mar-15,"2,743.88",THE HOME FARM TRUST LTD,SP0001048
WANDSWORTH COUNCIL,ASC,SOCIAL SERVICES,PRIVATE,Revenue,EXTERNAL RESIDENTIAL CARE,612515,130245330,13-Mar-15,"2,323.00",THE HOME FARM TRUST LTD,SP0001048
WANDSWORTH COUNCIL,ASC,SOCIAL SERVICES,PRIVATE,Revenue,EXTERNAL RESIDENTIAL CARE,612516,130245330,13-Mar-15,"2,457.40",THE HOME FARM TRUST LTD,SP0001048
WANDSWORTH COUNCIL,ASC,SOCIAL SERVICES,PRIVATE,Revenue,EXTERNAL RESIDENTIAL CARE,609025,130245330,10-Mar-15,"3,957.32",THE LEO TRUST,SP0000908
WANDSWORTH COUNCIL,ASC,SOCIAL SERVICES,PRIVATE,Revenue,EXTERNAL RESIDENTIAL CARE,615363,130245330,17-Mar-15,"3,099.03",THE MANOR HOUSE,SP0000728
WANDSWORTH COUNCIL,ASC,SOCIAL SERVICES,PRIVATE,Revenue,EXTERNAL RESIDENTIAL CARE,622973,130245330,26-Mar-15,"5,894.82",THE REGARD PARTNERSHIP,SP0000588
WANDSWORTH COUNCIL,ASC,SOCIAL SERVICES,PRIVATE,Revenue,EXTERNAL RESIDENTIAL CARE,612700,130245330,13-Mar-15,"4,403.76",THE WELL HOUSE,SP0000448
WANDSWORTH COUNCIL,ASC,SOCIAL SERVICES,PRIVATE,Revenue,EXTERNAL RESIDENTIAL CARE,612701,130245330,13-Mar-15,"4,654.08",THE WELL HOUSE,SP0000448
WANDSWORTH COUNCIL,ASC,SOCIAL SERVICES,PRIVATE,Revenue,EXTERNAL RESIDENTIAL CARE,606862,130245330,05-Mar-15,"7,395.80",TOTTERDOWN,SP0001113
WANDSWORTH COUNCIL,ASC,SOCIAL SERVICES,PRIVATE,Revenue,EXTERNAL RESIDENTIAL CARE,606863,130245330,05-Mar-15,"3,671.24",TOTTERDOWN,SP0001113
WANDSWORTH COUNCIL,ASC,SOCIAL SERVICES,PRIVATE,Revenue,EXTERNAL RESIDENTIAL CARE,609092,130245330,10-Mar-15,"5,979.28",VOYAGE CARE LTD,SP0000366
WANDSWORTH COUNCIL,ASC,SOCIAL SERVICES,PRIVATE,Revenue,EXTERNAL RESIDENTIAL CARE,609093,130245330,10-Mar-15,"7,444.36",VOYAGE CARE LTD,SP0000366
WANDSWORTH COUNCIL,ASC,SOCIAL SERVICES,PRIVATE,Revenue,EXTERNAL RESIDENTIAL CARE,609096,130245330,10-Mar-15,"7,766.72",VOYAGE CARE LTD,SP0000366
WANDSWORTH COUNCIL,ASC,SOCIAL SERVICES,PRIVATE,Revenue,EXTERNAL RESIDENTIAL CARE,609097,130245330,10-Mar-15,"6,441.12",VOYAGE CARE LTD,SP0000366
WANDSWORTH COUNCIL,ASC,SOCIAL SERVICES,PRIVATE,Revenue,EXTERNAL RESIDENTIAL CARE,609105,130245330,10-Mar-15,"5,701.56",WESSEX AUTISTIC SOCIETY,SP0000805
WANDSWORTH COUNCIL,ASC,SOCIAL SERVICES,PRIVATE,Revenue,EXTERNAL RESIDENTIAL CARE,606329,130245330,05-Mar-15,"4,831.44",WHITE ROSE CARE,SP0000780
WANDSWORTH COUNCIL,ASC,SOCIAL SERVICES,PRIVATE,Revenue,EXTERNAL RESIDENTIAL CARE,608042,130245330,06-Mar-15,"16,499.83",WHITMORE VALE HOUSING ASSOCIATION LTD,SP0000694
WANDSWORTH COUNCIL,ASC,SOCIAL SERVICES,PRIVATE,Revenue,EXTERNAL RESIDENTIAL CARE,604231,130245330,03-Mar-15,"5,599.36",WINSLOW COURT,SP0000886
WANDSWORTH COUNCIL,ASC,SOCIAL SERVICES,PRIVATE,Revenue,EXTERNAL RESIDENTIAL CARE,604232,130245330,03-Mar-15,"5,819.32",WINSLOW COURT,SP0000886
WANDSWORTH COUNCIL,ASC,ENVIRONMENT & COMMUNITY,PRIVATE,Revenue,EXTERNAL RESI RESPITE CARE,614190,130245340,17-Mar-15,"38,875.58",SOUTHSIDE PARTNERSHIP,SP0000692
WANDSWORTH COUNCIL,ASC,SOCIAL SERVICES,PRIVATE,Revenue,RESPITE CARE AT HOME -VOUCHERS,611312,130245510,11-Mar-15,"1,178.26",RAINBOW MEDICAL SERVICES,SP0000037
WANDSWORTH COUNCIL,ASC,SOCIAL SERVICES,PRIVATE,Revenue,ONE TO ONE CARE,609220,130246220,10-Mar-15,"2,018.10",ACH OF LONDON LLP,SP0001688
WANDSWORTH COUNCIL,ASC,SOCIAL SERVICES,PRIVATE,Revenue,ONE TO ONE CARE,611839,130246220,12-Mar-15,"1,600.44",CORICH COMMUNITY CARE LTD,SP0000915
WANDSWORTH COUNCIL,ASC,SOCIAL SERVICES,PRIVATE,Revenue,ONE TO ONE CARE,608156,130246220,06-Mar-15,"3,321.43",CRAEGMOOR OLD RECTORY BREDE PRIORY,SP0001621
WANDSWORTH COUNCIL,ASC,SOCIAL SERVICES,PRIVATE,Revenue,ONE TO ONE CARE,615397,130246220,17-Mar-15,"3,321.43",CRAEGMOOR OLD RECTORY BREDE PRIORY,SP0001621
WANDSWORTH COUNCIL,ASC,SOCIAL SERVICES,PRIVATE,Revenue,ONE TO ONE CARE,617629,130246220,20-Mar-15,"3,000.00",CRAEGMOOR OLD RECTORY BREDE PRIORY,SP0001621
WANDSWORTH COUNCIL,ASC,SOCIAL SERVICES,PRIVATE,Revenue,ONE TO ONE CARE,609342,130246220,10-Mar-15,"2,884.77",DOWNING (CHERTSEY ROAD) LTD,SP0000959
WANDSWORTH COUNCIL,ASC,SOCIAL SERVICES,PRIVATE,Revenue,ONE TO ONE CARE,606422,130246220,05-Mar-15,884.88,FRANCES TAYLOR FOUNDATION,SP0000142
WANDSWORTH COUNCIL,ASC,SOCIAL SERVICES,PRIVATE,Revenue,ONE TO ONE CARE,611434,130246220,11-Mar-15,708.24,FRONTIER SUPPORT SERVICES LTD,SP0001132
WANDSWORTH COUNCIL,ASC,SOCIAL SERVICES,PRIVATE,Revenue,ONE TO ONE CARE,618703,130246220,23-Mar-15,"1,096.55",HARINGEY ASSOCIATION FOR INDEPENDENT LIV,SP0000222
WANDSWORTH COUNCIL,ASC,SOCIAL SERVICES,PRIVATE,Revenue,ONE TO ONE CARE,615394,130246220,17-Mar-15,802.08,LARKFIELD HALL LTD T/A PEPENBURY,SP0001378
WANDSWORTH COUNCIL,ASC,SOCIAL SERVICES,PRIVATE,Revenue,ONE TO ONE CARE,611999,130246220,12-Mar-15,"1,350.52",MACINTYRE CARE,SP0000473
WANDSWORTH COUNCIL,ASC,SOCIAL SERVICES,PRIVATE,Revenue,ONE TO ONE CARE,612000,130246220,12-Mar-15,"1,350.52",MACINTYRE CARE,SP0000473
WANDSWORTH COUNCIL,ASC,SOCIAL SERVICES,PRIVATE,Revenue,ONE TO ONE CARE,612001,130246220,12-Mar-15,"1,910.04",MACINTYRE CARE,SP0000473
WANDSWORTH COUNCIL,ASC,SOCIAL SERVICES,PRIVATE,Revenue,ONE TO ONE CARE,612002,130246220,12-Mar-15,"1,350.52",MACINTYRE CARE,SP0000473
WANDSWORTH COUNCIL,ASC,SOCIAL SERVICES,PRIVATE,Revenue,ONE TO ONE CARE,612003,130246220,12-Mar-15,694.56,MACINTYRE CARE,SP0000473
WANDSWORTH COUNCIL,ASC,SOCIAL SERVICES,PRIVATE,Revenue,ONE TO ONE CARE,611994,130246220,12-Mar-15,"3,171.84",METROPOLITAN HOUSING TRUST,SP0000626
WANDSWORTH COUNCIL,ASC,SOCIAL SERVICES,PRIVATE,Revenue,ONE TO ONE CARE,611997,130246220,12-Mar-15,"2,039.04",METROPOLITAN HOUSING TRUST,SP0000626
WANDSWORTH COUNCIL,ASC,SOCIAL SERVICES,PRIVATE,Revenue,ONE TO ONE CARE,618684,130246220,23-Mar-15,"3,171.84",METROPOLITAN HOUSING TRUST,SP0000626
WANDSWORTH COUNCIL,ASC,SOCIAL SERVICES,PRIVATE,Revenue,ONE TO ONE CARE,618687,130246220,23-Mar-15,"2,039.04",METROPOLITAN HOUSING TRUST,SP0000626
WANDSWORTH COUNCIL,ASC,SOCIAL SERVICES,PRIVATE,Revenue,ONE TO ONE CARE,611424,130246220,11-Mar-15,"1,553.60",RAINBOW MEDICAL SERVICES,SP0000037
WANDSWORTH COUNCIL,ASC,SOCIAL SERVICES,PRIVATE,Revenue,ONE TO ONE CARE,611426,130246220,11-Mar-15,"2,056.08",RAINBOW MEDICAL SERVICES,SP0000037
WANDSWORTH COUNCIL,ASC,SOCIAL SERVICES,PRIVATE,Revenue,ONE TO ONE CARE,611428,130246220,11-Mar-15,914.40,RAINBOW MEDICAL SERVICES,SP0000037
WANDSWORTH COUNCIL,ASC,SOCIAL SERVICES,PRIVATE,Revenue,ONE TO ONE CARE,611429,130246220,11-Mar-15,"2,133.60",RAINBOW MEDICAL SERVICES,SP0000037
WANDSWORTH COUNCIL,ASC,SOCIAL SERVICES,PRIVATE,Revenue,ONE TO ONE CARE,616875,130246220,19-Mar-15,693.78,ST MARYS RESIDENTIAL HOME,SP0000215
WANDSWORTH COUNCIL,ASC,SOCIAL SERVICES,PRIVATE,Revenue,ONE TO ONE CARE,616876,130246220,19-Mar-15,648.83,ST MARYS RESIDENTIAL HOME,SP0000215
WANDSWORTH COUNCIL,ASC,SOCIAL SERVICES,PRIVATE,Revenue,ONE TO ONE CARE,617627,130246220,20-Mar-15,626.64,ST MARYS RESIDENTIAL HOME,SP0000215
WANDSWORTH COUNCIL,ASC,SOCIAL SERVICES,PRIVATE,Revenue,ONE TO ONE CARE,617628,130246220,20-Mar-15,586.04,ST MARYS RESIDENTIAL HOME,SP0000215
WANDSWORTH COUNCIL,ASC,SOCIAL SERVICES,PRIVATE,Revenue,ONE TO ONE CARE,608165,130246220,06-Mar-15,"1,987.20",THE BRANDON TRUST,SP0005337
WANDSWORTH COUNCIL,ASC,SOCIAL SERVICES,PRIVATE,Revenue,ONE TO ONE CARE,608166,130246220,06-Mar-15,"2,450.88",THE BRANDON TRUST,SP0005337
WANDSWORTH COUNCIL,ASC,SOCIAL SERVICES,PRIVATE,Revenue,ONE TO ONE CARE,609240,130246220,10-Mar-15,324.00,THE BRANDON TRUST,SP0005337
WANDSWORTH COUNCIL,ASC,SOCIAL SERVICES,PRIVATE,Revenue,ONE TO ONE CARE,609294,130246220,10-Mar-15,600.04,THE BRANDON TRUST,SP0005337
WANDSWORTH COUNCIL,ASC,SOCIAL SERVICES,PRIVATE,Revenue,ONE TO ONE CARE,609306,130246220,10-Mar-15,331.20,THE BRANDON TRUST,SP0005337
WANDSWORTH COUNCIL,ASC,SOCIAL SERVICES,PRIVATE,Revenue,ONE TO ONE CARE,609308,130246220,10-Mar-15,331.20,THE BRANDON TRUST,SP0005337
WANDSWORTH COUNCIL,ASC,SOCIAL SERVICES,PRIVATE,Revenue,ONE TO ONE CARE,609983,130246220,10-Mar-15,"1,312.00",THE BRANDON TRUST,SP0005337
WANDSWORTH COUNCIL,ASC,SOCIAL SERVICES,PRIVATE,Revenue,ONE TO ONE CARE,609985,130246220,10-Mar-15,"2,450.88",THE BRANDON TRUST,SP0005337
WANDSWORTH COUNCIL,ASC,SOCIAL SERVICES,PRIVATE,Revenue,ONE TO ONE CARE,609999,130246220,10-Mar-15,600.04,THE BRANDON TRUST,SP0005337
WANDSWORTH COUNCIL,ASC,SOCIAL SERVICES,PRIVATE,Revenue,ONE TO ONE CARE,610010,130246220,10-Mar-15,331.20,THE BRANDON TRUST,SP0005337
WANDSWORTH COUNCIL,ASC,SOCIAL SERVICES,PRIVATE,Revenue,ONE TO ONE CARE,610012,130246220,10-Mar-15,331.20,THE BRANDON TRUST,SP0005337
WANDSWORTH COUNCIL,ASC,SOCIAL SERVICES,PRIVATE,Revenue,ONE TO ONE CARE,610038,130246220,10-Mar-15,324.00,THE BRANDON TRUST,SP0005337
WANDSWORTH COUNCIL,ASC,SOCIAL SERVICES,PRIVATE,Revenue,ONE TO ONE CARE,610061,130246220,10-Mar-15,"1,987.20",THE BRANDON TRUST,SP0005337
WANDSWORTH COUNCIL,ASC,SOCIAL SERVICES,PRIVATE,Revenue,ONE TO ONE CARE,617618,130246220,20-Mar-15,720.00,THE CHESTNUTS,SP0000182
WANDSWORTH COUNCIL,ASC,SOCIAL SERVICES,PRIVATE,Revenue,ONE TO ONE CARE,609319,130246220,10-Mar-15,"1,152.89",THE COMMUNITY CARE COMPANY UK LTD,SP0000576
WANDSWORTH COUNCIL,ASC,SOCIAL SERVICES,PRIVATE,Revenue,ONE TO ONE CARE,609320,130246220,10-Mar-15,"1,314.80",THE COMMUNITY CARE COMPANY UK LTD,SP0000576
WANDSWORTH COUNCIL,ASC,SOCIAL SERVICES,PRIVATE,Revenue,ONE TO ONE CARE,606421,130246220,05-Mar-15,"1,597.44",TOTTERDOWN,SP0001113
WANDSWORTH COUNCIL,ASC,SOCIAL SERVICES,VOL ASS,Revenue,SUPPORTED HOUSING PROGRAMME,616833,130248030,19-Mar-15,"1,845.00",ACT TOO LTD,SP0000855
WANDSWORTH COUNCIL,ASC,SOCIAL SERVICES,VOL ASS,Revenue,SUPPORTED HOUSING PROGRAMME,616835,130248030,19-Mar-15,720.00,ACT TOO LTD,SP0000855
WANDSWORTH COUNCIL,ASC,SOCIAL SERVICES,VOL ASS,Revenue,SUPPORTED HOUSING PROGRAMME,616837,130248030,19-Mar-15,690.00,ACT TOO LTD,SP0000855
WANDSWORTH COUNCIL,ASC,SOCIAL SERVICES,VOL ASS,Revenue,SUPPORTED HOUSING PROGRAMME,616840,130248030,19-Mar-15,700.00,ACT TOO LTD,SP0000855
WANDSWORTH COUNCIL,ASC,SOCIAL SERVICES,VOL ASS,Revenue,SUPPORTED HOUSING PROGRAMME,616848,130248030,19-Mar-15,672.00,ACT TOO LTD,SP0000855
WANDSWORTH COUNCIL,ASC,SOCIAL SERVICES,VOL ASS,Revenue,SUPPORTED HOUSING PROGRAMME,616849,130248030,19-Mar-15,"1,568.00",ACT TOO LTD,SP0000855
WANDSWORTH COUNCIL,ASC,SOCIAL SERVICES,VOL ASS,Revenue,SUPPORTED HOUSING PROGRAMME,616850,130248030,19-Mar-15,784.00,ACT TOO LTD,SP0000855
WANDSWORTH COUNCIL,ASC,SOCIAL SERVICES,VOL ASS,Revenue,SUPPORTED HOUSING PROGRAMME,616851,130248030,19-Mar-15,620.76,ACT TOO LTD,SP0000855
WANDSWORTH COUNCIL,ASC,SOCIAL SERVICES,VOL ASS,Revenue,SUPPORTED HOUSING PROGRAMME,616852,130248030,19-Mar-15,600.00,ACT TOO LTD,SP0000855
WANDSWORTH COUNCIL,ASC,SOCIAL SERVICES,VOL ASS,Revenue,SUPPORTED HOUSING PROGRAMME,616853,130248030,19-Mar-15,"1,260.00",ACT TOO LTD,SP0000855
WANDSWORTH COUNCIL,ASC,SOCIAL SERVICES,VOL ASS,Revenue,SUPPORTED HOUSING PROGRAMME,616854,130248030,19-Mar-15,"11,760.00",ACT TOO LTD,SP0000855
WANDSWORTH COUNCIL,ASC,SOCIAL SERVICES,VOL ASS,Revenue,SUPPORTED HOUSING PROGRAMME,616855,130248030,19-Mar-15,"1,800.00",ACT TOO LTD,SP0000855
WANDSWORTH COUNCIL,ASC,SOCIAL SERVICES,VOL ASS,Revenue,SUPPORTED HOUSING PROGRAMME,616857,130248030,19-Mar-15,"1,680.00",ACT TOO LTD,SP0000855
WANDSWORTH COUNCIL,ASC,SOCIAL SERVICES,VOL ASS,Revenue,SUPPORTED HOUSING PROGRAMME,616859,130248030,19-Mar-15,720.00,ACT TOO LTD,SP0000855
WANDSWORTH COUNCIL,ASC,SOCIAL SERVICES,VOL ASS,Revenue,SUPPORTED HOUSING PROGRAMME,616860,130248030,19-Mar-15,"1,320.00",ACT TOO LTD,SP0000855
WANDSWORTH COUNCIL,ASC,SOCIAL SERVICES,VOL ASS,Revenue,SUPPORTED HOUSING PROGRAMME,616861,130248030,19-Mar-15,"1,402.50",ACT TOO LTD,SP0000855
WANDSWORTH COUNCIL,ASC,SOCIAL SERVICES,VOL ASS,Revenue,SUPPORTED HOUSING PROGRAMME,616863,130248030,19-Mar-15,"2,220.00",ACT TOO LTD,SP0000855
WANDSWORTH COUNCIL,ASC,SOCIAL SERVICES,VOL ASS,Revenue,SUPPORTED HOUSING PROGRAMME,616864,130248030,19-Mar-15,"1,350.00",ACT TOO LTD,SP0000855
WANDSWORTH COUNCIL,ASC,SOCIAL SERVICES,VOL ASS,Revenue,SUPPORTED HOUSING PROGRAMME,616869,130248030,19-Mar-15,"1,440.00",ACT TOO LTD,SP0000855
WANDSWORTH COUNCIL,ASC,SOCIAL SERVICES,VOL ASS,Revenue,SUPPORTED HOUSING PROGRAMME,617574,130248030,20-Mar-15,554.04,ACT TOO LTD,SP0000855
WANDSWORTH COUNCIL,ASC,SOCIAL SERVICES,VOL ASS,Revenue,SUPPORTED HOUSING PROGRAMME,608172,130248030,06-Mar-15,"1,687.76",C M CARE LTD,SP0000455
WANDSWORTH COUNCIL,ASC,SOCIAL SERVICES,VOL ASS,Revenue,SUPPORTED HOUSING PROGRAMME,620285,130248030,25-Mar-15,"4,772.00",CARE UNLIMITED DOMCARE LIMITED,SP0005359
WANDSWORTH COUNCIL,ASC,SOCIAL SERVICES,VOL ASS,Revenue,SUPPORTED HOUSING PROGRAMME,609232,130248030,10-Mar-15,"8,080.68",CHOICE SUPPORT,SP0000398
WANDSWORTH COUNCIL,ASC,SOCIAL SERVICES,VOL ASS,Revenue,SUPPORTED HOUSING PROGRAMME,611275,130248030,11-Mar-15,"7,972.24",CHOICE SUPPORT,SP0000398
WANDSWORTH COUNCIL,ASC,SOCIAL SERVICES,VOL ASS,Revenue,SUPPORTED HOUSING PROGRAMME,611432,130248030,11-Mar-15,"1,535.48",FRONTIER SUPPORT SERVICES LTD,SP0001132
WANDSWORTH COUNCIL,ASC,SOCIAL SERVICES,VOL ASS,Revenue,SUPPORTED HOUSING PROGRAMME,611433,130248030,11-Mar-15,"1,251.12",FRONTIER SUPPORT SERVICES LTD,SP0001132
WANDSWORTH COUNCIL,ASC,SOCIAL SERVICES,VOL ASS,Revenue,SUPPORTED HOUSING PROGRAMME,611434,130248030,11-Mar-15,"1,097.60",FRONTIER SUPPORT SERVICES LTD,SP0001132
WANDSWORTH COUNCIL,ASC,SOCIAL SERVICES,VOL ASS,Revenue,SUPPORTED HOUSING PROGRAMME,611435,130248030,11-Mar-15,"1,533.00",FRONTIER SUPPORT SERVICES LTD,SP0001132
WANDSWORTH COUNCIL,ASC,SOCIAL SERVICES,VOL ASS,Revenue,SUPPORTED HOUSING PROGRAMME,611436,130248030,11-Mar-15,"1,864.88",FRONTIER SUPPORT SERVICES LTD,SP0001132
WANDSWORTH COUNCIL,ASC,SOCIAL SERVICES,VOL ASS,Revenue,SUPPORTED HOUSING PROGRAMME,611437,130248030,11-Mar-15,"1,353.32",FRONTIER SUPPORT SERVICES LTD,SP0001132
WANDSWORTH COUNCIL,ASC,SOCIAL SERVICES,VOL ASS,Revenue,SUPPORTED HOUSING PROGRAMME,611438,130248030,11-Mar-15,"1,353.32",FRONTIER SUPPORT SERVICES LTD,SP0001132
WANDSWORTH COUNCIL,ASC,SOCIAL SERVICES,VOL ASS,Revenue,SUPPORTED HOUSING PROGRAMME,611439,130248030,11-Mar-15,"1,097.52",FRONTIER SUPPORT SERVICES LTD,SP0001132
WANDSWORTH COUNCIL,ASC,SOCIAL SERVICES,VOL ASS,Revenue,SUPPORTED HOUSING PROGRAMME,611440,130248030,11-Mar-15,"1,097.56",FRONTIER SUPPORT SERVICES LTD,SP0001132
WANDSWORTH COUNCIL,ASC,SOCIAL SERVICES,VOL ASS,Revenue,SUPPORTED HOUSING PROGRAMME,611441,130248030,11-Mar-15,"2,509.20",FRONTIER SUPPORT SERVICES LTD,SP0001132
WANDSWORTH COUNCIL,ASC,SOCIAL SERVICES,VOL ASS,Revenue,SUPPORTED HOUSING PROGRAMME,611442,130248030,11-Mar-15,657.80,FRONTIER SUPPORT SERVICES LTD,SP0001132
WANDSWORTH COUNCIL,ASC,SOCIAL SERVICES,VOL ASS,Revenue,SUPPORTED HOUSING PROGRAMME,611444,130248030,11-Mar-15,"1,685.92",FRONTIER SUPPORT SERVICES LTD,SP0001132
WANDSWORTH COUNCIL,ASC,SOCIAL SERVICES,VOL ASS,Revenue,SUPPORTED HOUSING PROGRAMME,618675,130248030,23-Mar-15,833.06,HARINGEY ASSOCIATION FOR INDEPENDENT LIV,SP0000222
WANDSWORTH COUNCIL,ASC,SOCIAL SERVICES,VOL ASS,Revenue,SUPPORTED HOUSING PROGRAMME,618677,130248030,23-Mar-15,"3,247.28",HARINGEY ASSOCIATION FOR INDEPENDENT LIV,SP0000222
WANDSWORTH COUNCIL,ASC,SOCIAL SERVICES,VOL ASS,Revenue,SUPPORTED HOUSING PROGRAMME,618678,130248030,23-Mar-15,"1,521.52",HARINGEY ASSOCIATION FOR INDEPENDENT LIV,SP0000222
WANDSWORTH COUNCIL,ASC,SOCIAL SERVICES,VOL ASS,Revenue,SUPPORTED HOUSING PROGRAMME,606430,130248030,05-Mar-15,"6,104.21",INDEPENDENCE HOMES LTD,SP0004378
WANDSWORTH COUNCIL,ASC,SOCIAL SERVICES,VOL ASS,Revenue,SUPPORTED HOUSING PROGRAMME,606431,130248030,05-Mar-15,"5,937.12",INDEPENDENCE HOMES LTD,SP0004378
WANDSWORTH COUNCIL,ASC,SOCIAL SERVICES,VOL ASS,Revenue,SUPPORTED HOUSING PROGRAMME,612564,130248030,13-Mar-15,"7,336.00",LIFEWAYS COMMUNITY CARE LTD,SP0000364
WANDSWORTH COUNCIL,ASC,SOCIAL SERVICES,VOL ASS,Revenue,SUPPORTED HOUSING PROGRAMME,611993,130248030,13-Mar-15,"4,400.00",MORTON GARDENS,SP0008639
WANDSWORTH COUNCIL,ASC,SOCIAL SERVICES,VOL ASS,Revenue,SUPPORTED HOUSING PROGRAMME,606423,130248030,05-Mar-15,"5,543.72",NORWOOD SCHOOLS LTD,SP0000332
WANDSWORTH COUNCIL,ASC,SOCIAL SERVICES,VOL ASS,Revenue,SUPPORTED HOUSING PROGRAMME,623130,130248030,26-Mar-15,"2,592.00",PRECIOUS HOMES LTD,SP0001459
WANDSWORTH COUNCIL,ASC,SOCIAL SERVICES,VOL ASS,Revenue,SUPPORTED HOUSING PROGRAMME,612009,130248030,12-Mar-15,"6,120.00",RELIABLE PERSONNEL LTD,SP0005657
WANDSWORTH COUNCIL,ASC,SOCIAL SERVICES,VOL ASS,Revenue,SUPPORTED HOUSING PROGRAMME,604457,130248030,03-Mar-15,"5,105.32",ROYAL MENCAP SOCIETY,SP0000842
WANDSWORTH COUNCIL,ASC,SOCIAL SERVICES,VOL ASS,Revenue,SUPPORTED HOUSING PROGRAMME,620284,130248030,25-Mar-15,"1,964.48",ROYAL MENCAP SOCIETY,SP0000842
WANDSWORTH COUNCIL,ASC,SOCIAL SERVICES,VOL ASS,Revenue,SUPPORTED HOUSING PROGRAMME,620286,130248030,25-Mar-15,"1,624.63",ROYAL MENCAP SOCIETY,SP0000842
WANDSWORTH COUNCIL,ASC,ENVIRONMENT & COMMUNITY,VOL ASS,Revenue,SUPPORTED HOUSING PROGRAMME,605130,130248030,04-Mar-15,"10,557.40",THE BRANDON TRUST,SP0005337
WANDSWORTH COUNCIL,ASC,SOCIAL SERVICES,VOL ASS,Revenue,SUPPORTED HOUSING PROGRAMME,608157,130248030,06-Mar-15,"1,513.68",THE BRANDON TRUST,SP0005337
WANDSWORTH COUNCIL,ASC,SOCIAL SERVICES,VOL ASS,Revenue,SUPPORTED HOUSING PROGRAMME,608158,130248030,06-Mar-15,"1,513.68",THE BRANDON TRUST,SP0005337
WANDSWORTH COUNCIL,ASC,SOCIAL SERVICES,VOL ASS,Revenue,SUPPORTED HOUSING PROGRAMME,608159,130248030,06-Mar-15,"3,453.12",THE BRANDON TRUST,SP0005337
WANDSWORTH COUNCIL,ASC,SOCIAL SERVICES,VOL ASS,Revenue,SUPPORTED HOUSING PROGRAMME,608160,130248030,06-Mar-15,"4,687.20",THE BRANDON TRUST,SP0005337
WANDSWORTH COUNCIL,ASC,SOCIAL SERVICES,VOL ASS,Revenue,SUPPORTED HOUSING PROGRAMME,608161,130248030,06-Mar-15,"3,320.64",THE BRANDON TRUST,SP0005337
WANDSWORTH COUNCIL,ASC,SOCIAL SERVICES,VOL ASS,Revenue,SUPPORTED HOUSING PROGRAMME,608162,130248030,06-Mar-15,"3,702.20",THE BRANDON TRUST,SP0005337
WANDSWORTH COUNCIL,ASC,SOCIAL SERVICES,VOL ASS,Revenue,SUPPORTED HOUSING PROGRAMME,608163,130248030,06-Mar-15,"3,718.08",THE BRANDON TRUST,SP0005337
WANDSWORTH COUNCIL,ASC,SOCIAL SERVICES,VOL ASS,Revenue,SUPPORTED HOUSING PROGRAMME,608164,130248030,06-Mar-15,"3,121.92",THE BRANDON TRUST,SP0005337
WANDSWORTH COUNCIL,ASC,SOCIAL SERVICES,VOL ASS,Revenue,SUPPORTED HOUSING PROGRAMME,608165,130248030,06-Mar-15,"5,688.08",THE BRANDON TRUST,SP0005337
WANDSWORTH COUNCIL,ASC,SOCIAL SERVICES,VOL ASS,Revenue,SUPPORTED HOUSING PROGRAMME,608166,130248030,06-Mar-15,"3,324.96",THE BRANDON TRUST,SP0005337
WANDSWORTH COUNCIL,ASC,SOCIAL SERVICES,VOL ASS,Revenue,SUPPORTED HOUSING PROGRAMME,608167,130248030,06-Mar-15,"2,886.04",THE BRANDON TRUST,SP0005337
WANDSWORTH COUNCIL,ASC,SOCIAL SERVICES,VOL ASS,Revenue,SUPPORTED HOUSING PROGRAMME,608168,130248030,06-Mar-15,"2,128.32",THE BRANDON TRUST,SP0005337
WANDSWORTH COUNCIL,ASC,SOCIAL SERVICES,VOL ASS,Revenue,SUPPORTED HOUSING PROGRAMME,608169,130248030,06-Mar-15,"1,465.92",THE BRANDON TRUST,SP0005337
WANDSWORTH COUNCIL,ASC,SOCIAL SERVICES,VOL ASS,Revenue,SUPPORTED HOUSING PROGRAMME,608170,130248030,06-Mar-15,"1,548.72",THE BRANDON TRUST,SP0005337
WANDSWORTH COUNCIL,ASC,SOCIAL SERVICES,VOL ASS,Revenue,SUPPORTED HOUSING PROGRAMME,609236,130248030,10-Mar-15,"1,504.84",THE BRANDON TRUST,SP0005337
WANDSWORTH COUNCIL,ASC,SOCIAL SERVICES,VOL ASS,Revenue,SUPPORTED HOUSING PROGRAMME,609237,130248030,10-Mar-15,"1,504.84",THE BRANDON TRUST,SP0005337
WANDSWORTH COUNCIL,ASC,SOCIAL SERVICES,VOL ASS,Revenue,SUPPORTED HOUSING PROGRAMME,609238,130248030,10-Mar-15,"1,936.52",THE BRANDON TRUST,SP0005337
WANDSWORTH COUNCIL,ASC,SOCIAL SERVICES,VOL ASS,Revenue,SUPPORTED HOUSING PROGRAMME,609239,130248030,10-Mar-15,"7,764.16",THE BRANDON TRUST,SP0005337
WANDSWORTH COUNCIL,ASC,SOCIAL SERVICES,VOL ASS,Revenue,SUPPORTED HOUSING PROGRAMME,609240,130248030,10-Mar-15,"2,327.04",THE BRANDON TRUST,SP0005337
WANDSWORTH COUNCIL,ASC,SOCIAL SERVICES,VOL ASS,Revenue,SUPPORTED HOUSING PROGRAMME,609241,130248030,10-Mar-15,"2,969.12",THE BRANDON TRUST,SP0005337
WANDSWORTH COUNCIL,ASC,SOCIAL SERVICES,VOL ASS,Revenue,SUPPORTED HOUSING PROGRAMME,609242,130248030,10-Mar-15,"2,979.92",THE BRANDON TRUST,SP0005337
WANDSWORTH COUNCIL,ASC,SOCIAL SERVICES,VOL ASS,Revenue,SUPPORTED HOUSING PROGRAMME,609243,130248030,10-Mar-15,"2,186.04",THE BRANDON TRUST,SP0005337
WANDSWORTH COUNCIL,ASC,SOCIAL SERVICES,VOL ASS,Revenue,SUPPORTED HOUSING PROGRAMME,609244,130248030,10-Mar-15,"1,125.08",THE BRANDON TRUST,SP0005337
WANDSWORTH COUNCIL,ASC,SOCIAL SERVICES,VOL ASS,Revenue,SUPPORTED HOUSING PROGRAMME,609245,130248030,10-Mar-15,"1,155.88",THE BRANDON TRUST,SP0005337
WANDSWORTH COUNCIL,ASC,SOCIAL SERVICES,VOL ASS,Revenue,SUPPORTED HOUSING PROGRAMME,609246,130248030,10-Mar-15,"1,854.72",THE BRANDON TRUST,SP0005337
WANDSWORTH COUNCIL,ASC,SOCIAL SERVICES,VOL ASS,Revenue,SUPPORTED HOUSING PROGRAMME,609247,130248030,10-Mar-15,"1,380.64",THE BRANDON TRUST,SP0005337
WANDSWORTH COUNCIL,ASC,SOCIAL SERVICES,VOL ASS,Revenue,SUPPORTED HOUSING PROGRAMME,609248,130248030,10-Mar-15,"1,466.16",THE BRANDON TRUST,SP0005337
WANDSWORTH COUNCIL,ASC,SOCIAL SERVICES,VOL ASS,Revenue,SUPPORTED HOUSING PROGRAMME,609249,130248030,10-Mar-15,"2,790.72",THE BRANDON TRUST,SP0005337
WANDSWORTH COUNCIL,ASC,SOCIAL SERVICES,VOL ASS,Revenue,SUPPORTED HOUSING PROGRAMME,609251,130248030,10-Mar-15,"1,797.12",THE BRANDON TRUST,SP0005337
WANDSWORTH COUNCIL,ASC,SOCIAL SERVICES,VOL ASS,Revenue,SUPPORTED HOUSING PROGRAMME,609252,130248030,10-Mar-15,"2,062.08",THE BRANDON TRUST,SP0005337
WANDSWORTH COUNCIL,ASC,SOCIAL SERVICES,VOL ASS,Revenue,SUPPORTED HOUSING PROGRAMME,609253,130248030,10-Mar-15,"3,520.16",THE BRANDON TRUST,SP0005337
WANDSWORTH COUNCIL,ASC,SOCIAL SERVICES,VOL ASS,Revenue,SUPPORTED HOUSING PROGRAMME,609258,130248030,10-Mar-15,"1,499.04",THE BRANDON TRUST,SP0005337
WANDSWORTH COUNCIL,ASC,SOCIAL SERVICES,VOL ASS,Revenue,SUPPORTED HOUSING PROGRAMME,609264,130248030,10-Mar-15,591.04,THE BRANDON TRUST,SP0005337
WANDSWORTH COUNCIL,ASC,SOCIAL SERVICES,VOL ASS,Revenue,SUPPORTED HOUSING PROGRAMME,609268,130248030,10-Mar-15,"1,034.48",THE BRANDON TRUST,SP0005337
WANDSWORTH COUNCIL,ASC,SOCIAL SERVICES,VOL ASS,Revenue,SUPPORTED HOUSING PROGRAMME,609274,130248030,10-Mar-15,"2,856.96",THE BRANDON TRUST,SP0005337
WANDSWORTH COUNCIL,ASC,SOCIAL SERVICES,VOL ASS,Revenue,SUPPORTED HOUSING PROGRAMME,609275,130248030,10-Mar-15,"2,260.80",THE BRANDON TRUST,SP0005337
WANDSWORTH COUNCIL,ASC,SOCIAL SERVICES,VOL ASS,Revenue,SUPPORTED HOUSING PROGRAMME,609276,130248030,10-Mar-15,"3,453.12",THE BRANDON TRUST,SP0005337
WANDSWORTH COUNCIL,ASC,SOCIAL SERVICES,VOL ASS,Revenue,SUPPORTED HOUSING PROGRAMME,609277,130248030,10-Mar-15,"1,929.60",THE BRANDON TRUST,SP0005337
WANDSWORTH COUNCIL,ASC,SOCIAL SERVICES,VOL ASS,Revenue,SUPPORTED HOUSING PROGRAMME,609278,130248030,10-Mar-15,"4,688.56",THE BRANDON TRUST,SP0005337
WANDSWORTH COUNCIL,ASC,SOCIAL SERVICES,VOL ASS,Revenue,SUPPORTED HOUSING PROGRAMME,609279,130248030,10-Mar-15,"1,465.92",THE BRANDON TRUST,SP0005337
WANDSWORTH COUNCIL,ASC,SOCIAL SERVICES,VOL ASS,Revenue,SUPPORTED HOUSING PROGRAMME,609280,130248030,10-Mar-15,"6,346.04",THE BRANDON TRUST,SP0005337
WANDSWORTH COUNCIL,ASC,SOCIAL SERVICES,VOL ASS,Revenue,SUPPORTED HOUSING PROGRAMME,609281,130248030,10-Mar-15,"2,856.96",THE BRANDON TRUST,SP0005337
WANDSWORTH COUNCIL,ASC,SOCIAL SERVICES,VOL ASS,Revenue,SUPPORTED HOUSING PROGRAMME,609282,130248030,10-Mar-15,"2,758.28",THE BRANDON TRUST,SP0005337
WANDSWORTH COUNCIL,ASC,SOCIAL SERVICES,VOL ASS,Revenue,SUPPORTED HOUSING PROGRAMME,609283,130248030,10-Mar-15,"6,198.76",THE BRANDON TRUST,SP0005337
WANDSWORTH COUNCIL,ASC,SOCIAL SERVICES,VOL ASS,Revenue,SUPPORTED HOUSING PROGRAMME,609284,130248030,10-Mar-15,"3,564.56",THE BRANDON TRUST,SP0005337
WANDSWORTH COUNCIL,ASC,SOCIAL SERVICES,VOL ASS,Revenue,SUPPORTED HOUSING PROGRAMME,609285,130248030,10-Mar-15,"3,416.80",THE BRANDON TRUST,SP0005337
WANDSWORTH COUNCIL,ASC,SOCIAL SERVICES,VOL ASS,Revenue,SUPPORTED HOUSING PROGRAMME,609286,130248030,10-Mar-15,"2,065.12",THE BRANDON TRUST,SP0005337
WANDSWORTH COUNCIL,ASC,SOCIAL SERVICES,VOL ASS,Revenue,SUPPORTED HOUSING PROGRAMME,609300,130248030,10-Mar-15,"1,625.36",THE BRANDON TRUST,SP0005337
WANDSWORTH COUNCIL,ASC,SOCIAL SERVICES,VOL ASS,Revenue,SUPPORTED HOUSING PROGRAMME,609301,130248030,10-Mar-15,"1,674.84",THE BRANDON TRUST,SP0005337
WANDSWORTH COUNCIL,ASC,SOCIAL SERVICES,VOL ASS,Revenue,SUPPORTED HOUSING PROGRAMME,609302,130248030,10-Mar-15,"2,658.24",THE BRANDON TRUST,SP0005337
WANDSWORTH COUNCIL,ASC,SOCIAL SERVICES,VOL ASS,Revenue,SUPPORTED HOUSING PROGRAMME,609303,130248030,10-Mar-15,"2,405.96",THE BRANDON TRUST,SP0005337
WANDSWORTH COUNCIL,ASC,SOCIAL SERVICES,VOL ASS,Revenue,SUPPORTED HOUSING PROGRAMME,609306,130248030,10-Mar-15,"2,459.52",THE BRANDON TRUST,SP0005337
WANDSWORTH COUNCIL,ASC,SOCIAL SERVICES,VOL ASS,Revenue,SUPPORTED HOUSING PROGRAMME,609307,130248030,10-Mar-15,"3,883.68",THE BRANDON TRUST,SP0005337
WANDSWORTH COUNCIL,ASC,SOCIAL SERVICES,VOL ASS,Revenue,SUPPORTED HOUSING PROGRAMME,609308,130248030,10-Mar-15,"2,618.48",THE BRANDON TRUST,SP0005337
WANDSWORTH COUNCIL,ASC,SOCIAL SERVICES,VOL ASS,Revenue,SUPPORTED HOUSING PROGRAMME,609309,130248030,10-Mar-15,"1,730.88",THE BRANDON TRUST,SP0005337
WANDSWORTH COUNCIL,ASC,SOCIAL SERVICES,VOL ASS,Revenue,SUPPORTED HOUSING PROGRAMME,609318,130248030,10-Mar-15,"1,465.92",THE BRANDON TRUST,SP0005337
WANDSWORTH COUNCIL,ASC,SOCIAL SERVICES,VOL ASS,Revenue,SUPPORTED HOUSING PROGRAMME,609983,130248030,10-Mar-15,"5,983.44",THE BRANDON TRUST,SP0005337
WANDSWORTH COUNCIL,ASC,SOCIAL SERVICES,VOL ASS,Revenue,SUPPORTED HOUSING PROGRAMME,609984,130248030,10-Mar-15,"6,346.04",THE BRANDON TRUST,SP0005337
WANDSWORTH COUNCIL,ASC,SOCIAL SERVICES,VOL ASS,Revenue,SUPPORTED HOUSING PROGRAMME,609985,130248030,10-Mar-15,"3,324.96",THE BRANDON TRUST,SP0005337
WANDSWORTH COUNCIL,ASC,SOCIAL SERVICES,VOL ASS,Revenue,SUPPORTED HOUSING PROGRAMME,609986,130248030,10-Mar-15,"2,886.04",THE BRANDON TRUST,SP0005337
WANDSWORTH COUNCIL,ASC,SOCIAL SERVICES,VOL ASS,Revenue,SUPPORTED HOUSING PROGRAMME,609987,130248030,10-Mar-15,"2,856.96",THE BRANDON TRUST,SP0005337
WANDSWORTH COUNCIL,ASC,SOCIAL SERVICES,VOL ASS,Revenue,SUPPORTED HOUSING PROGRAMME,609988,130248030,10-Mar-15,"2,758.28",THE BRANDON TRUST,SP0005337
WANDSWORTH COUNCIL,ASC,SOCIAL SERVICES,VOL ASS,Revenue,SUPPORTED HOUSING PROGRAMME,609989,130248030,10-Mar-15,"2,128.32",THE BRANDON TRUST,SP0005337
WANDSWORTH COUNCIL,ASC,SOCIAL SERVICES,VOL ASS,Revenue,SUPPORTED HOUSING PROGRAMME,609990,130248030,10-Mar-15,"6,198.76",THE BRANDON TRUST,SP0005337
WANDSWORTH COUNCIL,ASC,SOCIAL SERVICES,VOL ASS,Revenue,SUPPORTED HOUSING PROGRAMME,609991,130248030,10-Mar-15,"1,465.92",THE BRANDON TRUST,SP0005337
WANDSWORTH COUNCIL,ASC,SOCIAL SERVICES,VOL ASS,Revenue,SUPPORTED HOUSING PROGRAMME,609992,130248030,10-Mar-15,"1,548.72",THE BRANDON TRUST,SP0005337
WANDSWORTH COUNCIL,ASC,SOCIAL SERVICES,VOL ASS,Revenue,SUPPORTED HOUSING PROGRAMME,609993,130248030,10-Mar-15,"2,658.24",THE BRANDON TRUST,SP0005337
WANDSWORTH COUNCIL,ASC,SOCIAL SERVICES,VOL ASS,Revenue,SUPPORTED HOUSING PROGRAMME,609994,130248030,10-Mar-15,"2,592.60",THE BRANDON TRUST,SP0005337
WANDSWORTH COUNCIL,ASC,SOCIAL SERVICES,VOL ASS,Revenue,SUPPORTED HOUSING PROGRAMME,609995,130248030,10-Mar-15,"2,724.48",THE BRANDON TRUST,SP0005337
WANDSWORTH COUNCIL,ASC,SOCIAL SERVICES,VOL ASS,Revenue,SUPPORTED HOUSING PROGRAMME,609996,130248030,10-Mar-15,"3,564.56",THE BRANDON TRUST,SP0005337
WANDSWORTH COUNCIL,ASC,SOCIAL SERVICES,VOL ASS,Revenue,SUPPORTED HOUSING PROGRAMME,609997,130248030,10-Mar-15,"3,416.80",THE BRANDON TRUST,SP0005337
WANDSWORTH COUNCIL,ASC,SOCIAL SERVICES,VOL ASS,Revenue,SUPPORTED HOUSING PROGRAMME,610005,130248030,10-Mar-15,"1,625.36",THE BRANDON TRUST,SP0005337
WANDSWORTH COUNCIL,ASC,SOCIAL SERVICES,VOL ASS,Revenue,SUPPORTED HOUSING PROGRAMME,610006,130248030,10-Mar-15,"1,674.84",THE BRANDON TRUST,SP0005337
WANDSWORTH COUNCIL,ASC,SOCIAL SERVICES,VOL ASS,Revenue,SUPPORTED HOUSING PROGRAMME,610007,130248030,10-Mar-15,"2,405.96",THE BRANDON TRUST,SP0005337
WANDSWORTH COUNCIL,ASC,SOCIAL SERVICES,VOL ASS,Revenue,SUPPORTED HOUSING PROGRAMME,610010,130248030,10-Mar-15,"2,459.52",THE BRANDON TRUST,SP0005337
WANDSWORTH COUNCIL,ASC,SOCIAL SERVICES,VOL ASS,Revenue,SUPPORTED HOUSING PROGRAMME,610011,130248030,10-Mar-15,"3,883.68",THE BRANDON TRUST,SP0005337
WANDSWORTH COUNCIL,ASC,SOCIAL SERVICES,VOL ASS,Revenue,SUPPORTED HOUSING PROGRAMME,610012,130248030,10-Mar-15,"2,618.48",THE BRANDON TRUST,SP0005337
WANDSWORTH COUNCIL,ASC,SOCIAL SERVICES,VOL ASS,Revenue,SUPPORTED HOUSING PROGRAMME,610013,130248030,10-Mar-15,"2,658.24",THE BRANDON TRUST,SP0005337
WANDSWORTH COUNCIL,ASC,SOCIAL SERVICES,VOL ASS,Revenue,SUPPORTED HOUSING PROGRAMME,610014,130248030,10-Mar-15,"1,499.04",THE BRANDON TRUST,SP0005337
WANDSWORTH COUNCIL,ASC,SOCIAL SERVICES,VOL ASS,Revenue,SUPPORTED HOUSING PROGRAMME,610019,130248030,10-Mar-15,591.04,THE BRANDON TRUST,SP0005337
WANDSWORTH COUNCIL,ASC,SOCIAL SERVICES,VOL ASS,Revenue,SUPPORTED HOUSING PROGRAMME,610023,130248030,10-Mar-15,"1,034.48",THE BRANDON TRUST,SP0005337
WANDSWORTH COUNCIL,ASC,SOCIAL SERVICES,VOL ASS,Revenue,SUPPORTED HOUSING PROGRAMME,610032,130248030,10-Mar-15,"13,957.23",THE BRANDON TRUST,SP0005337
WANDSWORTH COUNCIL,ASC,SOCIAL SERVICES,VOL ASS,Revenue,SUPPORTED HOUSING PROGRAMME,610033,130248030,10-Mar-15,"1,551.32",THE BRANDON TRUST,SP0005337
WANDSWORTH COUNCIL,ASC,SOCIAL SERVICES,VOL ASS,Revenue,SUPPORTED HOUSING PROGRAMME,610034,130248030,10-Mar-15,"1,504.84",THE BRANDON TRUST,SP0005337
WANDSWORTH COUNCIL,ASC,SOCIAL SERVICES,VOL ASS,Revenue,SUPPORTED HOUSING PROGRAMME,610035,130248030,10-Mar-15,"1,504.84",THE BRANDON TRUST,SP0005337
WANDSWORTH COUNCIL,ASC,SOCIAL SERVICES,VOL ASS,Revenue,SUPPORTED HOUSING PROGRAMME,610036,130248030,10-Mar-15,"1,936.52",THE BRANDON TRUST,SP0005337
WANDSWORTH COUNCIL,ASC,SOCIAL SERVICES,VOL ASS,Revenue,SUPPORTED HOUSING PROGRAMME,610037,130248030,10-Mar-15,"7,764.16",THE BRANDON TRUST,SP0005337
WANDSWORTH COUNCIL,ASC,SOCIAL SERVICES,VOL ASS,Revenue,SUPPORTED HOUSING PROGRAMME,610038,130248030,10-Mar-15,"2,327.04",THE BRANDON TRUST,SP0005337
WANDSWORTH COUNCIL,ASC,SOCIAL SERVICES,VOL ASS,Revenue,SUPPORTED HOUSING PROGRAMME,610039,130248030,10-Mar-15,"1,380.64",THE BRANDON TRUST,SP0005337
WANDSWORTH COUNCIL,ASC,SOCIAL SERVICES,VOL ASS,Revenue,SUPPORTED HOUSING PROGRAMME,610040,130248030,10-Mar-15,"1,466.16",THE BRANDON TRUST,SP0005337
WANDSWORTH COUNCIL,ASC,SOCIAL SERVICES,VOL ASS,Revenue,SUPPORTED HOUSING PROGRAMME,610041,130248030,10-Mar-15,"1,513.68",THE BRANDON TRUST,SP0005337
WANDSWORTH COUNCIL,ASC,SOCIAL SERVICES,VOL ASS,Revenue,SUPPORTED HOUSING PROGRAMME,610042,130248030,10-Mar-15,"1,513.68",THE BRANDON TRUST,SP0005337
WANDSWORTH COUNCIL,ASC,SOCIAL SERVICES,VOL ASS,Revenue,SUPPORTED HOUSING PROGRAMME,610043,130248030,10-Mar-15,"2,856.96",THE BRANDON TRUST,SP0005337
WANDSWORTH COUNCIL,ASC,SOCIAL SERVICES,VOL ASS,Revenue,SUPPORTED HOUSING PROGRAMME,610044,130248030,10-Mar-15,"2,260.80",THE BRANDON TRUST,SP0005337
WANDSWORTH COUNCIL,ASC,SOCIAL SERVICES,VOL ASS,Revenue,SUPPORTED HOUSING PROGRAMME,610045,130248030,10-Mar-15,"3,453.12",THE BRANDON TRUST,SP0005337
WANDSWORTH COUNCIL,ASC,SOCIAL SERVICES,VOL ASS,Revenue,SUPPORTED HOUSING PROGRAMME,610046,130248030,10-Mar-15,"2,790.72",THE BRANDON TRUST,SP0005337
WANDSWORTH COUNCIL,ASC,SOCIAL SERVICES,VOL ASS,Revenue,SUPPORTED HOUSING PROGRAMME,610048,130248030,10-Mar-15,"1,797.12",THE BRANDON TRUST,SP0005337
WANDSWORTH COUNCIL,ASC,SOCIAL SERVICES,VOL ASS,Revenue,SUPPORTED HOUSING PROGRAMME,610049,130248030,10-Mar-15,"2,062.08",THE BRANDON TRUST,SP0005337
WANDSWORTH COUNCIL,ASC,SOCIAL SERVICES,VOL ASS,Revenue,SUPPORTED HOUSING PROGRAMME,610050,130248030,10-Mar-15,"3,520.16",THE BRANDON TRUST,SP0005337
WANDSWORTH COUNCIL,ASC,SOCIAL SERVICES,VOL ASS,Revenue,SUPPORTED HOUSING PROGRAMME,610051,130248030,10-Mar-15,"2,580.17",THE BRANDON TRUST,SP0005337
WANDSWORTH COUNCIL,ASC,SOCIAL SERVICES,VOL ASS,Revenue,SUPPORTED HOUSING PROGRAMME,610052,130248030,10-Mar-15,"3,453.12",THE BRANDON TRUST,SP0005337
WANDSWORTH COUNCIL,ASC,SOCIAL SERVICES,VOL ASS,Revenue,SUPPORTED HOUSING PROGRAMME,610053,130248030,10-Mar-15,"1,929.60",THE BRANDON TRUST,SP0005337
WANDSWORTH COUNCIL,ASC,SOCIAL SERVICES,VOL ASS,Revenue,SUPPORTED HOUSING PROGRAMME,610054,130248030,10-Mar-15,"4,687.20",THE BRANDON TRUST,SP0005337
WANDSWORTH COUNCIL,ASC,SOCIAL SERVICES,VOL ASS,Revenue,SUPPORTED HOUSING PROGRAMME,610055,130248030,10-Mar-15,"4,688.56",THE BRANDON TRUST,SP0005337
WANDSWORTH COUNCIL,ASC,SOCIAL SERVICES,VOL ASS,Revenue,SUPPORTED HOUSING PROGRAMME,610056,130248030,10-Mar-15,"3,320.64",THE BRANDON TRUST,SP0005337
WANDSWORTH COUNCIL,ASC,SOCIAL SERVICES,VOL ASS,Revenue,SUPPORTED HOUSING PROGRAMME,610057,130248030,10-Mar-15,"3,702.20",THE BRANDON TRUST,SP0005337
WANDSWORTH COUNCIL,ASC,SOCIAL SERVICES,VOL ASS,Revenue,SUPPORTED HOUSING PROGRAMME,610058,130248030,10-Mar-15,"1,465.92",THE BRANDON TRUST,SP0005337
WANDSWORTH COUNCIL,ASC,SOCIAL SERVICES,VOL ASS,Revenue,SUPPORTED HOUSING PROGRAMME,610059,130248030,10-Mar-15,"3,718.08",THE BRANDON TRUST,SP0005337
WANDSWORTH COUNCIL,ASC,SOCIAL SERVICES,VOL ASS,Revenue,SUPPORTED HOUSING PROGRAMME,610060,130248030,10-Mar-15,"3,121.92",THE BRANDON TRUST,SP0005337
WANDSWORTH COUNCIL,ASC,SOCIAL SERVICES,VOL ASS,Revenue,SUPPORTED HOUSING PROGRAMME,610061,130248030,10-Mar-15,"5,688.08",THE BRANDON TRUST,SP0005337
WANDSWORTH COUNCIL,ASC,SOCIAL SERVICES,VOL ASS,Revenue,SUPPORTED HOUSING PROGRAMME,610062,130248030,10-Mar-15,"2,969.16",THE BRANDON TRUST,SP0005337
WANDSWORTH COUNCIL,ASC,SOCIAL SERVICES,VOL ASS,Revenue,SUPPORTED HOUSING PROGRAMME,610063,130248030,10-Mar-15,"2,186.04",THE BRANDON TRUST,SP0005337
WANDSWORTH COUNCIL,ASC,SOCIAL SERVICES,VOL ASS,Revenue,SUPPORTED HOUSING PROGRAMME,610064,130248030,10-Mar-15,"1,125.08",THE BRANDON TRUST,SP0005337
WANDSWORTH COUNCIL,ASC,SOCIAL SERVICES,VOL ASS,Revenue,SUPPORTED HOUSING PROGRAMME,610065,130248030,10-Mar-15,"1,155.88",THE BRANDON TRUST,SP0005337
WANDSWORTH COUNCIL,ASC,SOCIAL SERVICES,VOL ASS,Revenue,SUPPORTED HOUSING PROGRAMME,610066,130248030,10-Mar-15,"1,854.72",THE BRANDON TRUST,SP0005337
WANDSWORTH COUNCIL,ASC,SOCIAL SERVICES,VOL ASS,Revenue,SUPPORTED HOUSING PROGRAMME,610067,130248030,10-Mar-15,"2,848.72",THE BRANDON TRUST,SP0005337
WANDSWORTH COUNCIL,ASC,SOCIAL SERVICES,VOL ASS,Revenue,SUPPORTED HOUSING PROGRAMME,610068,130248030,10-Mar-15,"2,327.24",THE BRANDON TRUST,SP0005337
WANDSWORTH COUNCIL,ASC,SOCIAL SERVICES,VOL ASS,Revenue,SUPPORTED HOUSING PROGRAMME,610069,130248030,10-Mar-15,"2,327.24",THE BRANDON TRUST,SP0005337
WANDSWORTH COUNCIL,ASC,SOCIAL SERVICES,VOL ASS,Revenue,SUPPORTED HOUSING PROGRAMME,610070,130248030,10-Mar-15,"2,065.12",THE BRANDON TRUST,SP0005337
WANDSWORTH COUNCIL,ASC,SOCIAL SERVICES,VOL ASS,Revenue,SUPPORTED HOUSING PROGRAMME,610082,130248030,10-Mar-15,"2,979.92",THE BRANDON TRUST,SP0005337
WANDSWORTH COUNCIL,ASC,SOCIAL SERVICES,VOL ASS,Revenue,SUPPORTED HOUSING PROGRAMME,610089,130248030,10-Mar-15,"1,730.88",THE BRANDON TRUST,SP0005337
WANDSWORTH COUNCIL,ASC,SOCIAL SERVICES,VOL ASS,Revenue,SUPPORTED HOUSING PROGRAMME,610091,130248030,10-Mar-15,"4,827.60",THE BRANDON TRUST,SP0005337
WANDSWORTH COUNCIL,ASC,SOCIAL SERVICES,VOL ASS,Revenue,SUPPORTED HOUSING PROGRAMME,610100,130248030,10-Mar-15,"1,465.92",THE BRANDON TRUST,SP0005337
WANDSWORTH COUNCIL,ASC,SOCIAL SERVICES,VOL ASS,Revenue,SUPPORTED HOUSING PROGRAMME,611421,130248030,11-Mar-15,"5,024.52",THE BRANDON TRUST,SP0005337
WANDSWORTH COUNCIL,ASC,SOCIAL SERVICES,VOL ASS,Revenue,SUPPORTED HOUSING PROGRAMME,612581,130248030,13-Mar-15,"2,160.00",THE BRANDON TRUST,SP0005337
WANDSWORTH COUNCIL,ASC,SOCIAL SERVICES,VOL ASS,Revenue,SUPPORTED HOUSING PROGRAMME,612582,130248030,13-Mar-15,"5,629.64",THE BRANDON TRUST,SP0005337
WANDSWORTH COUNCIL,ASC,SOCIAL SERVICES,VOL ASS,Revenue,SUPPORTED HOUSING PROGRAMME,612583,130248030,13-Mar-15,"5,629.64",THE BRANDON TRUST,SP0005337
WANDSWORTH COUNCIL,ASC,SOCIAL SERVICES,VOL ASS,Revenue,SUPPORTED HOUSING PROGRAMME,612584,130248030,13-Mar-15,"2,160.00",THE BRANDON TRUST,SP0005337
WANDSWORTH COUNCIL,ASC,SOCIAL SERVICES,VOL ASS,Revenue,SUPPORTED HOUSING PROGRAMME,612585,130248030,13-Mar-15,"2,848.72",THE BRANDON TRUST,SP0005337
WANDSWORTH COUNCIL,ASC,SOCIAL SERVICES,VOL ASS,Revenue,SUPPORTED HOUSING PROGRAMME,612739,130248030,13-Mar-15,"1,886.40",THE BRANDON TRUST,SP0005337
WANDSWORTH COUNCIL,ASC,SOCIAL SERVICES,VOL ASS,Revenue,SUPPORTED HOUSING PROGRAMME,612740,130248030,13-Mar-15,"1,886.40",THE BRANDON TRUST,SP0005337
WANDSWORTH COUNCIL,ASC,SOCIAL SERVICES,VOL ASS,Revenue,SUPPORTED HOUSING PROGRAMME,617573,130248030,20-Mar-15,"2,580.17",THE BRANDON TRUST,SP0005337
WANDSWORTH COUNCIL,ASC,SOCIAL SERVICES,VOL ASS,Revenue,SUPPORTED HOUSING PROGRAMME,617575,130248030,20-Mar-15,734.60,THE BRANDON TRUST,SP0005337
WANDSWORTH COUNCIL,ASC,SOCIAL SERVICES,VOL ASS,Revenue,SUPPORTED HOUSING PROGRAMME,617576,130248030,20-Mar-15,"5,991.44",THE BRANDON TRUST,SP0005337
WANDSWORTH COUNCIL,ASC,ENVIRONMENT & COMMUNITY,VOL ASS,Revenue,SUPPORTED HOUSING PROGRAMME,622273,130248030,26-Mar-15,"10,557.40",THE BRANDON TRUST,SP0005337
WANDSWORTH COUNCIL,ASC,SOCIAL SERVICES,VOL ASS,Revenue,SUPPORTED HOUSING PROGRAMME,608177,130248030,06-Mar-15,"6,140.50",WELMEDE HOUSING ASSOCIATION LTD,SP0001717
WANDSWORTH COUNCIL,ASC,SOCIAL SERVICES,VOL ASS,Revenue,SUPPORTED HOUSING PROGRAMME,615763,130248030,18-Mar-15,"6,798.41",WELMEDE HOUSING ASSOCIATION LTD,SP0001717
WANDSWORTH COUNCIL,ASC,SOCIAL SERVICES,DIRECT,Revenue,DIRECT PAYMENTS,606867,130250380,05-Mar-15,"3,700.24",I DECIDE LTD (DIRECT PAYMENT),SP0006159
WANDSWORTH COUNCIL,ASC,SOCIAL SERVICES,DIRECT,Revenue,DIRECT PAYMENTS,617752,130250380,20-Mar-15,"3,260.28",I DECIDE LTD (DIRECT PAYMENT),SP0006159
WANDSWORTH COUNCIL,ASC,SOCIAL SERVICES,DIRECT,Revenue,DIRECT PAYMENTS,618048,130250380,20-Mar-15,922.12,VIBRANCE,SP0005489
WANDSWORTH COUNCIL,ASC,SOCIAL SERVICES,CUSTOMER & CLIENT RECPTS - EXT,Revenue,CL CONT EXT RESIDEN S28A 100%,616821,130280680,19-Mar-15,-548.92,ST MARYS RESIDENTIAL HOME,SP0000215
WANDSWORTH COUNCIL,ASC,SOCIAL SERVICES,CUSTOMER & CLIENT RECPTS - EXT,Revenue,CL CONT EXT RESIDEN S28A 100%,617487,130280680,20-Mar-15,-495.80,ST MARYS RESIDENTIAL HOME,SP0000215
WANDSWORTH COUNCIL,ASC,SOCIAL SERVICES,CUSTOMER & CLIENT RECPTS - EXT,Revenue,CL CONT EXTERNAL RESIDENT S28A,608055,130280710,06-Mar-15,-486.00,METROPOLITAN HOUSING TRUST,SP0000626
WANDSWORTH COUNCIL,ASC,SOCIAL SERVICES,CUSTOMER & CLIENT RECPTS - EXT,Revenue,CL CONT EXTERNAL RESIDENT S28A,608057,130280710,06-Mar-15,-319.40,METROPOLITAN HOUSING TRUST,SP0000626
WANDSWORTH COUNCIL,ASC,SOCIAL SERVICES,CUSTOMER & CLIENT RECPTS - EXT,Revenue,CL CONT EXTERNAL RESIDENT S28A,617505,130280710,20-Mar-15,-486.00,METROPOLITAN HOUSING TRUST,SP0000626
WANDSWORTH COUNCIL,ASC,SOCIAL SERVICES,CUSTOMER & CLIENT RECPTS - EXT,Revenue,CL CONT EXTERNAL RESIDENT S28A,617507,130280710,20-Mar-15,-319.40,METROPOLITAN HOUSING TRUST,SP0000626
WANDSWORTH COUNCIL,ASC,SOCIAL SERVICES,CUSTOMER & CLIENT RECPTS - EXT,Revenue,CL CONT EXTERNAL RESIDENT S28A,615340,130280710,17-Mar-15,-353.62,PARKGATE MANOR,SP0000521
WANDSWORTH COUNCIL,ASC,SOCIAL SERVICES,CUSTOMER & CLIENT RECPTS - EXT,Revenue,CL CONT EXTERNAL RESIDENT S28A,617497,130280710,20-Mar-15,-330.80,SURREY & BORDERS PARTNERSHIP NHS TRUST,SP0000501
WANDSWORTH COUNCIL,ASC,SOCIAL SERVICES,CUSTOMER & CLIENT RECPTS - EXT,Revenue,CL CONT EXTERNAL RESIDENT S28A,609103,130280710,10-Mar-15,-513.51,THE COMMUNITY CARE COMPANY UK LTD,SP0000576
WANDSWORTH COUNCIL,ASC,SOCIAL SERVICES,CUSTOMER & CLIENT RECPTS - EXT,Revenue,CL CONT EXTERNAL RESIDENTIAL,611825,130280720,12-Mar-15,-353.62,229 MITCHAM LANE LTD,SP0000884
WANDSWORTH COUNCIL,ASC,SOCIAL SERVICES,CUSTOMER & CLIENT RECPTS - EXT,Revenue,CL CONT EXTERNAL RESIDENTIAL,611826,130280720,12-Mar-15,-353.62,229 MITCHAM LANE LTD,SP0000884
WANDSWORTH COUNCIL,ASC,SOCIAL SERVICES,CUSTOMER & CLIENT RECPTS - EXT,Revenue,CL CONT EXTERNAL RESIDENTIAL,611827,130280720,13-Mar-15,-353.62,229 MITCHAM LANE LTD,SP0000884
WANDSWORTH COUNCIL,ASC,SOCIAL SERVICES,CUSTOMER & CLIENT RECPTS - EXT,Revenue,CL CONT EXTERNAL RESIDENTIAL,608031,130280720,06-Mar-15,-439.76,ACH OF LONDON LLP,SP0001688
WANDSWORTH COUNCIL,ASC,SOCIAL SERVICES,CUSTOMER & CLIENT RECPTS - EXT,Revenue,CL CONT EXTERNAL RESIDENTIAL,611267,130280720,11-Mar-15,-145.92,ACH OF LONDON LLP,SP0001688
WANDSWORTH COUNCIL,ASC,SOCIAL SERVICES,CUSTOMER & CLIENT RECPTS - EXT,Revenue,CL CONT EXTERNAL RESIDENTIAL,608039,130280720,06-Mar-15,-353.62,AIMS CARE PARTNERSHIP,SP0000561
WANDSWORTH COUNCIL,ASC,SOCIAL SERVICES,CUSTOMER & CLIENT RECPTS - EXT,Revenue,CL CONT EXTERNAL RESIDENTIAL,611269,130280720,11-Mar-15,-268.33,ALLIED CARE (MHS) LTD,SP0001069
WANDSWORTH COUNCIL,ASC,SOCIAL SERVICES,CUSTOMER & CLIENT RECPTS - EXT,Revenue,CL CONT EXTERNAL RESIDENTIAL,611286,130280720,11-Mar-15,-319.40,ALLIED CARE (MHS) LTD,SP0001069
WANDSWORTH COUNCIL,ASC,SOCIAL SERVICES,CUSTOMER & CLIENT RECPTS - EXT,Revenue,CL CONT EXTERNAL RESIDENTIAL,611252,130280720,11-Mar-15,-353.62,ASHCROFT CARE SERVICES,SP0000872
WANDSWORTH COUNCIL,ASC,SOCIAL SERVICES,CUSTOMER & CLIENT RECPTS - EXT,Revenue,CL CONT EXTERNAL RESIDENTIAL,617455,130280720,20-Mar-15,-319.40,BEECH LODGE,SP0000807
WANDSWORTH COUNCIL,ASC,SOCIAL SERVICES,CUSTOMER & CLIENT RECPTS - EXT,Revenue,CL CONT EXTERNAL RESIDENTIAL,617456,130280720,20-Mar-15,-319.40,BEECH LODGE,SP0000807
WANDSWORTH COUNCIL,ASC,SOCIAL SERVICES,CUSTOMER & CLIENT RECPTS - EXT,Revenue,CL CONT EXTERNAL RESIDENTIAL,617457,130280720,20-Mar-15,-319.40,BEECH LODGE,SP0000807
WANDSWORTH COUNCIL,ASC,SOCIAL SERVICES,CUSTOMER & CLIENT RECPTS - EXT,Revenue,CL CONT EXTERNAL RESIDENTIAL,620823,130280720,25-Mar-15,-353.62,BIRCC,SP0000584
WANDSWORTH COUNCIL,ASC,SOCIAL SERVICES,CUSTOMER & CLIENT RECPTS - EXT,Revenue,CL CONT EXTERNAL RESIDENTIAL,620824,130280720,25-Mar-15,-319.40,BIRCC,SP0000584
WANDSWORTH COUNCIL,ASC,SOCIAL SERVICES,CUSTOMER & CLIENT RECPTS - EXT,Revenue,CL CONT EXTERNAL RESIDENTIAL,620825,130280720,25-Mar-15,-353.62,BIRCC,SP0000584
WANDSWORTH COUNCIL,ASC,SOCIAL SERVICES,CUSTOMER & CLIENT RECPTS - EXT,Revenue,CL CONT EXTERNAL RESIDENTIAL,611272,130280720,11-Mar-15,-401.67,BROOKDALE CARE,SP0000282
WANDSWORTH COUNCIL,ASC,SOCIAL SERVICES,CUSTOMER & CLIENT RECPTS - EXT,Revenue,CL CONT EXTERNAL RESIDENTIAL,611273,130280720,11-Mar-15,-622.48,CAMERON LODGE LIMITED,SP0000271
WANDSWORTH COUNCIL,ASC,SOCIAL SERVICES,CUSTOMER & CLIENT RECPTS - EXT,Revenue,CL CONT EXTERNAL RESIDENTIAL,615729,130280720,18-Mar-15,-622.48,CAMERON LODGE LIMITED,SP0000271
WANDSWORTH COUNCIL,ASC,SOCIAL SERVICES,CUSTOMER & CLIENT RECPTS - EXT,Revenue,CL CONT EXTERNAL RESIDENTIAL,618636,130280720,23-Mar-15,-548.92,CARE UNLIMITED GROUP LTD,SP0001575
WANDSWORTH COUNCIL,ASC,SOCIAL SERVICES,CUSTOMER & CLIENT RECPTS - EXT,Revenue,CL CONT EXTERNAL RESIDENTIAL,617490,130280720,20-Mar-15,-353.62,CENTRUST CARE HOMES LTD,SP0000141
WANDSWORTH COUNCIL,ASC,SOCIAL SERVICES,CUSTOMER & CLIENT RECPTS - EXT,Revenue,CL CONT EXTERNAL RESIDENTIAL,612538,130280720,13-Mar-15,-401.67,CHATSWORTH CARE,SP0000831
WANDSWORTH COUNCIL,ASC,SOCIAL SERVICES,CUSTOMER & CLIENT RECPTS - EXT,Revenue,CL CONT EXTERNAL RESIDENTIAL,617464,130280720,20-Mar-15,-397.20,CHATSWORTH CARE,SP0000831
WANDSWORTH COUNCIL,ASC,SOCIAL SERVICES,CUSTOMER & CLIENT RECPTS - EXT,Revenue,CL CONT EXTERNAL RESIDENTIAL,617458,130280720,20-Mar-15,-319.40,CHERRY LODGE,SP0000965
WANDSWORTH COUNCIL,ASC,SOCIAL SERVICES,CUSTOMER & CLIENT RECPTS - EXT,Revenue,CL CONT EXTERNAL RESIDENTIAL,612710,130280720,13-Mar-15,-397.20,CMG HOMES LTD,SP0000075
WANDSWORTH COUNCIL,ASC,SOCIAL SERVICES,CUSTOMER & CLIENT RECPTS - EXT,Revenue,CL CONT EXTERNAL RESIDENTIAL,612711,130280720,13-Mar-15,-131.80,CMG HOMES LTD,SP0000075
WANDSWORTH COUNCIL,ASC,SOCIAL SERVICES,CUSTOMER & CLIENT RECPTS - EXT,Revenue,CL CONT EXTERNAL RESIDENTIAL,612712,130280720,13-Mar-15,-365.03,CMG HOMES LTD,SP0000075
WANDSWORTH COUNCIL,ASC,SOCIAL SERVICES,CUSTOMER & CLIENT RECPTS - EXT,Revenue,CL CONT EXTERNAL RESIDENTIAL,612713,130280720,13-Mar-15,-353.62,CMG HOMES LTD,SP0000075
WANDSWORTH COUNCIL,ASC,SOCIAL SERVICES,CUSTOMER & CLIENT RECPTS - EXT,Revenue,CL CONT EXTERNAL RESIDENTIAL,612714,130280720,13-Mar-15,-319.40,CMG HOMES LTD,SP0000075
WANDSWORTH COUNCIL,ASC,SOCIAL SERVICES,CUSTOMER & CLIENT RECPTS - EXT,Revenue,CL CONT EXTERNAL RESIDENTIAL,615733,130280720,18-Mar-15,-319.40,CMG HOMES LTD,SP0000075
WANDSWORTH COUNCIL,ASC,SOCIAL SERVICES,CUSTOMER & CLIENT RECPTS - EXT,Revenue,CL CONT EXTERNAL RESIDENTIAL,609053,130280720,10-Mar-15,-353.62,COUNTRY CARE,SP0000090
WANDSWORTH COUNCIL,ASC,SOCIAL SERVICES,CUSTOMER & CLIENT RECPTS - EXT,Revenue,CL CONT EXTERNAL RESIDENTIAL,603758,130280720,02-Mar-15,-980.40,COUNTRY COURT CARE,SP0009215
WANDSWORTH COUNCIL,ASC,SOCIAL SERVICES,CUSTOMER & CLIENT RECPTS - EXT,Revenue,CL CONT EXTERNAL RESIDENTIAL,622735,130280720,26-Mar-15,-980.40,COUNTRY COURT CARE,SP0009215
WANDSWORTH COUNCIL,ASC,SOCIAL SERVICES,CUSTOMER & CLIENT RECPTS - EXT,Revenue,CL CONT EXTERNAL RESIDENTIAL,615360,130280720,17-Mar-15,-319.40,CRAEGMOOR FACILITIES CO LTD,SP0000306
WANDSWORTH COUNCIL,ASC,SOCIAL SERVICES,CUSTOMER & CLIENT RECPTS - EXT,Revenue,CL CONT EXTERNAL RESIDENTIAL,615341,130280720,17-Mar-15,-311.55,CRAEGMOOR OLD RECTORY BREDE PRIORY,SP0001621
WANDSWORTH COUNCIL,ASC,SOCIAL SERVICES,CUSTOMER & CLIENT RECPTS - EXT,Revenue,CL CONT EXTERNAL RESIDENTIAL,611276,130280720,11-Mar-15,-349.19,CREDITON CARE & SUPPORT HOMES,SP0000998
WANDSWORTH COUNCIL,ASC,SOCIAL SERVICES,CUSTOMER & CLIENT RECPTS - EXT,Revenue,CL CONT EXTERNAL RESIDENTIAL,612535,130280720,13-Mar-15,-353.62,DOLPHIN HOMES LTD,SP0000331
WANDSWORTH COUNCIL,ASC,SOCIAL SERVICES,CUSTOMER & CLIENT RECPTS - EXT,Revenue,CL CONT EXTERNAL RESIDENTIAL,612536,130280720,13-Mar-15,-353.62,DOLPHIN HOMES LTD,SP0000331
WANDSWORTH COUNCIL,ASC,SOCIAL SERVICES,CUSTOMER & CLIENT RECPTS - EXT,Revenue,CL CONT EXTERNAL RESIDENTIAL,609101,130280720,10-Mar-15,-353.62,DOWNING (CHERTSEY ROAD) LTD,SP0000959
WANDSWORTH COUNCIL,ASC,SOCIAL SERVICES,CUSTOMER & CLIENT RECPTS - EXT,Revenue,CL CONT EXTERNAL RESIDENTIAL,617520,130280720,20-Mar-15,-397.20,ENHAM,SP0005845
WANDSWORTH COUNCIL,ASC,SOCIAL SERVICES,CUSTOMER & CLIENT RECPTS - EXT,Revenue,CL CONT EXTERNAL RESIDENTIAL,609113,130280720,10-Mar-15,-353.62,ESSEX CARE CONSORTIUM,SP0000387
WANDSWORTH COUNCIL,ASC,SOCIAL SERVICES,CUSTOMER & CLIENT RECPTS - EXT,Revenue,CL CONT EXTERNAL RESIDENTIAL,606305,130280720,05-Mar-15,-330.81,EVERGREEN PARTNERSHIP,SP0000597
WANDSWORTH COUNCIL,ASC,SOCIAL SERVICES,CUSTOMER & CLIENT RECPTS - EXT,Revenue,CL CONT EXTERNAL RESIDENTIAL,617467,130280720,20-Mar-15,-319.40,EVERGREEN PARTNERSHIP,SP0000597
WANDSWORTH COUNCIL,ASC,SOCIAL SERVICES,CUSTOMER & CLIENT RECPTS - EXT,Revenue,CL CONT EXTERNAL RESIDENTIAL,615335,130280720,17-Mar-15,-353.62,FIRCROFT,SP0000840
WANDSWORTH COUNCIL,ASC,SOCIAL SERVICES,CUSTOMER & CLIENT RECPTS - EXT,Revenue,CL CONT EXTERNAL RESIDENTIAL,606299,130280720,05-Mar-15,-307.99,FRANCES TAYLOR FOUNDATION,SP0000142
WANDSWORTH COUNCIL,ASC,SOCIAL SERVICES,CUSTOMER & CLIENT RECPTS - EXT,Revenue,CL CONT EXTERNAL RESIDENTIAL,608036,130280720,06-Mar-15,-319.40,GLENCARE GROUP,SP0000791
WANDSWORTH COUNCIL,ASC,SOCIAL SERVICES,CUSTOMER & CLIENT RECPTS - EXT,Revenue,CL CONT EXTERNAL RESIDENTIAL,608037,130280720,06-Mar-15,-498.52,GLENCARE GROUP,SP0000791
WANDSWORTH COUNCIL,ASC,SOCIAL SERVICES,CUSTOMER & CLIENT RECPTS - EXT,Revenue,CL CONT EXTERNAL RESIDENTIAL,608038,130280720,06-Mar-15,-319.40,GLENCARE GROUP,SP0000791
WANDSWORTH COUNCIL,ASC,SOCIAL SERVICES,CUSTOMER & CLIENT RECPTS - EXT,Revenue,CL CONT EXTERNAL RESIDENTIAL,618637,130280720,23-Mar-15,-498.52,GLENCARE GROUP,SP0000791
WANDSWORTH COUNCIL,ASC,SOCIAL SERVICES,CUSTOMER & CLIENT RECPTS - EXT,Revenue,CL CONT EXTERNAL RESIDENTIAL,612708,130280720,13-Mar-15,-319.40,HAYDON PARK LODGE LTD,SP0000231
WANDSWORTH COUNCIL,ASC,SOCIAL SERVICES,CUSTOMER & CLIENT RECPTS - EXT,Revenue,CL CONT EXTERNAL RESIDENTIAL,611841,130280720,12-Mar-15,-548.92,HEYWOODS GRANGE LTD,SP0000361
WANDSWORTH COUNCIL,ASC,SOCIAL SERVICES,CUSTOMER & CLIENT RECPTS - EXT,Revenue,CL CONT EXTERNAL RESIDENTIAL,615724,130280720,18-Mar-15,-495.80,HEYWOODS GRANGE LTD,SP0000361
WANDSWORTH COUNCIL,ASC,SOCIAL SERVICES,CUSTOMER & CLIENT RECPTS - EXT,Revenue,CL CONT EXTERNAL RESIDENTIAL,615346,130280720,17-Mar-15,-353.62,HILL PARK AUTISTIC TRUST,SP0000926
WANDSWORTH COUNCIL,ASC,SOCIAL SERVICES,CUSTOMER & CLIENT RECPTS - EXT,Revenue,CL CONT EXTERNAL RESIDENTIAL,612517,130280720,13-Mar-15,-353.62,HOME FROM HOME CARE LIMITED,SP0001373
WANDSWORTH COUNCIL,ASC,SOCIAL SERVICES,CUSTOMER & CLIENT RECPTS - EXT,Revenue,CL CONT EXTERNAL RESIDENTIAL,615339,130280720,17-Mar-15,-305.62,IN CHORUS LTD,SP0000129
WANDSWORTH COUNCIL,ASC,SOCIAL SERVICES,CUSTOMER & CLIENT RECPTS - EXT,Revenue,CL CONT EXTERNAL RESIDENTIAL,611818,130280720,12-Mar-15,-319.40,KENILWORTH RESIDENTIAL HOME,SP0000432
WANDSWORTH COUNCIL,ASC,SOCIAL SERVICES,CUSTOMER & CLIENT RECPTS - EXT,Revenue,CL CONT EXTERNAL RESIDENTIAL,611819,130280720,12-Mar-15,-495.80,KENILWORTH RESIDENTIAL HOME,SP0000432
WANDSWORTH COUNCIL,ASC,SOCIAL SERVICES,CUSTOMER & CLIENT RECPTS - EXT,Revenue,CL CONT EXTERNAL RESIDENTIAL,606855,130280720,05-Mar-15,-319.40,LAETUS LODGE,SP0000600
WANDSWORTH COUNCIL,ASC,SOCIAL SERVICES,CUSTOMER & CLIENT RECPTS - EXT,Revenue,CL CONT EXTERNAL RESIDENTIAL,606857,130280720,05-Mar-15,-397.20,LAETUS LODGE,SP0000600
WANDSWORTH COUNCIL,ASC,SOCIAL SERVICES,CUSTOMER & CLIENT RECPTS - EXT,Revenue,CL CONT EXTERNAL RESIDENTIAL,606859,130280720,05-Mar-15,-362.80,LAETUS LODGE,SP0000600
WANDSWORTH COUNCIL,ASC,SOCIAL SERVICES,CUSTOMER & CLIENT RECPTS - EXT,Revenue,CL CONT EXTERNAL RESIDENTIAL,606860,130280720,05-Mar-15,-319.40,LAETUS LODGE,SP0000600
WANDSWORTH COUNCIL,ASC,SOCIAL SERVICES,CUSTOMER & CLIENT RECPTS - EXT,Revenue,CL CONT EXTERNAL RESIDENTIAL,606861,130280720,05-Mar-15,-319.40,LAETUS LODGE,SP0000600
WANDSWORTH COUNCIL,ASC,SOCIAL SERVICES,CUSTOMER & CLIENT RECPTS - EXT,Revenue,CL CONT EXTERNAL RESIDENTIAL,615338,130280720,17-Mar-15,-362.80,LARKFIELD HALL LTD T/A PEPENBURY,SP0001378
WANDSWORTH COUNCIL,ASC,SOCIAL SERVICES,CUSTOMER & CLIENT RECPTS - EXT,Revenue,CL CONT EXTERNAL RESIDENTIAL,606285,130280720,05-Mar-15,-353.62,LEONARD CHESHIRE,SP0000976
WANDSWORTH COUNCIL,ASC,SOCIAL SERVICES,CUSTOMER & CLIENT RECPTS - EXT,Revenue,CL CONT EXTERNAL RESIDENTIAL,611271,130280720,11-Mar-15,-319.40,LEONARD CHESHIRE,SP0000976
WANDSWORTH COUNCIL,ASC,SOCIAL SERVICES,CUSTOMER & CLIENT RECPTS - EXT,Revenue,CL CONT EXTERNAL RESIDENTIAL,612529,130280720,13-Mar-15,-319.40,LIVABILITY,SP0000669
WANDSWORTH COUNCIL,ASC,SOCIAL SERVICES,CUSTOMER & CLIENT RECPTS - EXT,Revenue,CL CONT EXTERNAL RESIDENTIAL,615353,130280720,17-Mar-15,-401.67,LONDON CARE PARTNERSHIP LTD,SP0001138
WANDSWORTH COUNCIL,ASC,SOCIAL SERVICES,CUSTOMER & CLIENT RECPTS - EXT,Revenue,CL CONT EXTERNAL RESIDENTIAL,615354,130280720,17-Mar-15,-291.27,LONDON CARE PARTNERSHIP LTD,SP0001138
WANDSWORTH COUNCIL,ASC,SOCIAL SERVICES,CUSTOMER & CLIENT RECPTS - EXT,Revenue,CL CONT EXTERNAL RESIDENTIAL,615355,130280720,17-Mar-15,-353.62,LONDON CARE PARTNERSHIP LTD,SP0001138
WANDSWORTH COUNCIL,ASC,SOCIAL SERVICES,CUSTOMER & CLIENT RECPTS - EXT,Revenue,CL CONT EXTERNAL RESIDENTIAL,615356,130280720,17-Mar-15,-439.76,LONDON CARE PARTNERSHIP LTD,SP0001138
WANDSWORTH COUNCIL,ASC,SOCIAL SERVICES,CUSTOMER & CLIENT RECPTS - EXT,Revenue,CL CONT EXTERNAL RESIDENTIAL,615357,130280720,17-Mar-15,-212.57,LONDON CARE PARTNERSHIP LTD,SP0001138
WANDSWORTH COUNCIL,ASC,SOCIAL SERVICES,CUSTOMER & CLIENT RECPTS - EXT,Revenue,CL CONT EXTERNAL RESIDENTIAL,615358,130280720,17-Mar-15,-401.67,LONDON CARE PARTNERSHIP LTD,SP0001138
WANDSWORTH COUNCIL,ASC,SOCIAL SERVICES,CUSTOMER & CLIENT RECPTS - EXT,Revenue,CL CONT EXTERNAL RESIDENTIAL,611820,130280720,12-Mar-15,-319.40,LOTUS CARE HOME LTD,SP0001006
WANDSWORTH COUNCIL,ASC,SOCIAL SERVICES,CUSTOMER & CLIENT RECPTS - EXT,Revenue,CL CONT EXTERNAL RESIDENTIAL,606292,130280720,05-Mar-15,-319.40,LOVING CARE LTD,SP0000670
WANDSWORTH COUNCIL,ASC,SOCIAL SERVICES,CUSTOMER & CLIENT RECPTS - EXT,Revenue,CL CONT EXTERNAL RESIDENTIAL,606293,130280720,05-Mar-15,-319.40,LOVING CARE LTD,SP0000670
WANDSWORTH COUNCIL,ASC,SOCIAL SERVICES,CUSTOMER & CLIENT RECPTS - EXT,Revenue,CL CONT EXTERNAL RESIDENTIAL,606294,130280720,05-Mar-15,-319.40,LOVING CARE LTD,SP0000670
WANDSWORTH COUNCIL,ASC,SOCIAL SERVICES,CUSTOMER & CLIENT RECPTS - EXT,Revenue,CL CONT EXTERNAL RESIDENTIAL,606295,130280720,05-Mar-15,-319.40,LOVING CARE LTD,SP0000670
WANDSWORTH COUNCIL,ASC,SOCIAL SERVICES,CUSTOMER & CLIENT RECPTS - EXT,Revenue,CL CONT EXTERNAL RESIDENTIAL,606296,130280720,05-Mar-15,-319.40,LOVING CARE LTD,SP0000670
WANDSWORTH COUNCIL,ASC,SOCIAL SERVICES,CUSTOMER & CLIENT RECPTS - EXT,Revenue,CL CONT EXTERNAL RESIDENTIAL,606297,130280720,05-Mar-15,-319.40,LOVING CARE LTD,SP0000670
WANDSWORTH COUNCIL,ASC,SOCIAL SERVICES,CUSTOMER & CLIENT RECPTS - EXT,Revenue,CL CONT EXTERNAL RESIDENTIAL,606298,130280720,05-Mar-15,-319.40,LOVING CARE LTD,SP0000670
WANDSWORTH COUNCIL,ASC,SOCIAL SERVICES,CUSTOMER & CLIENT RECPTS - EXT,Revenue,CL CONT EXTERNAL RESIDENTIAL,611867,130280720,12-Mar-15,-315.20,MACINTYRE CARE,SP0000473
WANDSWORTH COUNCIL,ASC,SOCIAL SERVICES,CUSTOMER & CLIENT RECPTS - EXT,Revenue,CL CONT EXTERNAL RESIDENTIAL,611868,130280720,12-Mar-15,-319.40,MACINTYRE CARE,SP0000473
WANDSWORTH COUNCIL,ASC,SOCIAL SERVICES,CUSTOMER & CLIENT RECPTS - EXT,Revenue,CL CONT EXTERNAL RESIDENTIAL,611869,130280720,12-Mar-15,-495.80,MACINTYRE CARE,SP0000473
WANDSWORTH COUNCIL,ASC,SOCIAL SERVICES,CUSTOMER & CLIENT RECPTS - EXT,Revenue,CL CONT EXTERNAL RESIDENTIAL,611871,130280720,12-Mar-15,-319.40,MACINTYRE CARE,SP0000473
WANDSWORTH COUNCIL,ASC,SOCIAL SERVICES,CUSTOMER & CLIENT RECPTS - EXT,Revenue,CL CONT EXTERNAL RESIDENTIAL,611872,130280720,12-Mar-15,-319.40,MACINTYRE CARE,SP0000473
WANDSWORTH COUNCIL,ASC,SOCIAL SERVICES,CUSTOMER & CLIENT RECPTS - EXT,Revenue,CL CONT EXTERNAL RESIDENTIAL,611873,130280720,12-Mar-15,-362.80,MACINTYRE CARE,SP0000473
WANDSWORTH COUNCIL,ASC,SOCIAL SERVICES,CUSTOMER & CLIENT RECPTS - EXT,Revenue,CL CONT EXTERNAL RESIDENTIAL,611874,130280720,12-Mar-15,-319.40,MACINTYRE CARE,SP0000473
WANDSWORTH COUNCIL,ASC,SOCIAL SERVICES,CUSTOMER & CLIENT RECPTS - EXT,Revenue,CL CONT EXTERNAL RESIDENTIAL,611875,130280720,12-Mar-15,-319.40,MACINTYRE CARE,SP0000473
WANDSWORTH COUNCIL,ASC,SOCIAL SERVICES,CUSTOMER & CLIENT RECPTS - EXT,Revenue,CL CONT EXTERNAL RESIDENTIAL,611876,130280720,12-Mar-15,-319.40,MACINTYRE CARE,SP0000473
WANDSWORTH COUNCIL,ASC,SOCIAL SERVICES,CUSTOMER & CLIENT RECPTS - EXT,Revenue,CL CONT EXTERNAL RESIDENTIAL,611877,130280720,12-Mar-15,-319.40,MACINTYRE CARE,SP0000473
WANDSWORTH COUNCIL,ASC,SOCIAL SERVICES,CUSTOMER & CLIENT RECPTS - EXT,Revenue,CL CONT EXTERNAL RESIDENTIAL,611878,130280720,12-Mar-15,-407.20,MACINTYRE CARE,SP0000473
WANDSWORTH COUNCIL,ASC,SOCIAL SERVICES,CUSTOMER & CLIENT RECPTS - EXT,Revenue,CL CONT EXTERNAL RESIDENTIAL,611879,130280720,12-Mar-15,-315.20,MACINTYRE CARE,SP0000473
WANDSWORTH COUNCIL,ASC,SOCIAL SERVICES,CUSTOMER & CLIENT RECPTS - EXT,Revenue,CL CONT EXTERNAL RESIDENTIAL,611880,130280720,12-Mar-15,-495.80,MACINTYRE CARE,SP0000473
WANDSWORTH COUNCIL,ASC,SOCIAL SERVICES,CUSTOMER & CLIENT RECPTS - EXT,Revenue,CL CONT EXTERNAL RESIDENTIAL,611881,130280720,12-Mar-15,-441.20,MACINTYRE CARE,SP0000473
WANDSWORTH COUNCIL,ASC,SOCIAL SERVICES,CUSTOMER & CLIENT RECPTS - EXT,Revenue,CL CONT EXTERNAL RESIDENTIAL,611882,130280720,12-Mar-15,-495.80,MACINTYRE CARE,SP0000473
WANDSWORTH COUNCIL,ASC,SOCIAL SERVICES,CUSTOMER & CLIENT RECPTS - EXT,Revenue,CL CONT EXTERNAL RESIDENTIAL,611883,130280720,12-Mar-15,-495.80,MACINTYRE CARE,SP0000473
WANDSWORTH COUNCIL,ASC,SOCIAL SERVICES,CUSTOMER & CLIENT RECPTS - EXT,Revenue,CL CONT EXTERNAL RESIDENTIAL,611885,130280720,12-Mar-15,-511.80,MACINTYRE CARE,SP0000473
WANDSWORTH COUNCIL,ASC,SOCIAL SERVICES,CUSTOMER & CLIENT RECPTS - EXT,Revenue,CL CONT EXTERNAL RESIDENTIAL,611886,130280720,12-Mar-15,-319.40,MACINTYRE CARE,SP0000473
WANDSWORTH COUNCIL,ASC,SOCIAL SERVICES,CUSTOMER & CLIENT RECPTS - EXT,Revenue,CL CONT EXTERNAL RESIDENTIAL,611887,130280720,12-Mar-15,-319.40,MACINTYRE CARE,SP0000473
WANDSWORTH COUNCIL,ASC,SOCIAL SERVICES,CUSTOMER & CLIENT RECPTS - EXT,Revenue,CL CONT EXTERNAL RESIDENTIAL,611888,130280720,12-Mar-15,-514.80,MACINTYRE CARE,SP0000473
WANDSWORTH COUNCIL,ASC,SOCIAL SERVICES,CUSTOMER & CLIENT RECPTS - EXT,Revenue,CL CONT EXTERNAL RESIDENTIAL,611889,130280720,12-Mar-15,-319.40,MACINTYRE CARE,SP0000473
WANDSWORTH COUNCIL,ASC,SOCIAL SERVICES,CUSTOMER & CLIENT RECPTS - EXT,Revenue,CL CONT EXTERNAL RESIDENTIAL,606290,130280720,05-Mar-15,-319.40,MCCH SOCIETY LIMITED,SP0001531
WANDSWORTH COUNCIL,ASC,SOCIAL SERVICES,CUSTOMER & CLIENT RECPTS - EXT,Revenue,CL CONT EXTERNAL RESIDENTIAL,606291,130280720,05-Mar-15,-319.40,MCCH SOCIETY LIMITED,SP0001531
WANDSWORTH COUNCIL,ASC,SOCIAL SERVICES,CUSTOMER & CLIENT RECPTS - EXT,Revenue,CL CONT EXTERNAL RESIDENTIAL,612495,130280720,13-Mar-15,-353.62,MENCAP,SP0000604
WANDSWORTH COUNCIL,ASC,SOCIAL SERVICES,CUSTOMER & CLIENT RECPTS - EXT,Revenue,CL CONT EXTERNAL RESIDENTIAL,612496,130280720,13-Mar-15,-353.62,MENCAP,SP0000604
WANDSWORTH COUNCIL,ASC,SOCIAL SERVICES,CUSTOMER & CLIENT RECPTS - EXT,Revenue,CL CONT EXTERNAL RESIDENTIAL,612503,130280720,13-Mar-15,-353.62,MENCAP,SP0000604
WANDSWORTH COUNCIL,ASC,SOCIAL SERVICES,CUSTOMER & CLIENT RECPTS - EXT,Revenue,CL CONT EXTERNAL RESIDENTIAL,608051,130280720,06-Mar-15,-495.80,METROPOLITAN HOUSING TRUST,SP0000626
WANDSWORTH COUNCIL,ASC,SOCIAL SERVICES,CUSTOMER & CLIENT RECPTS - EXT,Revenue,CL CONT EXTERNAL RESIDENTIAL,608052,130280720,06-Mar-15,-319.40,METROPOLITAN HOUSING TRUST,SP0000626
WANDSWORTH COUNCIL,ASC,SOCIAL SERVICES,CUSTOMER & CLIENT RECPTS - EXT,Revenue,CL CONT EXTERNAL RESIDENTIAL,608053,130280720,06-Mar-15,-319.40,METROPOLITAN HOUSING TRUST,SP0000626
